Workbook

Sheet 专业排名汇总表
A1: 排名 | B1: 必修课排名 | C1: 学号 | D1: 姓名 | E1: 班级 | F1: 德育成绩 | N1: 智育成绩 | T1: 体育成绩 | AA1: 综合测评总分 | AB1: 优良率 | AC1: 四级成绩 | AD1: 是否挂科
F2: 班级互评分 | G2: 辅导员打分 | H2: 班级互评分×0.6 | I2: 辅导员打分×0.4 | J2: 德育加分 | K2: 德育扣分 | L2: 德育成绩 | M2: 德育成绩×0.2 | N2: 必修课加权平均分 | O2: 选修课加权平均分 | P2: 智育成绩（必修课×0.8+选修课×0.2） | Q2: 智育加分 | R2: 智育成绩 | S2: 智育成绩×0.7 | T2: 体育课成绩 | U2: 锻炼成绩 | V2: 体育课成绩×0.6 | W2: 锻炼成绩×0.4 | X2: 体育加分 | Y2: 体育成绩 | Z2: 体育成绩×0.1
A3: 示例说明 | F3: vlookup | G3: vlookup | H3: 公式求和 | I3: 公式求和 | J3: 汇总统计 | K3: 汇总统计 | L3: 公式求和 | M3: 公式求和 | N3: vlookup | O3: vlookup | P3: 公式求和 | Q3: 汇总统计 | R3: 公式求和 | S3: 公式求和 | T3: 单独做表vlookup | U3: vlookup | V3: 公式求和 | W3: 公式求和 | X3: 汇总统计 | Y3: 公式求和 | Z3: 公式求和 | AA3: 公式求和 | AB3: vlookup | AC3: vlookup | AD3: vlookup
A4: =RANK(AA4,AA$4:AA$104) -> 29 | B4: =RANK(N4,N$4:N$104) -> 19 | C4: 2022010364 | D4: 张姝瑶 | E4: 化工22-1班 | F4: =VLOOKUP(C:C,德育基础分!A3:D103,4,0) -> 99.8783 | G4: 90.0000 | H4: =F4*0.6 -> 59.9270 | I4: =G4*0.4 -> 36.0000 | J4: =VLOOKUP(C:C,'德育加分 (2)'!C:AC,27,0) -> 0.5000 | K4: =VLOOKUP(C:C,德育扣分!A2:F103,6,0) -> 0.0000 | L4: =H4+I4+J4-K4 -> 96.4270 | M4: =L4*0.2 -> 19.2854 | N4: =VLOOKUP(C:C,成绩!B1:D102,3,0) -> 84.2267 | O4: =VLOOKUP(C:C,成绩!B:E,4,0) -> 82.5000 | P4: =N4*0.8+O4*0.2 -> 83.8813 | Q4: =VLOOKUP(D:D,智育加分汇总!F:G,2,0) -> 4.0000 | R4: =Q4+P4 -> 87.8813 | S4: =R4*0.7 -> 61.5169 | T4: =VLOOKUP(C:C,成绩!B:F,5,0) -> 90.0000 | U4: 100.0000 | V4: =T4*0.6 -> 54.0000 | W4: =U4*0.4 -> 40.0000 | X4: =VLOOKUP(C:C,'文体加分 (2)'!C2:O167,13,0) -> 0.0000 | Y4: =V4+W4+X4 -> 94.0000 | Z4: =Y4*0.1 -> 9.4000 | AA4: =Z4+S4+M4 -> 90.2023 | AB4: =VLOOKUP(C:C,成绩!B:G,6,0) -> 78.9474% | AC4: 547 | AD4: =VLOOKUP(C:C,成绩!B:H,7,0) -> 0
A5: =RANK(AA5,AA$4:AA$104) -> 81 | B5: =RANK(N5,N$4:N$104) -> 97 | C5: 2022010367 | D5: 周芹 | E5: 化工22-1班 | F5: =VLOOKUP(C:C,德育基础分!A4:D104,4,0) -> 99.9087 | G5: 90.0000 | H5: =F5*0.6 -> 59.9452 | I5: =G5*0.4 -> 36.0000 | J5: =VLOOKUP(C:C,'德育加分 (2)'!C:AC,27,0) -> 6.8300 | K5: =VLOOKUP(C:C,德育扣分!A3:F104,6,0) -> 0.0000 | L5: =H5+I5+J5-K5 -> 102.7752 | M5: =L5*0.2 -> 20.5550 | N5: =VLOOKUP(C:C,成绩!B2:D103,3,0) -> 65.6420 | O5: =VLOOKUP(C:C,成绩!B:E,4,0) -> 89.0000 | P5: =N5*0.8+O5*0.2 -> 70.3136 | Q5: 0.0000 | R5: =Q5+P5 -> 70.3136 | S5: =R5*0.7 -> 49.2195 | T5: =VLOOKUP(C:C,成绩!B:F,5,0) -> 92.5000 | U5: 100.0000 | V5: 55.5000 | W5: 40.0000 | X5: =VLOOKUP(C:C,'文体加分 (2)'!C3:O168,13,0) -> 0.0000 | Y5: =V5+W5+X5 -> 95.5000 | Z5: =Y5*0.1 -> 9.5500 | AA5: =Z5+S5+M5 -> 79.3246 | AB5: =VLOOKUP(C:C,成绩!B:G,6,0) -> 35.0000% | AC5: 570 | AD5: =VLOOKUP(C:C,成绩!B:H,7,0) -> 4
A6: 46 | B6: 24 | C6: 2022010369 | D6: 李越 | E6: 化工22-1班 | F6: =VLOOKUP(C:C,德育基础分!A5:D105,4,0) -> 99.8783 | G6: 90.0000 | H6: 59.9270 | I6: 36.0000 | J6: =VLOOKUP(C:C,'德育加分 (2)'!C:AC,27,0) -> 0.5000 | K6: =VLOOKUP(C:C,德育扣分!A4:F105,6,0) -> 0.0000 | L6: 96.4270 | M6: 19.2854 | N6: =VLOOKUP(C:C,成绩!B3:D104,3,0) -> 83.6267 | O6: =VLOOKUP(C:C,成绩!B:E,4,0) -> 78.5000 | P6: 82.6013 | Q6: 0.0000 | R6: 82.6013 | S6: 57.8209 | T6: =VLOOKUP(C:C,成绩!B:F,5,0) -> 90.0000 | U6: 100.0000 | V6: 54.0000 | W6: 40.0000 | X6: =VLOOKUP(C:C,'文体加分 (2)'!C4:O169,13,0) -> 0.0000 | Y6: 94.0000 | Z6: 9.4000 | AA6: 86.5063 | AB6: =VLOOKUP(C:C,成绩!B:G,6,0) -> 73.6842% | AC6: 未通过 | AD6: =VLOOKUP(C:C,成绩!B:H,7,0) -> 0
A7: 89 | B7: 79 | C7: 2022010370 | D7: 马海霞 | E7: 化工22-1班 | F7: =VLOOKUP(C:C,德育基础分!A6:D106,4,0) -> 99.8478 | G7: 90.0000 | H7: 59.9087 | I7: 36.0000 | J7: =VLOOKUP(C:C,'德育加分 (2)'!C:AC,27,0) -> 0.5000 | K7: =VLOOKUP(C:C,德育扣分!A5:F106,6,0) -> 0.0000 | L7: 96.4087 | M7: 19.2817 | N7: =VLOOKUP(C:C,成绩!B4:D105,3,0) -> 70.8391 | O7: =VLOOKUP(C:C,成绩!B:E,4,0) -> 72.0000 | P7: 71.0713 | Q7: 0.0000 | R7: 71.0713 | S7: 49.7499 | T7: =VLOOKUP(C:C,成绩!B:F,5,0) -> 75.0000 | U7: 100.0000 | V7: 45.0000 | W7: 40.0000 | X7: =VLOOKUP(C:C,'文体加分 (2)'!C5:O170,13,0) -> 0.0000 | Y7: 85.0000 | Z7: 8.5000 | AA7: 77.5316 | AB7: =VLOOKUP(C:C,成绩!B:G,6,0) -> 28.5714% | AC7: 未通过 | AD7: =VLOOKUP(C:C,成绩!B:H,7,0) -> 0
A8: 41 | B8: 37 | C8: 2022010371 | D8: 何丽鸿 | E8: 化工22-1班 | F8: =VLOOKUP(C:C,德育基础分!A7:D107,4,0) -> 99.8478 | G8: 90.0000 | H8: 59.9087 | I8: 36.0000 | J8: =VLOOKUP(C:C,'德育加分 (2)'!C:AC,27,0) -> 3.5000 | K8: =VLOOKUP(C:C,德育扣分!A6:F107,6,0) -> 0.0000 | L8: 99.4087 | M8: 19.8817 | N8: =VLOOKUP(C:C,成绩!B5:D106,3,0) -> 79.4321 | O8: =VLOOKUP(C:C,成绩!B:E,4,0) -> 80.2500 | P8: 79.5957 | Q8: =VLOOKUP(D:D,智育加分汇总!F:G,2,0) -> 2.0000 | R8: 81.5957 | S8: 57.1170 | T8: =VLOOKUP(C:C,成绩!B:F,5,0) -> 90.5000 | U8: 100.0000 | V8: 54.3000 | W8: 40.0000 | X8: =VLOOKUP(C:C,'文体加分 (2)'!C6:O171,13,0) -> 8.0000 | Y8: 102.3000 | Z8: 10.2300 | AA8: 87.2287 | AB8: =VLOOKUP(C:C,成绩!B:G,6,0) -> 55.0000% | AC8: 498 | AD8: =VLOOKUP(C:C,成绩!B:H,7,0) -> 0
A9: 45 | B9: 33 | C9: 2022010372 | D9: 史佳悦 | E9: 化工22-1班 | F9: =VLOOKUP(C:C,德育基础分!A8:D108,4,0) -> 99.5435 | G9: 90.0000 | H9: 59.7261 | I9: 36.0000 | J9: =VLOOKUP(C:C,'德育加分 (2)'!C:AC,27,0) -> 4.5000 | K9: =VLOOKUP(C:C,德育扣分!A7:F108,6,0) -> 0.0000 | L9: 100.2261 | M9: 20.0452 | N9: =VLOOKUP(C:C,成绩!B6:D107,3,0) -> 80.0133 | O9: =VLOOKUP(C:C,成绩!B:E,4,0) -> 87.3333 | P9: 81.4773 | Q9: 0.0000 | R9: 81.4773 | S9: 57.0341 | T9: =VLOOKUP(C:C,成绩!B:F,5,0) -> 87.0000 | U9: 100.0000 | V9: 52.2000 | W9: 40.0000 | X9: =VLOOKUP(C:C,'文体加分 (2)'!C7:O172,13,0) -> 4.0000 | Y9: 96.2000 | Z9: 9.6200 | AA9: 86.6994 | AB9: =VLOOKUP(C:C,成绩!B:G,6,0) -> 63.1579% | AC9: 429 | AD9: =VLOOKUP(C:C,成绩!B:H,7,0) -> 0
A10: 4 | B10: 2 | C10: 2022010373 | D10: 王晴宇 | E10: 化工22-1班 | F10: =VLOOKUP(C:C,德育基础分!A9:D109,4,0) -> 99.8174 | G10: 90.0000 | H10: 59.8904 | I10: 36.0000 | J10: =VLOOKUP(C:C,'德育加分 (2)'!C:AC,27,0) -> 9.3700 | K10: =VLOOKUP(C:C,德育扣分!A8:F109,6,0) -> 0.0000 | L10: 105.2604 | M10: 21.0521 | N10: =VLOOKUP(C:C,成绩!B7:D108,3,0) -> 88.5200 | O10: =VLOOKUP(C:C,成绩!B:E,4,0) -> 90.6667 | P10: 88.9493 | Q10: =VLOOKUP(D:D,智育加分汇总!F:G,2,0) -> 31.8333 | R10: 120.7827 | S10: 84.5479 | T10: =VLOOKUP(C:C,成绩!B:F,5,0) -> 92.0000 | U10: 100.0000 | V10: 55.2000 | W10: 40.0000 | X10: =VLOOKUP(C:C,'文体加分 (2)'!C8:O173,13,0) -> 0.0000 | Y10: 95.2000 | Z10: 9.5200 | AA10: 115.1200 | AB10: =VLOOKUP(C:C,成绩!B:G,6,0) -> 89.4737% | AC10: 568 | AD10: =VLOOKUP(C:C,成绩!B:H,7,0) -> 0
A11: 8 | B11: 3 | C11: 2022010374 | D11: 袁佳怡 | E11: 化工22-1班 | F11: =VLOOKUP(C:C,德育基础分!A10:D110,4,0) -> 99.8478 | G11: 90.0000 | H11: 59.9087 | I11: 36.0000 | J11: =VLOOKUP(C:C,'德育加分 (2)'!C:AC,27,0) -> 4.5000 | K11: =VLOOKUP(C:C,德育扣分!A9:F110,6,0) -> 0.0000 | L11: 100.4087 | M11: 20.0817 | N11: =VLOOKUP(C:C,成绩!B8:D109,3,0) -> 88.0267 | O11: =VLOOKUP(C:C,成绩!B:E,4,0) -> 86.5000 | P11: 87.7213 | Q11: =VLOOKUP(D:D,智育加分汇总!F:G,2,0) -> 12.0000 | R11: 99.7213 | S11: 69.8049 | T11: =VLOOKUP(C:C,成绩!B:F,5,0) -> 95.5000 | U11: 100.0000 | V11: 57.3000 | W11: 40.0000 | X11: =VLOOKUP(C:C,'文体加分 (2)'!C9:O174,13,0) -> 0.0000 | Y11: 97.3000 | Z11: 9.7300 | AA11: 99.6167 | AB11: =VLOOKUP(C:C,成绩!B:G,6,0) -> 94.7368% | AC11: 591 | AD11: =VLOOKUP(C:C,成绩!B:H,7,0) -> 0
A12: 75 | B12: 73 | C12: 2022012311 | D12: 布威麦尔耶姆·麦麦提图尔荪 | E12: 化工22-1班 | F12: =VLOOKUP(C:C,德育基础分!A11:D111,4,0) -> 99.8783 | G12: 90.0000 | H12: 59.9270 | I12: 36.0000 | J12: =VLOOKUP(C:C,'德育加分 (2)'!C:AC,27,0) -> 0.5000 | K12: =VLOOKUP(C:C,德育扣分!A10:F111,6,0) -> 0.0000 | L12: 96.4270 | M12: 19.2854 | N12: =VLOOKUP(C:C,成绩!B9:D110,3,0) -> 72.3067 | O12: =VLOOKUP(C:C,成绩!B:E,4,0) -> 78.0000 | P12: 73.4453 | Q12: 0.0000 | R12: 73.4453 | S12: 51.4117 | T12: =VLOOKUP(C:C,成绩!B:F,5,0) -> 84.0000 | U12: 100.0000 | V12: 50.4000 | W12: 40.0000 | X12: =VLOOKUP(C:C,'文体加分 (2)'!C10:O175,13,0) -> 0.0000 | Y12: 90.4000 | Z12: 9.0400 | AA12: 79.7371 | AB12: =VLOOKUP(C:C,成绩!B:G,6,0) -> 42.1053% | AC12: 510 | AD12: =VLOOKUP(C:C,成绩!B:H,7,0) -> 1
A13: 28 | B13: 14 | C13: 2022010397 | D13: 李安然 | E13: 化工22-1班 | F13: =VLOOKUP(C:C,德育基础分!A12:D112,4,0) -> 99.8478 | G13: 90.0000 | H13: 59.9087 | I13: 36.0000 | J13: =VLOOKUP(C:C,'德育加分 (2)'!C:AC,27,0) -> 0.5000 | K13: =VLOOKUP(C:C,德育扣分!A11:F112,6,0) -> 0.0000 | L13: 96.4087 | M13: 19.2817 | N13: =VLOOKUP(C:C,成绩!B10:D111,3,0) -> 84.9067 | O13: =VLOOKUP(C:C,成绩!B:E,4,0) -> 81.5000 | P13: 84.2253 | Q13: =VLOOKUP(D:D,智育加分汇总!F:G,2,0) -> 4.0000 | R13: 88.2253 | S13: 61.7577 | T13: =VLOOKUP(C:C,成绩!B:F,5,0) -> 86.5000 | U13: 100.0000 | V13: 51.9000 | W13: 40.0000 | X13: =VLOOKUP(C:C,'文体加分 (2)'!C11:O176,13,0) -> 0.0000 | Y13: 91.9000 | Z13: 9.1900 | AA13: 90.2295 | AB13: =VLOOKUP(C:C,成绩!B:G,6,0) -> 94.7368% | AC13: 580 | AD13: =VLOOKUP(C:C,成绩!B:H,7,0) -> 0
A14: 11 | B14: 9 | C14: 2022010100 | D14: 智玉轩 | E14: 化工22-1班 | F14: =VLOOKUP(C:C,德育基础分!A13:D113,4,0) -> 99.8478 | G14: 90.0000 | H14: 59.9087 | I14: 36.0000 | J14: =VLOOKUP(C:C,'德育加分 (2)'!C:AC,27,0) -> 8.5000 | K14: =VLOOKUP(C:C,德育扣分!A12:F113,6,0) -> 0.0000 | L14: 104.4087 | M14: 20.8817 | N14: =VLOOKUP(C:C,成绩!B11:D112,3,0) -> 86.5500 | O14: =VLOOKUP(C:C,成绩!B:E,4,0) -> 82.0000 | P14: 85.6400 | Q14: =VLOOKUP(D:D,智育加分汇总!F:G,2,0) -> 10.0000 | R14: 95.6400 | S14: 66.9480 | T14: =VLOOKUP(C:C,成绩!B:F,5,0) -> 93.5000 | U14: 100.0000 | V14: 56.1000 | W14: 40.0000 | X14: =VLOOKUP(C:C,'文体加分 (2)'!C12:O177,13,0) -> 0.0000 | Y14: 96.1000 | Z14: 9.6100 | AA14: 97.4397 | AB14: =VLOOKUP(C:C,成绩!B:G,6,0) -> 95.2381% | AC14: 626 | AD14: =VLOOKUP(C:C,成绩!B:H,7,0) -> 0
A15: 72 | B15: 58 | C15: 2022010377 | D15: 刘超 | E15: 化工22-1班 | F15: =VLOOKUP(C:C,德育基础分!A14:D114,4,0) -> 100.0000 | G15: 90.0000 | H15: 60.0000 | I15: 36.0000 | J15: =VLOOKUP(C:C,'德育加分 (2)'!C:AC,27,0) -> 0.5000 | K15: =VLOOKUP(C:C,德育扣分!A13:F114,6,0) -> 0.0000 | L15: 96.5000 | M15: 19.3000 | N15: =VLOOKUP(C:C,成绩!B12:D113,3,0) -> 75.8000 | O15: =VLOOKUP(C:C,成绩!B:E,4,0) -> 73.0000 | P15: 75.2400 | Q15: 0.0000 | R15: 75.2400 | S15: 52.6680 | T15: =VLOOKUP(C:C,成绩!B:F,5,0) -> 76.0000 | U15: 100.0000 | V15: 45.6000 | W15: 40.0000 | X15: =VLOOKUP(C:C,'文体加分 (2)'!C13:O178,13,0) -> 0.0000 | Y15: 85.6000 | Z15: 8.5600 | AA15: 80.5280 | AB15: =VLOOKUP(C:C,成绩!B:G,6,0) -> 42.1053% | AC15: 459 | AD15: =VLOOKUP(C:C,成绩!B:H,7,0) -> 0
A16: 86 | B16: 91 | C16: 2022010379 | D16: 孙科 | E16: 化工22-1班 | F16: =VLOOKUP(C:C,德育基础分!A15:D115,4,0) -> 99.4827 | G16: 90.0000 | H16: 59.6896 | I16: 36.0000 | J16: =VLOOKUP(C:C,'德育加分 (2)'!C:AC,27,0) -> 0.5000 | K16: =VLOOKUP(C:C,德育扣分!A14:F115,6,0) -> 0.0000 | L16: 96.1896 | M16: 19.2379 | N16: =VLOOKUP(C:C,成绩!B13:D114,3,0) -> 68.6154 | O16: =VLOOKUP(C:C,成绩!B:E,4,0) -> 84.6667 | P16: 71.8256 | Q16: 0.0000 | R16: 71.8256 | S16: 50.2779 | T16: =VLOOKUP(C:C,成绩!B:F,5,0) -> 82.0000 | U16: 100.0000 | V16: 49.2000 | W16: 40.0000 | X16: =VLOOKUP(C:C,'文体加分 (2)'!C14:O179,13,0) -> 0.0000 | Y16: 89.2000 | Z16: 8.9200 | AA16: 78.4359 | AB16: =VLOOKUP(C:C,成绩!B:G,6,0) -> 40.0000% | AC16: 未通过 | AD16: =VLOOKUP(C:C,成绩!B:H,7,0) -> 3
A17: 52 | B17: 43 | C17: 2022010382 | D17: 张铸 | E17: 化工22-1班 | F17: =VLOOKUP(C:C,德育基础分!A16:D116,4,0) -> 99.9391 | G17: 90.0000 | H17: 59.9635 | I17: 36.0000 | J17: =VLOOKUP(C:C,'德育加分 (2)'!C:AC,27,0) -> 4.9000 | K17: =VLOOKUP(C:C,德育扣分!A15:F116,6,0) -> 0.0000 | L17: 100.8635 | M17: 20.1727 | N17: =VLOOKUP(C:C,成绩!B14:D115,3,0) -> 78.2179 | O17: =VLOOKUP(C:C,成绩!B:E,4,0) -> 74.6667 | P17: 77.5077 | Q17: =VLOOKUP(D:D,智育加分汇总!F:G,2,0) -> 2.0000 | R17: 79.5077 | S17: 55.6554 | T17: =VLOOKUP(C:C,成绩!B:F,5,0) -> 87.5000 | U17: 100.0000 | V17: 52.5000 | W17: 40.0000 | X17: =VLOOKUP(C:C,'文体加分 (2)'!C15:O180,13,0) -> 0.0000 | Y17: 92.5000 | Z17: 9.2500 | AA17: 85.0781 | AB17: =VLOOKUP(C:C,成绩!B:G,6,0) -> 60.0000% | AC17: 514 | AD17: =VLOOKUP(C:C,成绩!B:H,7,0) -> 0
A18: 25 | B18: 47 | C18: 2022010383 | D18: 刘子瑞 | E18: 化工22-1班 | F18: =VLOOKUP(C:C,德育基础分!A17:D117,4,0) -> 99.9087 | G18: 90.0000 | H18: 59.9452 | I18: 36.0000 | J18: =VLOOKUP(C:C,'德育加分 (2)'!C:AC,27,0) -> 4.9000 | K18: =VLOOKUP(C:C,德育扣分!A16:F117,6,0) -> 0.0000 | L18: 100.8452 | M18: 20.1690 | N18: =VLOOKUP(C:C,成绩!B15:D116,3,0) -> 77.6133 | O18: =VLOOKUP(C:C,成绩!B:E,4,0) -> 86.0000 | P18: 79.2907 | Q18: =VLOOKUP(D:D,智育加分汇总!F:G,2,0) -> 9.0000 | R18: 88.2907 | S18: 61.8035 | T18: =VLOOKUP(C:C,成绩!B:F,5,0) -> 81.0000 | U18: 100.0000 | V18: 48.6000 | W18: 40.0000 | X18: =VLOOKUP(C:C,'文体加分 (2)'!C16:O181,13,0) -> 0.0000 | Y18: 88.6000 | Z18: 8.8600 | AA18: 90.8325 | AB18: =VLOOKUP(C:C,成绩!B:G,6,0) -> 68.4211% | AC18: 490 | AD18: =VLOOKUP(C:C,成绩!B:H,7,0) -> 1
A19: 19 | B19: 5 | C19: 2022010384 | D19: 吴立新 | E19: 化工22-1班 | F19: =VLOOKUP(C:C,德育基础分!A18:D118,4,0) -> 99.9696 | G19: 90.0000 | H19: 59.9817 | I19: 36.0000 | J19: =VLOOKUP(C:C,'德育加分 (2)'!C:AC,27,0) -> 3.5000 | K19: =VLOOKUP(C:C,德育扣分!A17:F118,6,0) -> 0.0000 | L19: 99.4817 | M19: 19.8963 | N19: =VLOOKUP(C:C,成绩!B16:D117,3,0) -> 87.8000 | O19: =VLOOKUP(C:C,成绩!B:E,4,0) -> 80.0000 | P19: 86.2400 | Q19: =VLOOKUP(D:D,智育加分汇总!F:G,2,0) -> 6.0000 | R19: 92.2400 | S19: 64.5680 | T19: =VLOOKUP(C:C,成绩!B:F,5,0) -> 83.5000 | U19: 100.0000 | V19: 50.1000 | W19: 40.0000 | X19: =VLOOKUP(C:C,'文体加分 (2)'!C17:O182,13,0) -> 2.0000 | Y19: 92.1000 | Z19: 9.2100 | AA19: 93.6743 | AB19: =VLOOKUP(C:C,成绩!B:G,6,0) -> 94.7368% | AC19: 未通过 | AD19: =VLOOKUP(C:C,成绩!B:H,7,0) -> 0
A20: 55 | B20: 34 | C20: 2022010385 | D20: 龚泽恩 | E20: 化工22-1班 | F20: =VLOOKUP(C:C,德育基础分!A19:D119,4,0) -> 99.8783 | G20: 90.0000 | H20: 59.9270 | I20: 36.0000 | J20: =VLOOKUP(C:C,'德育加分 (2)'!C:AC,27,0) -> 0.5000 | K20: =VLOOKUP(C:C,德育扣分!A18:F119,6,0) -> 0.0000 | L20: 96.4270 | M20: 19.2854 | N20: =VLOOKUP(C:C,成绩!B17:D118,3,0) -> 79.8400 | O20: =VLOOKUP(C:C,成绩!B:E,4,0) -> 80.0000 | P20: 79.8720 | Q20: 0.0000 | R20: 79.8720 | S20: 55.9104 | T20: =VLOOKUP(C:C,成绩!B:F,5,0) -> 87.0000 | U20: 100.0000 | V20: 52.2000 | W20: 40.0000 | X20: =VLOOKUP(C:C,'文体加分 (2)'!C18:O183,13,0) -> 0.0000 | Y20: 92.2000 | Z20: 9.2200 | AA20: 84.4158 | AB20: =VLOOKUP(C:C,成绩!B:G,6,0) -> 63.1579% | AC20: 554 | AD20: =VLOOKUP(C:C,成绩!B:H,7,0) -> 0
A21: 42 | B21: 44 | C21: 2022010386 | D21: 李陶然 | E21: 化工22-1班 | F21: =VLOOKUP(C:C,德育基础分!A20:D120,4,0) -> 99.8783 | G21: 90.0000 | H21: 59.9270 | I21: 36.0000 | J21: =VLOOKUP(C:C,'德育加分 (2)'!C:AC,27,0) -> 4.9000 | K21: =VLOOKUP(C:C,德育扣分!A19:F120,6,0) -> 0.0000 | L21: 100.8270 | M21: 20.1654 | N21: =VLOOKUP(C:C,成绩!B18:D119,3,0) -> 78.1667 | O21: =VLOOKUP(C:C,成绩!B:E,4,0) -> 70.5000 | P21: 76.6333 | Q21: =VLOOKUP(D:D,智育加分汇总!F:G,2,0) -> 7.0000 | R21: 83.6333 | S21: 58.5433 | T21: =VLOOKUP(C:C,成绩!B:F,5,0) -> 75.0000 | U21: 100.0000 | V21: 45.0000 | W21: 40.0000 | X21: =VLOOKUP(C:C,'文体加分 (2)'!C19:O184,13,0) -> 0.0000 | Y21: 85.0000 | Z21: 8.5000 | AA21: 87.2087 | AB21: =VLOOKUP(C:C,成绩!B:G,6,0) -> 45.0000% | AC21: 478 | AD21: =VLOOKUP(C:C,成绩!B:H,7,0) -> 1
A22: 34 | B22: 35 | C22: 2022010389 | D22: 牛浩镔 | E22: 化工22-1班 | F22: =VLOOKUP(C:C,德育基础分!A21:D121,4,0) -> 99.9391 | G22: 90.0000 | H22: 59.9635 | I22: 36.0000 | J22: =VLOOKUP(C:C,'德育加分 (2)'!C:AC,27,0) -> 4.1000 | K22: =VLOOKUP(C:C,德育扣分!A20:F121,6,0) -> 0.0000 | L22: 100.0635 | M22: 20.0127 | N22: =VLOOKUP(C:C,成绩!B19:D120,3,0) -> 79.6974 | O22: =VLOOKUP(C:C,成绩!B:E,4,0) -> 78.0000 | P22: 79.3579 | Q22: =VLOOKUP(D:D,智育加分汇总!F:G,2,0) -> 8.0000 | R22: 87.3579 | S22: 61.1505 | T22: =VLOOKUP(C:C,成绩!B:F,5,0) -> 75.0000 | U22: 100.0000 | V22: 45.0000 | W22: 40.0000 | X22: =VLOOKUP(C:C,'文体加分 (2)'!C20:O185,13,0) -> 0.0000 | Y22: 85.0000 | Z22: 8.5000 | AA22: 89.6632 | AB22: =VLOOKUP(C:C,成绩!B:G,6,0) -> 60.0000% | AC22: 557 | AD22: =VLOOKUP(C:C,成绩!B:H,7,0) -> 0
A23: 22 | B23: 26 | C23: 2022010390 | D23: 申溱 | E23: 化工22-1班 | F23: =VLOOKUP(C:C,德育基础分!A22:D122,4,0) -> 99.5131 | G23: 90.0000 | H23: 59.7079 | I23: 36.0000 | J23: =VLOOKUP(C:C,'德育加分 (2)'!C:AC,27,0) -> 7.1000 | K23: =VLOOKUP(C:C,德育扣分!A21:F122,6,0) -> 0.0000 | L23: 102.8079 | M23: 20.5616 | N23: =VLOOKUP(C:C,成绩!B20:D121,3,0) -> 82.9867 | O23: =VLOOKUP(C:C,成绩!B:E,4,0) -> 87.0000 | P23: 83.7893 | Q23: =VLOOKUP(D:D,智育加分汇总!F:G,2,0) -> 7.0000 | R23: 90.7893 | S23: 63.5525 | T23: =VLOOKUP(C:C,成绩!B:F,5,0) -> 82.5000 | U23: 100.0000 | V23: 49.5000 | W23: 40.0000 | X23: =VLOOKUP(C:C,'文体加分 (2)'!C21:O186,13,0) -> 0.0000 | Y23: 89.5000 | Z23: 8.9500 | AA23: 93.0641 | AB23: =VLOOKUP(C:C,成绩!B:G,6,0) -> 78.9474% | AC23: 584 | AD23: =VLOOKUP(C:C,成绩!B:H,7,0) -> 1
A24: 92 | B24: 17 | C24: 2022010392 | D24: 吴照飞 | E24: 化工22-1班 | F24: =VLOOKUP(C:C,德育基础分!A23:D123,4,0) -> 99.7870 | G24: 90.0000 | H24: 59.8722 | I24: 36.0000 | J24: =VLOOKUP(C:C,'德育加分 (2)'!C:AC,27,0) -> 0.5000 | K24: =VLOOKUP(C:C,德育扣分!A22:F123,6,0) -> 0.0000 | L24: 96.3722 | M24: 19.2744 | N24: =VLOOKUP(C:C,成绩!B21:D122,3,0) -> 84.7564 | O24: =VLOOKUP(C:C,成绩!B:E,4,0) -> 0.0000 | P24: 67.8051 | Q24: 0.0000 | R24: 67.8051 | S24: 47.4636 | T24: =VLOOKUP(C:C,成绩!B:F,5,0) -> 87.5000 | U24: 100.0000 | V24: 52.5000 | W24: 40.0000 | X24: =VLOOKUP(C:C,'文体加分 (2)'!C22:O187,13,0) -> 0.0000 | Y24: 92.5000 | Z24: 9.2500 | AA24: 75.9880 | AB24: =VLOOKUP(C:C,成绩!B:G,6,0) -> 80.0000% | AC24: 517 | AD24: =VLOOKUP(C:C,成绩!B:H,7,0) -> 0
A25: 35 | B25: 27 | C25: 2022010394 | D25: 张之翼 | E25: 化工22-1班 | F25: =VLOOKUP(C:C,德育基础分!A24:D124,4,0) -> 99.7261 | G25: 90.0000 | H25: 59.8357 | I25: 36.0000 | J25: =VLOOKUP(C:C,'德育加分 (2)'!C:AC,27,0) -> 0.5000 | K25: =VLOOKUP(C:C,德育扣分!A23:F124,6,0) -> 0.0000 | L25: 96.3357 | M25: 19.2671 | N25: =VLOOKUP(C:C,成绩!B22:D123,3,0) -> 82.8974 | O25: =VLOOKUP(C:C,成绩!B:E,4,0) -> 94.0000 | P25: 85.1179 | Q25: 0.0000 | R25: 85.1179 | S25: 59.5826 | T25: =VLOOKUP(C:C,成绩!B:F,5,0) -> 90.5000 | U25: 100.0000 | V25: 54.3000 | W25: 40.0000 | X25: =VLOOKUP(C:C,'文体加分 (2)'!C23:O188,13,0) -> 10.0000 | Y25: 104.3000 | Z25: 10.4300 | AA25: 89.2797 | AB25: =VLOOKUP(C:C,成绩!B:G,6,0) -> 85.0000% | AC25: 610 | AD25: =VLOOKUP(C:C,成绩!B:H,7,0) -> 0
A26: 63 | B26: 45 | C26: 2022012312 | D26: 徐峥 | E26: 化工22-1班 | F26: =VLOOKUP(C:C,德育基础分!A25:D125,4,0) -> 98.7219 | G26: 90.0000 | H26: 59.2331 | I26: 36.0000 | J26: =VLOOKUP(C:C,'德育加分 (2)'!C:AC,27,0) -> 2.5000 | K26: =VLOOKUP(C:C,德育扣分!A24:F125,6,0) -> 0.0000 | L26: 97.7331 | M26: 19.5466 | N26: =VLOOKUP(C:C,成绩!B23:D124,3,0) -> 77.8933 | O26: =VLOOKUP(C:C,成绩!B:E,4,0) -> 79.0000 | P26: 78.1147 | Q26: 0.0000 | R26: 78.1147 | S26: 54.6803 | T26: =VLOOKUP(C:C,成绩!B:F,5,0) -> 76.5000 | U26: 100.0000 | V26: 45.9000 | W26: 40.0000 | X26: =VLOOKUP(C:C,'文体加分 (2)'!C24:O189,13,0) -> 0.0000 | Y26: 85.9000 | Z26: 8.5900 | AA26: 82.8169 | AB26: =VLOOKUP(C:C,成绩!B:G,6,0) -> 63.1579% | AC26: 590 | AD26: =VLOOKUP(C:C,成绩!B:H,7,0) -> 0
A27: 74 | B27: 75 | C27: 2022010409 | D27: 周家艺 | E27: 化工22-1班 | F27: =VLOOKUP(C:C,德育基础分!A26:D126,4,0) -> 99.7870 | G27: 90.0000 | H27: 59.8722 | I27: 36.0000 | J27: =VLOOKUP(C:C,'德育加分 (2)'!C:AC,27,0) -> 0.5000 | K27: =VLOOKUP(C:C,德育扣分!A25:F126,6,0) -> 0.0000 | L27: 96.3722 | M27: 19.2744 | N27: =VLOOKUP(C:C,成绩!B24:D125,3,0) -> 71.6800 | O27: =VLOOKUP(C:C,成绩!B:E,4,0) -> 85.0000 | P27: 74.3440 | Q27: 0.0000 | R27: 74.3440 | S27: 52.0408 | T27: =VLOOKUP(C:C,成绩!B:F,5,0) -> 81.5000 | U27: 100.0000 | V27: 48.9000 | W27: 40.0000 | X27: =VLOOKUP(C:C,'文体加分 (2)'!C25:O190,13,0) -> 0.0000 | Y27: 88.9000 | Z27: 8.8900 | AA27: 80.2052 | AB27: =VLOOKUP(C:C,成绩!B:G,6,0) -> 47.3684% | AC27: 445 | AD27: =VLOOKUP(C:C,成绩!B:H,7,0) -> 2
A28: 79 | B28: 80 | C28: 2022010411 | D28: 姚锦栋 | E28: 化工22-1班 | F28: =VLOOKUP(C:C,德育基础分!A27:D127,4,0) -> 99.7870 | G28: 90.0000 | H28: 59.8722 | I28: 36.0000 | J28: =VLOOKUP(C:C,'德育加分 (2)'!C:AC,27,0) -> 0.5000 | K28: =VLOOKUP(C:C,德育扣分!A26:F127,6,0) -> 0.0000 | L28: 96.3722 | M28: 19.2744 | N28: =VLOOKUP(C:C,成绩!B25:D126,3,0) -> 70.7692 | O28: =VLOOKUP(C:C,成绩!B:E,4,0) -> 79.0000 | P28: 72.4154 | Q28: 0.0000 | R28: 72.4154 | S28: 50.6908 | T28: =VLOOKUP(C:C,成绩!B:F,5,0) -> 91.5000 | U28: 100.0000 | V28: 54.9000 | W28: 40.0000 | X28: =VLOOKUP(C:C,'文体加分 (2)'!C26:O191,13,0) -> 0.0000 | Y28: 94.9000 | Z28: 9.4900 | AA28: 79.4552 | AB28: =VLOOKUP(C:C,成绩!B:G,6,0) -> 45.0000% | AC28: 未通过 | AD28: =VLOOKUP(C:C,成绩!B:H,7,0) -> 2
A29: 23 | B29: 16 | C29: 2022010412 | D29: 代肖彤 | E29: 化工22-1班 | F29: =VLOOKUP(C:C,德育基础分!A28:D128,4,0) -> 99.8174 | G29: 90.0000 | H29: 59.8904 | I29: 36.0000 | J29: =VLOOKUP(C:C,'德育加分 (2)'!C:AC,27,0) -> 0.5000 | K29: =VLOOKUP(C:C,德育扣分!A27:F128,6,0) -> 0.0000 | L29: 96.3904 | M29: 19.2781 | N29: =VLOOKUP(C:C,成绩!B26:D127,3,0) -> 84.8533 | O29: =VLOOKUP(C:C,成绩!B:E,4,0) -> 82.5000 | P29: 84.3827 | Q29: =VLOOKUP(D:D,智育加分汇总!F:G,2,0) -> 6.0000 | R29: 90.3827 | S29: 63.2679 | T29: =VLOOKUP(C:C,成绩!B:F,5,0) -> 92.5000 | U29: 100.0000 | V29: 55.5000 | W29: 40.0000 | X29: =VLOOKUP(C:C,'文体加分 (2)'!C27:O192,13,0) -> 0.0000 | Y29: 95.5000 | Z29: 9.5500 | AA29: 92.0960 | AB29: =VLOOKUP(C:C,成绩!B:G,6,0) -> 84.2105% | AC29: 447 | AD29: =VLOOKUP(C:C,成绩!B:H,7,0) -> 0
A30: 85 | B30: 84 | C30: 2022010413 | D30: 陈恒宇 | E30: 化工22-1班 | F30: =VLOOKUP(C:C,德育基础分!A29:D129,4,0) -> 99.7870 | G30: 90.0000 | H30: 59.8722 | I30: 36.0000 | J30: =VLOOKUP(C:C,'德育加分 (2)'!C:AC,27,0) -> 0.5000 | K30: =VLOOKUP(C:C,德育扣分!A28:F129,6,0) -> 0.0000 | L30: 96.3722 | M30: 19.2744 | N30: =VLOOKUP(C:C,成绩!B27:D128,3,0) -> 69.2800 | O30: =VLOOKUP(C:C,成绩!B:E,4,0) -> 81.5000 | P30: 71.7240 | Q30: 0.0000 | R30: 71.7240 | S30: 50.2068 | T30: =VLOOKUP(C:C,成绩!B:F,5,0) -> 83.0000 | U30: 100.0000 | V30: 49.8000 | W30: 40.0000 | X30: =VLOOKUP(C:C,'文体加分 (2)'!C28:O193,13,0) -> 0.0000 | Y30: 89.8000 | Z30: 8.9800 | AA30: 78.4612 | AB30: =VLOOKUP(C:C,成绩!B:G,6,0) -> 47.3684% | AC30: 522 | AD30: =VLOOKUP(C:C,成绩!B:H,7,0) -> 3
A31: 58 | B31: 46 | C31: 2022010414 | D31: 潘恒懿 | E31: 化工22-1班 | F31: =VLOOKUP(C:C,德育基础分!A30:D130,4,0) -> 99.8174 | G31: 90.0000 | H31: 59.8904 | I31: 36.0000 | J31: =VLOOKUP(C:C,'德育加分 (2)'!C:AC,27,0) -> 5.8300 | K31: =VLOOKUP(C:C,德育扣分!A29:F130,6,0) -> 0.0000 | L31: 101.7204 | M31: 20.3441 | N31: =VLOOKUP(C:C,成绩!B28:D129,3,0) -> 77.8630 | O31: =VLOOKUP(C:C,成绩!B:E,4,0) -> 80.5000 | P31: 78.3904 | Q31: 0.0000 | R31: 78.3904 | S31: 54.8733 | T31: =VLOOKUP(C:C,成绩!B:F,5,0) -> 75.0000 | U31: 100.0000 | V31: 45.0000 | W31: 40.0000 | X31: =VLOOKUP(C:C,'文体加分 (2)'!C29:O194,13,0) -> 0.0000 | Y31: 85.0000 | Z31: 8.5000 | AA31: 83.7174 | AB31: =VLOOKUP(C:C,成绩!B:G,6,0) -> 38.8889% | AC31: 未通过 | AD31: =VLOOKUP(C:C,成绩!B:H,7,0) -> 1
A32: 88 | B32: 85 | C32: 2022010418 | D32: 王明堃 | E32: 化工22-1班 | F32: =VLOOKUP(C:C,德育基础分!A31:D131,4,0) -> 99.6348 | G32: 90.0000 | H32: 59.7809 | I32: 36.0000 | J32: =VLOOKUP(C:C,'德育加分 (2)'!C:AC,27,0) -> 0.5000 | K32: =VLOOKUP(C:C,德育扣分!A30:F131,6,0) -> 0.0000 | L32: 96.2809 | M32: 19.2562 | N32: =VLOOKUP(C:C,成绩!B29:D130,3,0) -> 69.2436 | O32: =VLOOKUP(C:C,成绩!B:E,4,0) -> 78.0000 | P32: 70.9949 | Q32: 0.0000 | R32: 70.9949 | S32: 49.6964 | T32: =VLOOKUP(C:C,成绩!B:F,5,0) -> 80.5000 | U32: 100.0000 | V32: 48.3000 | W32: 40.0000 | X32: =VLOOKUP(C:C,'文体加分 (2)'!C30:O195,13,0) -> 0.0000 | Y32: 88.3000 | Z32: 8.8300 | AA32: 77.7826 | AB32: =VLOOKUP(C:C,成绩!B:G,6,0) -> 40.0000% | AC32: 439 | AD32: =VLOOKUP(C:C,成绩!B:H,7,0) -> 2
A33: 64 | B33: 65 | C33: 2022010419 | D33: 史国柱 | E33: 化工22-1班 | F33: =VLOOKUP(C:C,德育基础分!A32:D132,4,0) -> 99.7870 | G33: 90.0000 | H33: 59.8722 | I33: 36.0000 | J33: =VLOOKUP(C:C,'德育加分 (2)'!C:AC,27,0) -> 3.5000 | K33: =VLOOKUP(C:C,德育扣分!A31:F132,6,0) -> 0.0000 | L33: 99.3722 | M33: 19.8744 | N33: =VLOOKUP(C:C,成绩!B30:D131,3,0) -> 74.4000 | O33: =VLOOKUP(C:C,成绩!B:E,4,0) -> 84.6667 | P33: 76.4533 | Q33: 0.0000 | R33: 76.4533 | S33: 53.5173 | T33: =VLOOKUP(C:C,成绩!B:F,5,0) -> 84.5000 | U33: 100.0000 | V33: 50.7000 | W33: 40.0000 | X33: =VLOOKUP(C:C,'文体加分 (2)'!C31:O196,13,0) -> 0.0000 | Y33: 90.7000 | Z33: 9.0700 | AA33: 82.4618 | AB33: =VLOOKUP(C:C,成绩!B:G,6,0) -> 57.8947% | AC33: 433 | AD33: =VLOOKUP(C:C,成绩!B:H,7,0) -> 1
A34: 14 | B34: 13 | C34: 2022010516 | D34: 郭智硕 | E34: 化工22-1班 | F34: =VLOOKUP(C:C,德育基础分!A33:D133,4,0) -> 99.7870 | G34: 90.0000 | H34: 59.8722 | I34: 36.0000 | J34: =VLOOKUP(C:C,'德育加分 (2)'!C:AC,27,0) -> 0.5000 | K34: =VLOOKUP(C:C,德育扣分!A32:F133,6,0) -> 0.0000 | L34: 96.3722 | M34: 19.2744 | N34: =VLOOKUP(C:C,成绩!B31:D132,3,0) -> 85.0133 | O34: =VLOOKUP(C:C,成绩!B:E,4,0) -> 89.3333 | P34: 85.8773 | Q34: =VLOOKUP(D:D,智育加分汇总!F:G,2,0) -> 10.0000 | R34: 95.8773 | S34: 67.1141 | T34: =VLOOKUP(C:C,成绩!B:F,5,0) -> 83.5000 | U34: 100.0000 | V34: 50.1000 | W34: 40.0000 | X34: =VLOOKUP(C:C,'文体加分 (2)'!C32:O197,13,0) -> 0.0000 | Y34: 90.1000 | Z34: 9.0100 | AA34: 95.3986 | AB34: =VLOOKUP(C:C,成绩!B:G,6,0) -> 89.4737% | AC34: 485 | AD34: =VLOOKUP(C:C,成绩!B:H,7,0) -> 0
A35: 27 | B35: 10 | C35: 2022010518 | D35: 贾思远 | E35: 化工22-1班 | F35: =VLOOKUP(C:C,德育基础分!A34:D134,4,0) -> 99.6957 | G35: 90.0000 | H35: 59.8174 | I35: 36.0000 | J35: =VLOOKUP(C:C,'德育加分 (2)'!C:AC,27,0) -> 0.5000 | K35: =VLOOKUP(C:C,德育扣分!A33:F134,6,0) -> 0.0000 | L35: 96.3174 | M35: 19.2635 | N35: =VLOOKUP(C:C,成绩!B32:D133,3,0) -> 86.0000 | O35: =VLOOKUP(C:C,成绩!B:E,4,0) -> 84.3333 | P35: 85.6667 | Q35: 0.0000 | R35: 85.6667 | S35: 59.9667 | T35: =VLOOKUP(C:C,成绩!B:F,5,0) -> 97.0000 | U35: 100.0000 | V35: 58.2000 | W35: 40.0000 | X35: =VLOOKUP(C:C,'文体加分 (2)'!C33:O198,13,0) -> 12.0000 | Y35: 110.2000 | Z35: 11.0200 | AA35: 90.2501 | AB35: =VLOOKUP(C:C,成绩!B:G,6,0) -> 78.9474% | AC35: 545 | AD35: =VLOOKUP(C:C,成绩!B:H,7,0) -> 0
A36: 9 | B36: 20 | C36: 2022010519 | D36: 李佳俊 | E36: 化工22-1班 | F36: =VLOOKUP(C:C,德育基础分!A35:D135,4,0) -> 99.7565 | G36: 90.0000 | H36: 59.8539 | I36: 36.0000 | J36: =VLOOKUP(C:C,'德育加分 (2)'!C:AC,27,0) -> 2.5000 | K36: =VLOOKUP(C:C,德育扣分!A34:F135,6,0) -> 0.0000 | L36: 98.3539 | M36: 19.6708 | N36: =VLOOKUP(C:C,成绩!B33:D134,3,0) -> 84.1600 | O36: =VLOOKUP(C:C,成绩!B:E,4,0) -> 84.6667 | P36: 84.2613 | Q36: =VLOOKUP(D:D,智育加分汇总!F:G,2,0) -> 10.0000 | R36: 94.2613 | S36: 65.9829 | T36: =VLOOKUP(C:C,成绩!B:F,5,0) -> 97.5000 | U36: 100.0000 | V36: 58.5000 | W36: 40.0000 | X36: =VLOOKUP(C:C,'文体加分 (2)'!C34:O199,13,0) -> 28.0000 | Y36: 126.5000 | Z36: 12.6500 | AA36: 98.3037 | AB36: =VLOOKUP(C:C,成绩!B:G,6,0) -> 78.9474% | AC36: 524 | AD36: =VLOOKUP(C:C,成绩!B:H,7,0) -> 0
A37: 98 | B37: 89 | C37: 2022010622 | D37: 顾凌云 | E37: 化工22-1班 | F37: =VLOOKUP(C:C,德育基础分!A36:D136,4,0) -> 99.7261 | G37: 90.0000 | H37: 59.8357 | I37: 36.0000 | J37: =VLOOKUP(C:C,'德育加分 (2)'!C:AC,27,0) -> 5.8000 | K37: =VLOOKUP(C:C,德育扣分!A35:F136,6,0) -> 0.0000 | L37: 101.6357 | M37: 20.3271 | N37: =VLOOKUP(C:C,成绩!B34:D135,3,0) -> 68.8356 | O37: =VLOOKUP(C:C,成绩!B:E,4,0) -> 0.0000 | P37: 55.0685 | Q37: 0.0000 | R37: 55.0685 | S37: 38.5479 | T37: =VLOOKUP(C:C,成绩!B:F,5,0) -> 79.5000 | U37: 100.0000 | V37: 47.7000 | W37: 40.0000 | X37: =VLOOKUP(C:C,'文体加分 (2)'!C35:O200,13,0) -> 0.0000 | Y37: 87.7000 | Z37: 8.7700 | AA37: 67.6451 | AB37: =VLOOKUP(C:C,成绩!B:G,6,0) -> 27.7778% | AC37: 504 | AD37: =VLOOKUP(C:C,成绩!B:H,7,0) -> 2
A38: 39 | B38: 30 | C38: 2022010429 | D38: 程实 | E38: 化工22-2班 | F38: =VLOOKUP(C:C,德育基础分!A37:D137,4,0) -> 99.5473 | G38: 90.0000 | H38: 59.7284 | I38: 36.0000 | J38: =VLOOKUP(C:C,'德育加分 (2)'!C:AC,27,0) -> 3.0000 | K38: =VLOOKUP(C:C,德育扣分!A36:F137,6,0) -> 0.0000 | L38: 98.7284 | M38: 19.7457 | N38: =VLOOKUP(C:C,成绩!B35:D136,3,0) -> 81.4400 | O38: =VLOOKUP(C:C,成绩!B:E,4,0) -> 86.0000 | P38: 82.3520 | Q38: =VLOOKUP(D:D,智育加分汇总!F:G,2,0) -> 2.0000 | R38: 84.3520 | S38: 59.0464 | T38: =VLOOKUP(C:C,成绩!B:F,5,0) -> 90.0000 | U38: 100.0000 | V38: 54.0000 | W38: 40.0000 | X38: =VLOOKUP(C:C,'文体加分 (2)'!C36:O201,13,0) -> 0.0000 | Y38: 94.0000 | Z38: 9.4000 | AA38: 88.1921 | AB38: =VLOOKUP(C:C,成绩!B:G,6,0) -> 73.6842% | AC38: 498 | AD38: =VLOOKUP(C:C,成绩!B:H,7,0) -> 0
A39: 15 | B39: 52 | C39: 2022010430 | D39: 马瑜含 | E39: 化工22-2班 | F39: =VLOOKUP(C:C,德育基础分!A38:D138,4,0) -> 99.6729 | G39: 90.0000 | H39: 59.8037 | I39: 36.0000 | J39: =VLOOKUP(C:C,'德育加分 (2)'!C:AC,27,0) -> 7.5340 | K39: =VLOOKUP(C:C,德育扣分!A37:F138,6,0) -> 0.0000 | L39: 103.3377 | M39: 20.6675 | N39: =VLOOKUP(C:C,成绩!B36:D137,3,0) -> 76.5128 | O39: =VLOOKUP(C:C,成绩!B:E,4,0) -> 85.5000 | P39: 78.3103 | Q39: =VLOOKUP(D:D,智育加分汇总!F:G,2,0) -> 13.0000 | R39: 91.3103 | S39: 63.9172 | T39: =VLOOKUP(C:C,成绩!B:F,5,0) -> 95.0000 | U39: 100.0000 | V39: 57.0000 | W39: 40.0000 | X39: =VLOOKUP(C:C,'文体加分 (2)'!C37:O202,13,0) -> 9.0000 | Y39: 106.0000 | Z39: 10.6000 | AA39: 95.1847 | AB39: =VLOOKUP(C:C,成绩!B:G,6,0) -> 60.0000% | AC39: 536 | AD39: =VLOOKUP(C:C,成绩!B:H,7,0) -> 0
A40: 82 | B40: 86 | C40: 2022010431 | D40: 贺婕 | E40: 化工22-2班 | F40: =VLOOKUP(C:C,德育基础分!A39:D139,4,0) -> 99.6180 | G40: 90.0000 | H40: 59.7708 | I40: 36.0000 | J40: =VLOOKUP(C:C,'德育加分 (2)'!C:AC,27,0) -> 1.5000 | K40: =VLOOKUP(C:C,德育扣分!A38:F139,6,0) -> 0.0000 | L40: 97.2708 | M40: 19.4542 | N40: =VLOOKUP(C:C,成绩!B37:D138,3,0) -> 69.1370 | O40: =VLOOKUP(C:C,成绩!B:E,4,0) -> 82.0000 | P40: 71.7096 | Q40: 0.0000 | R40: 71.7096 | S40: 50.1967 | T40: =VLOOKUP(C:C,成绩!B:F,5,0) -> 90.0000 | U40: 100.0000 | V40: 54.0000 | W40: 40.0000 | X40: =VLOOKUP(C:C,'文体加分 (2)'!C38:O203,13,0) -> 0.0000 | Y40: 94.0000 | Z40: 9.4000 | AA40: 79.0509 | AB40: 35.0000% | AC40: 449 | AD40: =VLOOKUP(C:C,成绩!B:H,7,0) -> 0
A41: 96 | B41: 100 | C41: 2022010432 | D41: 刘雨佳 | E41: 化工22-2班 | F41: =VLOOKUP(C:C,德育基础分!A40:D140,4,0) -> 99.4532 | G41: 90.0000 | H41: 59.6719 | I41: 36.0000 | J41: =VLOOKUP(C:C,'德育加分 (2)'!C:AC,27,0) -> 13.5000 | K41: =VLOOKUP(C:C,德育扣分!A39:F140,6,0) -> 2.0000 | L41: 107.1719 | M41: 21.4344 | N41: =VLOOKUP(C:C,成绩!B38:D139,3,0) -> 58.8108 | O41: =VLOOKUP(C:C,成绩!B:E,4,0) -> 63.0000 | P41: 59.6486 | Q41: 0.0000 | R41: 59.6486 | S41: 41.7541 | T41: =VLOOKUP(C:C,成绩!B:F,5,0) -> 76.5000 | U41: 100.0000 | V41: 45.9000 | W41: 40.0000 | X41: =VLOOKUP(C:C,'文体加分 (2)'!C39:O204,13,0) -> 0.0000 | Y41: 85.9000 | Z41: 8.5900 | AA41: 71.7784 | AB41: =VLOOKUP(C:C,成绩!B:G,6,0) -> 21.0526% | AC41: 487 | AD41: =VLOOKUP(C:C,成绩!B:H,7,0) -> 6
A42: 95 | B42: 98 | C42: 2022010435 | D42: 秦婧瑶 | E42: 化工22-2班 | F42: =VLOOKUP(C:C,德育基础分!A41:D141,4,0) -> 99.5473 | G42: 90.0000 | H42: 59.7284 | I42: 36.0000 | J42: =VLOOKUP(C:C,'德育加分 (2)'!C:AC,27,0) -> 2.5000 | K42: =VLOOKUP(C:C,德育扣分!A40:F141,6,0) -> 0.0000 | L42: 98.2284 | M42: 19.6457 | N42: =VLOOKUP(C:C,成绩!B39:D140,3,0) -> 64.1200 | O42: =VLOOKUP(C:C,成绩!B:E,4,0) -> 64.0000 | P42: 64.0960 | Q42: 0.0000 | R42: 64.0960 | S42: 44.8672 | T42: =VLOOKUP(C:C,成绩!B:F,5,0) -> 84.5000 | U42: 100.0000 | V42: 50.7000 | W42: 40.0000 | X42: =VLOOKUP(C:C,'文体加分 (2)'!C40:O205,13,0) -> 0.0000 | Y42: 90.7000 | Z42: 9.0700 | AA42: 73.5829 | AB42: =VLOOKUP(C:C,成绩!B:G,6,0) -> 26.3158% | AC42: 未通过 | AD42: =VLOOKUP(C:C,成绩!B:H,7,0) -> 3
A43: 24 | B43: 25 | C43: 2022010436 | D43: 孙涵 | E43: 化工22-2班 | F43: =VLOOKUP(C:C,德育基础分!A42:D142,4,0) -> 99.8266 | G43: 90.0000 | H43: 59.8960 | I43: 36.0000 | J43: =VLOOKUP(C:C,'德育加分 (2)'!C:AC,27,0) -> 9.7000 | K43: =VLOOKUP(C:C,德育扣分!A41:F142,6,0) -> 0.0000 | L43: 105.5960 | M43: 21.1192 | N43: =VLOOKUP(C:C,成绩!B40:D141,3,0) -> 83.0133 | O43: =VLOOKUP(C:C,成绩!B:E,4,0) -> 86.5000 | P43: 83.7107 | Q43: =VLOOKUP(D:D,智育加分汇总!F:G,2,0) -> 4.0000 | R43: 87.7107 | S43: 61.3975 | T43: =VLOOKUP(C:C,成绩!B:F,5,0) -> 80.5000 | U43: 100.0000 | V43: 48.3000 | W43: 40.0000 | X43: =VLOOKUP(C:C,'文体加分 (2)'!C41:O206,13,0) -> 0.0000 | Y43: 88.3000 | Z43: 8.8300 | AA43: 91.3467 | AB43: =VLOOKUP(C:C,成绩!B:G,6,0) -> 73.6842% | AC43: 548 | AD43: =VLOOKUP(C:C,成绩!B:H,7,0) -> 0
A44: 69 | B44: 76 | C44: 2022010437 | D44: 王晓弘 | E44: 化工22-2班 | F44: =VLOOKUP(C:C,德育基础分!A43:D143,4,0) -> 99.4846 | G44: 90.0000 | H44: 59.6907 | I44: 36.0000 | J44: =VLOOKUP(C:C,'德育加分 (2)'!C:AC,27,0) -> 4.5000 | K44: =VLOOKUP(C:C,德育扣分!A42:F143,6,0) -> 0.0000 | L44: 100.1907 | M44: 20.0381 | N44: =VLOOKUP(C:C,成绩!B41:D142,3,0) -> 71.4000 | O44: =VLOOKUP(C:C,成绩!B:E,4,0) -> 83.6667 | P44: 73.8533 | Q44: 0.0000 | R44: 73.8533 | S44: 51.6973 | T44: =VLOOKUP(C:C,成绩!B:F,5,0) -> 86.0000 | U44: 100.0000 | V44: 51.6000 | W44: 40.0000 | X44: =VLOOKUP(C:C,'文体加分 (2)'!C42:O207,13,0) -> 0.0000 | Y44: 91.6000 | Z44: 9.1600 | AA44: 80.8955 | AB44: =VLOOKUP(C:C,成绩!B:G,6,0) -> 42.1053% | AC44: 477 | AD44: =VLOOKUP(C:C,成绩!B:H,7,0) -> 2
A45: 47 | B45: 49 | C45: 2022010438 | D45: 张涵婷 | E45: 化工22-2班 | F45: =VLOOKUP(C:C,德育基础分!A44:D144,4,0) -> 99.6415 | G45: 90.0000 | H45: 59.7849 | I45: 36.0000 | J45: =VLOOKUP(C:C,'德育加分 (2)'!C:AC,27,0) -> 9.3000 | K45: =VLOOKUP(C:C,德育扣分!A43:F144,6,0) -> 0.0000 | L45: 105.0849 | M45: 21.0170 | N45: =VLOOKUP(C:C,成绩!B42:D143,3,0) -> 77.0933 | O45: =VLOOKUP(C:C,成绩!B:E,4,0) -> 69.0000 | P45: 75.4747 | Q45: =VLOOKUP(D:D,智育加分汇总!F:G,2,0) -> 4.0000 | R45: 79.4747 | S45: 55.6323 | T45: =VLOOKUP(C:C,成绩!B:F,5,0) -> 89.5000 | U45: 100.0000 | V45: 53.7000 | W45: 40.0000 | X45: =VLOOKUP(C:C,'文体加分 (2)'!C43:O208,13,0) -> 4.0000 | Y45: 97.7000 | Z45: 9.7700 | AA45: 86.4192 | AB45: =VLOOKUP(C:C,成绩!B:G,6,0) -> 52.6316% | AC45: 未通过 | AD45: =VLOOKUP(C:C,成绩!B:H,7,0) -> 0
A46: 43 | B46: 49 | C46: 2022010439 | D46: 张心怡 | E46: 化工22-2班 | F46: =VLOOKUP(C:C,德育基础分!A45:D145,4,0) -> 99.4846 | G46: 90.0000 | H46: 59.6907 | I46: 36.0000 | J46: =VLOOKUP(C:C,'德育加分 (2)'!C:AC,27,0) -> 1.5000 | K46: =VLOOKUP(C:C,德育扣分!A44:F145,6,0) -> 0.0000 | L46: 97.1907 | M46: 19.4381 | N46: =VLOOKUP(C:C,成绩!B43:D144,3,0) -> 77.0933 | O46: =VLOOKUP(C:C,成绩!B:E,4,0) -> 88.0000 | P46: 79.2747 | Q46: =VLOOKUP(D:D,智育加分汇总!F:G,2,0) -> 4.0000 | R46: 83.2747 | S46: 58.2923 | T46: =VLOOKUP(C:C,成绩!B:F,5,0) -> 90.5000 | U46: 100.0000 | V46: 54.3000 | W46: 40.0000 | X46: =VLOOKUP(C:C,'文体加分 (2)'!C44:O209,13,0) -> 0.0000 | Y46: 94.3000 | Z46: 9.4300 | AA46: 87.1604 | AB46: =VLOOKUP(C:C,成绩!B:G,6,0) -> 52.6316% | AC46: 546 | AD46: =VLOOKUP(C:C,成绩!B:H,7,0) -> 0
A47: 62 | B47: 65 | C47: 2022010494 | D47: 唐樱菲 | E47: 化工22-2班 | F47: =VLOOKUP(C:C,德育基础分!A46:D146,4,0) -> 99.8298 | G47: 90.0000 | H47: 59.8979 | I47: 36.0000 | J47: =VLOOKUP(C:C,'德育加分 (2)'!C:AC,27,0) -> 1.5000 | K47: =VLOOKUP(C:C,德育扣分!A45:F146,6,0) -> 2.0000 | L47: 95.3979 | M47: 19.0796 | N47: =VLOOKUP(C:C,成绩!B44:D145,3,0) -> 74.4000 | O47: =VLOOKUP(C:C,成绩!B:E,4,0) -> 91.0000 | P47: 77.7200 | Q47: 0.0000 | R47: 77.7200 | S47: 54.4040 | T47: =VLOOKUP(C:C,成绩!B:F,5,0) -> 90.5000 | U47: 100.0000 | V47: 54.3000 | W47: 40.0000 | X47: =VLOOKUP(C:C,'文体加分 (2)'!C45:O210,13,0) -> 0.0000 | Y47: 94.3000 | Z47: 9.4300 | AA47: 82.9136 | AB47: =VLOOKUP(C:C,成绩!B:G,6,0) -> 52.6316% | AC47: 617 | AD47: =VLOOKUP(C:C,成绩!B:H,7,0) -> 0
A48: 18 | B48: 18 | C48: 2022010499 | D48: 曹炜曼 | E48: 化工22-2班 | F48: =VLOOKUP(C:C,德育基础分!A47:D147,4,0) -> 99.6415 | G48: 90.0000 | H48: 59.7849 | I48: 36.0000 | J48: =VLOOKUP(C:C,'德育加分 (2)'!C:AC,27,0) -> 11.3700 | K48: =VLOOKUP(C:C,德育扣分!A46:F147,6,0) -> 0.0000 | L48: 107.1549 | M48: 21.4310 | N48: =VLOOKUP(C:C,成绩!B45:D146,3,0) -> 84.4133 | O48: =VLOOKUP(C:C,成绩!B:E,4,0) -> 83.0000 | P48: 84.1307 | Q48: =VLOOKUP(D:D,智育加分汇总!F:G,2,0) -> 6.0000 | R48: 90.1307 | S48: 63.0915 | T48: =VLOOKUP(C:C,成绩!B:F,5,0) -> 91.0000 | U48: 100.0000 | V48: 54.6000 | W48: 40.0000 | X48: =VLOOKUP(C:C,'文体加分 (2)'!C46:O211,13,0) -> 0.0000 | Y48: 94.6000 | Z48: 9.4600 | AA48: 93.9824 | AB48: =VLOOKUP(C:C,成绩!B:G,6,0) -> 78.9474% | AC48: 467 | AD48: =VLOOKUP(C:C,成绩!B:H,7,0) -> 0
A49: 44 | B49: 39 | C49: 2022010585 | D49: 崔跃兰 | E49: 化工22-2班 | F49: =VLOOKUP(C:C,德育基础分!A48:D148,4,0) -> 99.5159 | G49: 90.0000 | H49: 59.7096 | I49: 36.0000 | J49: =VLOOKUP(C:C,'德育加分 (2)'!C:AC,27,0) -> 9.0000 | K49: =VLOOKUP(C:C,德育扣分!A47:F148,6,0) -> 0.0000 | L49: 104.7096 | M49: 20.9419 | N49: =VLOOKUP(C:C,成绩!B46:D147,3,0) -> 79.1733 | O49: =VLOOKUP(C:C,成绩!B:E,4,0) -> 87.5000 | P49: 80.8387 | Q49: 0.0000 | R49: 80.8387 | S49: 56.5871 | T49: =VLOOKUP(C:C,成绩!B:F,5,0) -> 92.0000 | U49: 100.0000 | V49: 55.2000 | W49: 40.0000 | X49: =VLOOKUP(C:C,'文体加分 (2)'!C47:O212,13,0) -> 0.0000 | Y49: 95.2000 | Z49: 9.5200 | AA49: 87.0490 | AB49: =VLOOKUP(C:C,成绩!B:G,6,0) -> 68.4211% | AC49: 561 | AD49: =VLOOKUP(C:C,成绩!B:H,7,0) -> 0
A50: 6 | B50: 63 | C50: 2022010584 | D50: 肖涵芮 | E50: 化工22-2班 | F50: =VLOOKUP(C:C,德育基础分!A49:D149,4,0) -> 99.5473 | G50: 90.0000 | H50: 59.7284 | I50: 36.0000 | J50: =VLOOKUP(C:C,'德育加分 (2)'!C:AC,27,0) -> 11.2000 | K50: =VLOOKUP(C:C,德育扣分!A48:F149,6,0) -> 0.0000 | L50: 106.9284 | M50: 21.3857 | N50: =VLOOKUP(C:C,成绩!B47:D148,3,0) -> 74.6000 | O50: =VLOOKUP(C:C,成绩!B:E,4,0) -> 79.0000 | P50: 75.4800 | Q50: =VLOOKUP(D:D,智育加分汇总!F:G,2,0) -> 26.5000 | R50: 101.9800 | S50: 71.3860 | T50: =VLOOKUP(C:C,成绩!B:F,5,0) -> 93.0000 | U50: 100.0000 | V50: 55.8000 | W50: 40.0000 | X50: =VLOOKUP(C:C,'文体加分 (2)'!C48:O213,13,0) -> 40.0000 | Y50: 135.8000 | Z50: 13.5800 | AA50: 106.3517 | AB50: =VLOOKUP(C:C,成绩!B:G,6,0) -> 42.1053% | AC50: 574 | AD50: =VLOOKUP(C:C,成绩!B:H,7,0) -> 0
A51: 3 | B51: 6 | C51: 2022010408 | D51: 许文轲 | E51: 化工22-2班 | F51: =VLOOKUP(C:C,德育基础分!A50:D150,4,0) -> 99.7388 | G51: 90.0000 | H51: 59.8433 | I51: 36.0000 | J51: =VLOOKUP(C:C,'德育加分 (2)'!C:AC,27,0) -> 6.3000 | K51: =VLOOKUP(C:C,德育扣分!A49:F150,6,0) -> 0.0000 | L51: 102.1433 | M51: 20.4287 | N51: =VLOOKUP(C:C,成绩!B48:D149,3,0) -> 87.1333 | O51: =VLOOKUP(C:C,成绩!B:E,4,0) -> 86.5000 | P51: 87.0067 | Q51: =VLOOKUP(D:D,智育加分汇总!F:G,2,0) -> 35.0000 | R51: 122.0067 | S51: 85.4047 | T51: =VLOOKUP(C:C,成绩!B:F,5,0) -> 93.0000 | U51: 100.0000 | V51: 55.8000 | W51: 40.0000 | X51: =VLOOKUP(C:C,'文体加分 (2)'!C49:O214,13,0) -> 4.0000 | Y51: 99.8000 | Z51: 9.9800 | AA51: 115.8133 | AB51: =VLOOKUP(C:C,成绩!B:G,6,0) -> 89.4737% | AC51: 603 | AD51: =VLOOKUP(C:C,成绩!B:H,7,0) -> 0
A52: 7 | B52: 15 | C52: 2022010422 | D52: 江锦欣 | E52: 化工22-2班 | F52: =VLOOKUP(C:C,德育基础分!A51:D151,4,0) -> 99.8298 | G52: 90.0000 | H52: 59.8979 | I52: 36.0000 | J52: =VLOOKUP(C:C,'德育加分 (2)'!C:AC,27,0) -> 8.3000 | K52: =VLOOKUP(C:C,德育扣分!A50:F151,6,0) -> 0.0000 | L52: 104.1979 | M52: 20.8396 | N52: =VLOOKUP(C:C,成绩!B49:D150,3,0) -> 84.8667 | O52: =VLOOKUP(C:C,成绩!B:E,4,0) -> 85.6667 | P52: 85.0267 | Q52: =VLOOKUP(D:D,智育加分汇总!F:G,2,0) -> 21.0000 | R52: 106.0267 | S52: 74.2187 | T52: =VLOOKUP(C:C,成绩!B:F,5,0) -> 83.0000 | U52: 100.0000 | V52: 49.8000 | W52: 40.0000 | X52: =VLOOKUP(C:C,'文体加分 (2)'!C50:O215,13,0) -> 0.0000 | Y52: 89.8000 | Z52: 8.9800 | AA52: 104.0382 | AB52: =VLOOKUP(C:C,成绩!B:G,6,0) -> 94.7368% | AC52: 567 | AD52: =VLOOKUP(C:C,成绩!B:H,7,0) -> 0
A53: 77 | B53: 71 | C53: 2022010426 | D53: 赵群 | E53: 化工22-2班 | F53: =VLOOKUP(C:C,德育基础分!A52:D152,4,0) -> 99.7042 | G53: 90.0000 | H53: 59.8225 | I53: 36.0000 | J53: =VLOOKUP(C:C,'德育加分 (2)'!C:AC,27,0) -> 1.5000 | K53: =VLOOKUP(C:C,德育扣分!A51:F152,6,0) -> 0.0000 | L53: 97.3225 | M53: 19.4645 | N53: =VLOOKUP(C:C,成绩!B50:D151,3,0) -> 72.7467 | O53: =VLOOKUP(C:C,成绩!B:E,4,0) -> 76.0000 | P53: 73.3973 | Q53: 0.0000 | R53: 73.3973 | S53: 51.3781 | T53: =VLOOKUP(C:C,成绩!B:F,5,0) -> 78.0000 | U53: 100.0000 | V53: 46.8000 | W53: 40.0000 | X53: =VLOOKUP(C:C,'文体加分 (2)'!C51:O216,13,0) -> 0.0000 | Y53: 86.8000 | Z53: 8.6800 | AA53: 79.5226 | AB53: =VLOOKUP(C:C,成绩!B:G,6,0) -> 36.8421% | AC53: 541 | AD53: =VLOOKUP(C:C,成绩!B:H,7,0) -> 2
A54: 66 | B54: 67 | C54: 2022010427 | D54: 周慧林 | E54: 化工22-2班 | F54: =VLOOKUP(C:C,德育基础分!A53:D153,4,0) -> 99.8298 | G54: 90.0000 | H54: 59.8979 | I54: 36.0000 | J54: =VLOOKUP(C:C,'德育加分 (2)'!C:AC,27,0) -> 1.5000 | K54: =VLOOKUP(C:C,德育扣分!A52:F153,6,0) -> 0.0000 | L54: 97.3979 | M54: 19.4796 | N54: =VLOOKUP(C:C,成绩!B51:D152,3,0) -> 73.6933 | O54: =VLOOKUP(C:C,成绩!B:E,4,0) -> 90.0000 | P54: 76.9547 | Q54: 0.0000 | R54: 76.9547 | S54: 53.8683 | T54: =VLOOKUP(C:C,成绩!B:F,5,0) -> 80.0000 | U54: 100.0000 | V54: 48.0000 | W54: 40.0000 | X54: =VLOOKUP(C:C,'文体加分 (2)'!C52:O217,13,0) -> 0.0000 | Y54: 88.0000 | Z54: 8.8000 | AA54: 82.1478 | AB54: =VLOOKUP(C:C,成绩!B:G,6,0) -> 52.6316% | AC54: 465 | AD54: =VLOOKUP(C:C,成绩!B:H,7,0) -> 0
A55: 68 | B55: 83 | C55: 2022010440 | D55: 黄颖聪 | E55: 化工22-2班 | F55: =VLOOKUP(C:C,德育基础分!A54:D154,4,0) -> 99.7011 | G55: 90.0000 | H55: 59.8207 | I55: 36.0000 | J55: =VLOOKUP(C:C,'德育加分 (2)'!C:AC,27,0) -> 2.5000 | K55: =VLOOKUP(C:C,德育扣分!A53:F154,6,0) -> 0.0000 | L55: 98.3207 | M55: 19.6641 | N55: =VLOOKUP(C:C,成绩!B52:D153,3,0) -> 70.4267 | O55: =VLOOKUP(C:C,成绩!B:E,4,0) -> 86.5000 | P55: 73.6413 | Q55: =VLOOKUP(D:D,智育加分汇总!F:G,2,0) -> 2.0000 | R55: 75.6413 | S55: 52.9489 | T55: =VLOOKUP(C:C,成绩!B:F,5,0) -> 82.0000 | U55: 100.0000 | V55: 49.2000 | W55: 40.0000 | X55: =VLOOKUP(C:C,'文体加分 (2)'!C53:O218,13,0) -> 0.0000 | Y55: 89.2000 | Z55: 8.9200 | AA55: 81.5331 | AB55: =VLOOKUP(C:C,成绩!B:G,6,0) -> 42.1053% | AC55: 429 | AD55: =VLOOKUP(C:C,成绩!B:H,7,0) -> 0
A56: 21 | B56: 36 | C56: 2022010441 | D56: 白兆 | E56: 化工22-2班 | F56: =VLOOKUP(C:C,德育基础分!A55:D155,4,0) -> 99.1017 | G56: 90.0000 | H56: 59.4610 | I56: 36.0000 | J56: =VLOOKUP(C:C,'德育加分 (2)'!C:AC,27,0) -> 9.7000 | K56: =VLOOKUP(C:C,德育扣分!A54:F155,6,0) -> 0.0000 | L56: 105.1610 | M56: 21.0322 | N56: =VLOOKUP(C:C,成绩!B53:D154,3,0) -> 79.6933 | O56: =VLOOKUP(C:C,成绩!B:E,4,0) -> 83.0000 | P56: 80.3547 | Q56: =VLOOKUP(D:D,智育加分汇总!F:G,2,0) -> 6.5000 | R56: 86.8547 | S56: 60.7983 | T56: =VLOOKUP(C:C,成绩!B:F,5,0) -> 93.5000 | U56: 100.0000 | V56: 56.1000 | W56: 40.0000 | X56: =VLOOKUP(C:C,'文体加分 (2)'!C54:O219,13,0) -> 19.0000 | Y56: 115.1000 | Z56: 11.5100 | AA56: 93.3405 | AB56: =VLOOKUP(C:C,成绩!B:G,6,0) -> 63.1579% | AC56: 511 | AD56: =VLOOKUP(C:C,成绩!B:H,7,0) -> 0
A57: 87 | B57: 94 | C57: 2022010442 | D57: 尹泽 | E57: 化工22-2班 | F57: =VLOOKUP(C:C,德育基础分!A56:D156,4,0) -> 99.6069 | G57: 90.0000 | H57: 59.7642 | I57: 36.0000 | J57: =VLOOKUP(C:C,'德育加分 (2)'!C:AC,27,0) -> 9.5000 | K57: =VLOOKUP(C:C,德育扣分!A55:F156,6,0) -> 10.0000 | L57: 95.2642 | M57: 19.0528 | N57: =VLOOKUP(C:C,成绩!B54:D155,3,0) -> 68.2955 | O57: =VLOOKUP(C:C,成绩!B:E,4,0) -> 84.0000 | P57: 71.4364 | Q57: 0.0000 | R57: 71.4364 | S57: 50.0055 | T57: =VLOOKUP(C:C,成绩!B:F,5,0) -> 80.5000 | U57: 100.0000 | V57: 48.3000 | W57: 40.0000 | X57: =VLOOKUP(C:C,'文体加分 (2)'!C55:O220,13,0) -> 0.0000 | Y57: 88.3000 | Z57: 8.8300 | AA57: 77.8883 | AB57: =VLOOKUP(C:C,成绩!B:G,6,0) -> 33.3333% | AC57: 439 | AD57: =VLOOKUP(C:C,成绩!B:H,7,0) -> 3
A58: 59 | B58: 62 | C58: 2022010443 | D58: 杨志文 | E58: 化工22-2班 | F58: =VLOOKUP(C:C,德育基础分!A57:D157,4,0) -> 99.7042 | G58: 90.0000 | H58: 59.8225 | I58: 36.0000 | J58: =VLOOKUP(C:C,'德育加分 (2)'!C:AC,27,0) -> 5.4300 | K58: =VLOOKUP(C:C,德育扣分!A56:F157,6,0) -> 0.0000 | L58: 101.2525 | M58: 20.2505 | N58: =VLOOKUP(C:C,成绩!B55:D156,3,0) -> 75.1600 | O58: =VLOOKUP(C:C,成绩!B:E,4,0) -> 90.3333 | P58: 78.1947 | Q58: 0.0000 | R58: 78.1947 | S58: 54.7363 | T58: =VLOOKUP(C:C,成绩!B:F,5,0) -> 76.0000 | U58: 100.0000 | V58: 45.6000 | W58: 40.0000 | X58: =VLOOKUP(C:C,'文体加分 (2)'!C56:O221,13,0) -> 0.0000 | Y58: 85.6000 | Z58: 8.5600 | AA58: 83.5468 | AB58: =VLOOKUP(C:C,成绩!B:G,6,0) -> 31.5789% | AC58: 503 | AD58: =VLOOKUP(C:C,成绩!B:H,7,0) -> 1
A59: 53 | B59: 51 | C59: 2022010445 | D59: 赵国平 | E59: 化工22-2班 | F59: =VLOOKUP(C:C,德育基础分!A58:D158,4,0) -> 99.7670 | G59: 90.0000 | H59: 59.8602 | I59: 36.0000 | J59: =VLOOKUP(C:C,'德育加分 (2)'!C:AC,27,0) -> 4.5000 | K59: =VLOOKUP(C:C,德育扣分!A57:F158,6,0) -> 0.0000 | L59: 100.3602 | M59: 20.0720 | N59: =VLOOKUP(C:C,成绩!B56:D157,3,0) -> 76.8000 | O59: =VLOOKUP(C:C,成绩!B:E,4,0) -> 85.0000 | P59: 78.4400 | Q59: =VLOOKUP(D:D,智育加分汇总!F:G,2,0) -> 2.0000 | R59: 80.4400 | S59: 56.3080 | T59: =VLOOKUP(C:C,成绩!B:F,5,0) -> 75.5000 | U59: 100.0000 | V59: 45.3000 | W59: 40.0000 | X59: =VLOOKUP(C:C,'文体加分 (2)'!C57:O222,13,0) -> 0.0000 | Y59: 85.3000 | Z59: 8.5300 | AA59: 84.9100 | AB59: =VLOOKUP(C:C,成绩!B:G,6,0) -> 42.1053% | AC59: 未通过 | AD59: =VLOOKUP(C:C,成绩!B:H,7,0) -> 0
A60: 26 | B60: 48 | C60: 2022010446 | D60: 金立民 | E60: 化工22-2班 | F60: =VLOOKUP(C:C,德育基础分!A59:D159,4,0) -> 99.6446 | G60: 90.0000 | H60: 59.7868 | I60: 36.0000 | J60: =VLOOKUP(C:C,'德育加分 (2)'!C:AC,27,0) -> 1.5000 | K60: =VLOOKUP(C:C,德育扣分!A58:F159,6,0) -> 0.0000 | L60: 97.2868 | M60: 19.4574 | N60: =VLOOKUP(C:C,成绩!B57:D158,3,0) -> 77.2763 | O60: =VLOOKUP(C:C,成绩!B:E,4,0) -> 74.5000 | P60: 76.7211 | Q60: =VLOOKUP(D:D,智育加分汇总!F:G,2,0) -> 11.0000 | R60: 87.7211 | S60: 61.4047 | T60: =VLOOKUP(C:C,成绩!B:F,5,0) -> 92.0000 | U60: 100.0000 | V60: 55.2000 | W60: 40.0000 | X60: =VLOOKUP(C:C,'文体加分 (2)'!C58:O223,13,0) -> 0.0000 | Y60: 95.2000 | Z60: 9.5200 | AA60: 90.3821 | AB60: =VLOOKUP(C:C,成绩!B:G,6,0) -> 47.3684% | AC60: 521 | AD60: =VLOOKUP(C:C,成绩!B:H,7,0) -> 0
A61: 40 | B61: 32 | C61: 2022010448 | D61: 王增智 | E61: 化工22-2班 | F61: =VLOOKUP(C:C,德育基础分!A60:D160,4,0) -> 99.6415 | G61: 90.0000 | H61: 59.7849 | I61: 36.0000 | J61: =VLOOKUP(C:C,'德育加分 (2)'!C:AC,27,0) -> 4.5000 | K61: =VLOOKUP(C:C,德育扣分!A59:F160,6,0) -> 0.0000 | L61: 100.2849 | M61: 20.0570 | N61: =VLOOKUP(C:C,成绩!B58:D159,3,0) -> 80.0400 | O61: =VLOOKUP(C:C,成绩!B:E,4,0) -> 78.3333 | P61: 79.6987 | Q61: 0.0000 | R61: 79.6987 | S61: 55.7891 | T61: =VLOOKUP(C:C,成绩!B:F,5,0) -> 98.0000 | U61: 100.0000 | V61: 58.8000 | W61: 40.0000 | X61: =VLOOKUP(C:C,'文体加分 (2)'!C59:O224,13,0) -> 16.0000 | Y61: 114.8000 | Z61: 11.4800 | AA61: 87.3260 | AB61: =VLOOKUP(C:C,成绩!B:G,6,0) -> 57.8947% | AC61: 未通过 | AD61: =VLOOKUP(C:C,成绩!B:H,7,0) -> 0
A62: 16 | B62: 8 | C62: 2022010449 | D62: 郑少杰 | E62: 化工22-2班 | F62: =VLOOKUP(C:C,德育基础分!A61:D161,4,0) -> 99.7105 | G62: 90.0000 | H62: 59.8263 | I62: 36.0000 | J62: =VLOOKUP(C:C,'德育加分 (2)'!C:AC,27,0) -> 8.1700 | K62: =VLOOKUP(C:C,德育扣分!A60:F161,6,0) -> 10.0000 | L62: 93.9963 | M62: 18.7993 | N62: =VLOOKUP(C:C,成绩!B59:D160,3,0) -> 86.6400 | O62: =VLOOKUP(C:C,成绩!B:E,4,0) -> 87.0000 | P62: 86.7120 | Q62: =VLOOKUP(D:D,智育加分汇总!F:G,2,0) -> 8.0000 | R62: 94.7120 | S62: 66.2984 | T62: =VLOOKUP(C:C,成绩!B:F,5,0) -> 92.5000 | U62: 100.0000 | V62: 55.5000 | W62: 40.0000 | X62: =VLOOKUP(C:C,'文体加分 (2)'!C60:O225,13,0) -> 0.0000 | Y62: 95.5000 | Z62: 9.5500 | AA62: 94.6477 | AB62: =VLOOKUP(C:C,成绩!B:G,6,0) -> 89.4737% | AC62: 525 | AD62: =VLOOKUP(C:C,成绩!B:H,7,0) -> 0
A63: 1 | B63: 1 | C63: 2022010452 | D63: 康胜 | E63: 化工22-2班 | F63: =VLOOKUP(C:C,德育基础分!A62:D162,4,0) -> 99.7670 | G63: 90.0000 | H63: 59.8602 | I63: 36.0000 | J63: =VLOOKUP(C:C,'德育加分 (2)'!C:AC,27,0) -> 5.3000 | K63: =VLOOKUP(C:C,德育扣分!A61:F162,6,0) -> 0.0000 | L63: 101.1602 | M63: 20.2320 | N63: =VLOOKUP(C:C,成绩!B60:D161,3,0) -> 89.7067 | O63: =VLOOKUP(C:C,成绩!B:E,4,0) -> 85.0000 | P63: 88.7653 | Q63: =VLOOKUP(D:D,智育加分汇总!F:G,2,0) -> 46.0000 | R63: 134.7653 | S63: 94.3357 | T63: =VLOOKUP(C:C,成绩!B:F,5,0) -> 98.0000 | U63: 100.0000 | V63: 58.8000 | W63: 40.0000 | X63: =VLOOKUP(C:C,'文体加分 (2)'!C61:O226,13,0) -> 0.0000 | Y63: 98.8000 | Z63: 9.8800 | AA63: 124.4478 | AB63: =VLOOKUP(C:C,成绩!B:G,6,0) -> 94.7368% | AC63: 593 | AD63: =VLOOKUP(C:C,成绩!B:H,7,0) -> 0
A64: 101 | B64: 99 | C64: 2022010453 | D64: 李成歆 | E64: 化工22-2班 | F64: =VLOOKUP(C:C,德育基础分!A63:D163,4,0) -> 99.5159 | G64: 90.0000 | H64: 59.7096 | I64: 36.0000 | J64: =VLOOKUP(C:C,'德育加分 (2)'!C:AC,27,0) -> 1.5000 | K64: =VLOOKUP(C:C,德育扣分!A62:F163,6,0) -> 0.0000 | L64: 97.2096 | M64: 19.4419 | N64: =VLOOKUP(C:C,成绩!B61:D162,3,0) -> 63.4000 | O64: =VLOOKUP(C:C,成绩!B:E,4,0) -> 0.0000 | P64: 50.7200 | Q64: 0.0000 | R64: 50.7200 | S64: 35.5040 | T64: =VLOOKUP(C:C,成绩!B:F,5,0) -> 73.0000 | U64: 100.0000 | V64: 43.8000 | W64: 40.0000 | X64: =VLOOKUP(C:C,'文体加分 (2)'!C62:O227,13,0) -> 0.0000 | Y64: 83.8000 | Z64: 8.3800 | AA64: 63.3259 | AB64: =VLOOKUP(C:C,成绩!B:G,6,0) -> 31.5789% | AC64: 579 | AD64: =VLOOKUP(C:C,成绩!B:H,7,0) -> 4
A65: 33 | B65: 21 | C65: 2022010454 | D65: 孙琪桐 | E65: 化工22-2班 | F65: =VLOOKUP(C:C,德育基础分!A64:D164,4,0) -> 99.5159 | G65: 90.0000 | H65: 59.7096 | I65: 36.0000 | J65: =VLOOKUP(C:C,'德育加分 (2)'!C:AC,27,0) -> 7.0000 | K65: =VLOOKUP(C:C,德育扣分!A63:F164,6,0) -> 0.0000 | L65: 102.7096 | M65: 20.5419 | N65: =VLOOKUP(C:C,成绩!B62:D163,3,0) -> 84.0667 | O65: =VLOOKUP(C:C,成绩!B:E,4,0) -> 85.0000 | P65: 84.2533 | Q65: 0.0000 | R65: 84.2533 | S65: 58.9773 | T65: =VLOOKUP(C:C,成绩!B:F,5,0) -> 86.0000 | U65: 100.0000 | V65: 51.6000 | W65: 40.0000 | X65: =VLOOKUP(C:C,'文体加分 (2)'!C63:O228,13,0) -> 10.0000 | Y65: 101.6000 | Z65: 10.1600 | AA65: 89.6792 | AB65: =VLOOKUP(C:C,成绩!B:G,6,0) -> 89.4737% | AC65: 535 | AD65: =VLOOKUP(C:C,成绩!B:H,7,0) -> 0
A66: 31 | B66: 4 | C66: 2022010456 | D66: 吴金琪 | E66: 化工22-2班 | F66: =VLOOKUP(C:C,德育基础分!A65:D165,4,0) -> 99.4532 | G66: 90.0000 | H66: 59.6719 | I66: 36.0000 | J66: =VLOOKUP(C:C,'德育加分 (2)'!C:AC,27,0) -> 1.5000 | K66: =VLOOKUP(C:C,德育扣分!A64:F165,6,0) -> 0.0000 | L66: 97.1719 | M66: 19.4344 | N66: =VLOOKUP(C:C,成绩!B63:D164,3,0) -> 87.9200 | O66: =VLOOKUP(C:C,成绩!B:E,4,0) -> 90.0000 | P66: 88.3360 | Q66: 0.0000 | R66: 88.3360 | S66: 61.8352 | T66: =VLOOKUP(C:C,成绩!B:F,5,0) -> 77.0000 | U66: 100.0000 | V66: 46.2000 | W66: 40.0000 | X66: =VLOOKUP(C:C,'文体加分 (2)'!C64:O229,13,0) -> 0.0000 | Y66: 86.2000 | Z66: 8.6200 | AA66: 89.8896 | AB66: =VLOOKUP(C:C,成绩!B:G,6,0) -> 84.2105% | AC66: 未通过 | AD66: =VLOOKUP(C:C,成绩!B:H,7,0) -> 0
A67: 65 | B67: 60 | C67: 2022010458 | D67: 赵帅 | E67: 化工22-2班 | F67: =VLOOKUP(C:C,德育基础分!A66:D166,4,0) -> 99.6289 | G67: 90.0000 | H67: 59.7774 | I67: 36.0000 | J67: =VLOOKUP(C:C,'德育加分 (2)'!C:AC,27,0) -> 1.5000 | K67: =VLOOKUP(C:C,德育扣分!A65:F166,6,0) -> 0.0000 | L67: 97.2774 | M67: 19.4555 | N67: =VLOOKUP(C:C,成绩!B64:D165,3,0) -> 75.4247 | O67: =VLOOKUP(C:C,成绩!B:E,4,0) -> 83.0000 | P67: 76.9397 | Q67: 0.0000 | R67: 76.9397 | S67: 53.8578 | T67: =VLOOKUP(C:C,成绩!B:F,5,0) -> 74.0000 | U67: 100.0000 | V67: 44.4000 | W67: 40.0000 | X67: =VLOOKUP(C:C,'文体加分 (2)'!C65:O230,13,0) -> 4.0000 | Y67: 88.4000 | Z67: 8.8400 | AA67: 82.1533 | AB67: =VLOOKUP(C:C,成绩!B:G,6,0) -> 38.8889% | AC67: 478 | AD67: =VLOOKUP(C:C,成绩!B:H,7,0) -> 0
A68: 48 | B68: 41 | C68: 2022010459 | D68: 朱行健 | E68: 化工22-2班 | F68: =VLOOKUP(C:C,德育基础分!A67:D167,4,0) -> 99.5630 | G68: 90.0000 | H68: 59.7378 | I68: 36.0000 | J68: =VLOOKUP(C:C,'德育加分 (2)'!C:AC,27,0) -> 4.0340 | K68: =VLOOKUP(C:C,德育扣分!A66:F167,6,0) -> 0.0000 | L68: 99.7718 | M68: 19.9544 | N68: =VLOOKUP(C:C,成绩!B65:D166,3,0) -> 79.0800 | O68: =VLOOKUP(C:C,成绩!B:E,4,0) -> 80.0000 | P68: 79.2640 | Q68: 0.0000 | R68: 79.2640 | S68: 55.4848 | T68: =VLOOKUP(C:C,成绩!B:F,5,0) -> 88.5000 | U68: 100.0000 | V68: =T68*0.6 -> 53.1000 | W68: =U68*0.4 -> 40.0000 | X68: =VLOOKUP(C:C,'文体加分 (2)'!C66:O231,13,0) -> 14.0000 | Y68: 107.1000 | Z68: 10.7100 | AA68: 86.1492 | AB68: =VLOOKUP(C:C,成绩!B:G,6,0) -> 52.6316% | AC68: 494 | AD68: =VLOOKUP(C:C,成绩!B:H,7,0) -> 0
A69: =RANK(AA69,AA$4:AA$104) -> 83 | B69: =RANK(N69,N$4:N$104) -> 95 | C69: 2022012316 | D69: 陈语 | E69: 化工22-2班 | F69: =VLOOKUP(C:C,德育基础分!A68:D168,4,0) -> 99.6885 | G69: 90.0000 | H69: =F69*0.6 -> 59.8131 | I69: =G69*0.4 -> 36.0000 | J69: =VLOOKUP(C:C,'德育加分 (2)'!C:AC,27,0) -> 3.1000 | K69: =VLOOKUP(C:C,德育扣分!A67:F168,6,0) -> 0.0000 | L69: =H69+I69+J69-K69 -> 98.9131 | M69: =L69*0.2 -> 19.7826 | N69: =VLOOKUP(C:C,成绩!B66:D167,3,0) -> 66.7284 | O69: =VLOOKUP(C:C,成绩!B:E,4,0) -> 81.5000 | P69: =N69*0.8+O69*0.2 -> 69.6827 | Q69: 0.0000 | R69: =Q69+P69 -> 69.6827 | S69: =R69*0.7 -> 48.7779 | T69: =VLOOKUP(C:C,成绩!B:F,5,0) -> 94.5000 | U69: 100.0000 | V69: 56.7000 | W69: 40.0000 | X69: =VLOOKUP(C:C,'文体加分 (2)'!C67:O232,13,0) -> 8.0000 | Y69: =V69+W69+X69 -> 104.7000 | Z69: =Y69*0.1 -> 10.4700 | AA69: =Z69+S69+M69 -> 79.0305 | AB69: =VLOOKUP(C:C,成绩!B:G,6,0) -> 35.0000% | AC69: 561 | AD69: =VLOOKUP(C:C,成绩!B:H,7,0) -> 3
A70: 71 | B70: 78 | C70: 2022010511 | D70: 罗小刚 | E70: 化工22-2班 | F70: =VLOOKUP(C:C,德育基础分!A69:D169,4,0) -> 99.5473 | G70: 90.0000 | H70: 59.7284 | I70: 36.0000 | J70: =VLOOKUP(C:C,'德育加分 (2)'!C:AC,27,0) -> 4.5000 | K70: =VLOOKUP(C:C,德育扣分!A68:F169,6,0) -> 0.0000 | L70: 100.2284 | M70: 20.0457 | N70: =VLOOKUP(C:C,成绩!B67:D168,3,0) -> 71.1358 | O70: =VLOOKUP(C:C,成绩!B:E,4,0) -> 81.0000 | P70: 73.1086 | Q70: 0.0000 | R70: 73.1086 | S70: 51.1760 | T70: =VLOOKUP(C:C,成绩!B:F,5,0) -> 85.0000 | U70: 100.0000 | V70: 51.0000 | W70: 40.0000 | X70: =VLOOKUP(C:C,'文体加分 (2)'!C68:O233,13,0) -> 4.0000 | Y70: 95.0000 | Z70: 9.5000 | AA70: 80.7217 | AB70: =VLOOKUP(C:C,成绩!B:G,6,0) -> 40.0000% | AC70: 未通过 | AD70: =VLOOKUP(C:C,成绩!B:H,7,0) -> 2
A71: 36 | B71: 38 | C71: 2022010512 | D71: 陈俊逸 | E71: 化工22-2班 | F71: =VLOOKUP(C:C,德育基础分!A70:D170,4,0) -> 99.5473 | G71: 90.0000 | H71: 59.7284 | I71: 36.0000 | J71: =VLOOKUP(C:C,'德育加分 (2)'!C:AC,27,0) -> 8.1700 | K71: =VLOOKUP(C:C,德育扣分!A69:F170,6,0) -> 0.0000 | L71: 103.8984 | M71: 20.7797 | N71: =VLOOKUP(C:C,成绩!B68:D169,3,0) -> 79.1867 | O71: =VLOOKUP(C:C,成绩!B:E,4,0) -> 87.0000 | P71: 80.7493 | Q71: =VLOOKUP(D:D,智育加分汇总!F:G,2,0) -> 4.0000 | R71: 84.7493 | S71: 59.3245 | T71: =VLOOKUP(C:C,成绩!B:F,5,0) -> 70.0000 | U71: 100.0000 | V71: 42.0000 | W71: 40.0000 | X71: =VLOOKUP(C:C,'文体加分 (2)'!C69:O234,13,0) -> 4.0000 | Y71: 86.0000 | Z71: 8.6000 | AA71: 88.7042 | AB71: =VLOOKUP(C:C,成绩!B:G,6,0) -> 57.8947% | AC71: 455 | AD71: =VLOOKUP(C:C,成绩!B:H,7,0) -> 1
A72: 10 | B72: 56 | C72: 2022010406 | D72: 彭莎莎 | E72: 化工22-3班 | F72: =VLOOKUP(C:C,德育基础分!A71:D171,4,0) -> 100.0000 | G72: 90.0000 | H72: 60.0000 | I72: 36.0000 | J72: =VLOOKUP(C:C,'德育加分 (2)'!C:AC,27,0) -> 5.0000 | K72: =VLOOKUP(C:C,德育扣分!A70:F171,6,0) -> 0.0000 | L72: 101.0000 | M72: 20.2000 | N72: =VLOOKUP(C:C,成绩!B69:D170,3,0) -> 76.1733 | O72: =VLOOKUP(C:C,成绩!B:E,4,0) -> 79.5000 | P72: 76.8387 | Q72: =VLOOKUP(D:D,智育加分汇总!F:G,2,0) -> 20.0000 | R72: 96.8387 | S72: 67.7871 | T72: =VLOOKUP(C:C,成绩!B:F,5,0) -> 90.0000 | U72: 100.0000 | V72: 54.0000 | W72: 40.0000 | X72: =VLOOKUP(C:C,'文体加分 (2)'!C70:O235,13,0) -> 8.0000 | Y72: 102.0000 | Z72: 10.2000 | AA72: 98.1871 | AB72: =VLOOKUP(C:C,成绩!B:G,6,0) -> 47.3684% | AC72: 433 | AD72: =VLOOKUP(C:C,成绩!B:H,7,0) -> 0
A73: 5 | B73: 7 | C73: 2022010407 | D73: 叶海宇 | E73: 化工22-3班 | F73: =VLOOKUP(C:C,德育基础分!A72:D172,4,0) -> 100.0000 | G73: 90.0000 | H73: 60.0000 | I73: 36.0000 | J73: =VLOOKUP(C:C,'德育加分 (2)'!C:AC,27,0) -> 3.0000 | K73: =VLOOKUP(C:C,德育扣分!A71:F172,6,0) -> 0.0000 | L73: 99.0000 | M73: 19.8000 | N73: =VLOOKUP(C:C,成绩!B70:D171,3,0) -> 87.0133 | O73: =VLOOKUP(C:C,成绩!B:E,4,0) -> 88.0000 | P73: 87.2107 | Q73: =VLOOKUP(D:D,智育加分汇总!F:G,2,0) -> 23.0000 | R73: 110.2107 | S73: 77.1475 | T73: =VLOOKUP(C:C,成绩!B:F,5,0) -> 98.0000 | U73: 100.0000 | V73: 58.8000 | W73: 40.0000 | X73: =VLOOKUP(C:C,'文体加分 (2)'!C71:O236,13,0) -> 15.0000 | Y73: 113.8000 | Z73: 11.3800 | AA73: 108.3275 | AB73: =VLOOKUP(C:C,成绩!B:G,6,0) -> 89.4737% | AC73: 558 | AD73: =VLOOKUP(C:C,成绩!B:H,7,0) -> 0
A74: 97 | B74: 101 | C74: 2022010460 | D74: 努尔斯巴·买提库尔班 | E74: 化工22-3班 | F74: =VLOOKUP(C:C,德育基础分!A73:D173,4,0) -> 99.6874 | G74: 90.0000 | H74: 59.8124 | I74: 36.0000 | J74: =VLOOKUP(C:C,'德育加分 (2)'!C:AC,27,0) -> 0.0000 | K74: =VLOOKUP(C:C,德育扣分!A72:F173,6,0) -> 0.0000 | L74: 95.8124 | M74: 19.1625 | N74: =VLOOKUP(C:C,成绩!B71:D172,3,0) -> 57.8667 | O74: =VLOOKUP(C:C,成绩!B:E,4,0) -> 81.0000 | P74: 62.4933 | Q74: 0.0000 | R74: 62.4933 | S74: 43.7453 | T74: =VLOOKUP(C:C,成绩!B:F,5,0) -> 68.0000 | U74: 100.0000 | V74: 40.8000 | W74: 40.0000 | X74: =VLOOKUP(C:C,'文体加分 (2)'!C72:O237,13,0) -> 0.0000 | Y74: 80.8000 | Z74: 8.0800 | AA74: 70.9878 | AB74: =VLOOKUP(C:C,成绩!B:G,6,0) -> 36.8421% | AC74: 未通过 | AD74: =VLOOKUP(C:C,成绩!B:H,7,0) -> 10
A75: 2 | B75: 39 | C75: 2022010461 | D75: 吴芷璇 | E75: 化工22-3班 | F75: =VLOOKUP(C:C,德育基础分!A74:D174,4,0) -> 99.6874 | G75: 90.0000 | H75: 59.8124 | I75: 36.0000 | J75: =VLOOKUP(C:C,'德育加分 (2)'!C:AC,27,0) -> 7.3000 | K75: =VLOOKUP(C:C,德育扣分!A73:F174,6,0) -> 0.0000 | L75: 103.1124 | M75: 20.6225 | N75: =VLOOKUP(C:C,成绩!B72:D173,3,0) -> 79.1733 | O75: =VLOOKUP(C:C,成绩!B:E,4,0) -> 83.5000 | P75: 80.0387 | Q75: =VLOOKUP(D:D,智育加分汇总!F:G,2,0) -> 44.9933 | R75: 125.0320 | S75: 87.5224 | T75: =VLOOKUP(C:C,成绩!B:F,5,0) -> 96.5000 | U75: 100.0000 | V75: 57.9000 | W75: 40.0000 | X75: =VLOOKUP(C:C,'文体加分 (2)'!C73:O238,13,0) -> 16.0000 | Y75: 113.9000 | Z75: 11.3900 | AA75: 119.5349 | AB75: =VLOOKUP(C:C,成绩!B:G,6,0) -> 52.6316% | AC75: 450 | AD75: =VLOOKUP(C:C,成绩!B:H,7,0) -> 0
A76: 49 | B76: 88 | C76: 2022010463 | D76: 孙千翔 | E76: 化工22-3班 | F76: =VLOOKUP(C:C,德育基础分!A75:D175,4,0) -> 99.6874 | G76: 90.0000 | H76: 59.8124 | I76: 36.0000 | J76: =VLOOKUP(C:C,'德育加分 (2)'!C:AC,27,0) -> 7.0000 | K76: =VLOOKUP(C:C,德育扣分!A74:F175,6,0) -> 0.0000 | L76: 102.8124 | M76: 20.5625 | N76: =VLOOKUP(C:C,成绩!B73:D174,3,0) -> 68.8800 | O76: =VLOOKUP(C:C,成绩!B:E,4,0) -> 79.3333 | P76: 70.9707 | Q76: =VLOOKUP(D:D,智育加分汇总!F:G,2,0) -> 9.5000 | R76: 80.4707 | S76: 56.3295 | T76: =VLOOKUP(C:C,成绩!B:F,5,0) -> 82.5000 | U76: 100.0000 | V76: 49.5000 | W76: 40.0000 | X76: =VLOOKUP(C:C,'文体加分 (2)'!C74:O239,13,0) -> 0.0000 | Y76: 89.5000 | Z76: 8.9500 | AA76: 85.8420 | AB76: =VLOOKUP(C:C,成绩!B:G,6,0) -> 36.8421% | AC76: 551 | AD76: =VLOOKUP(C:C,成绩!B:H,7,0) -> 2
A77: 13 | B77: 12 | C77: 2022010465 | D77: 陈飞月 | E77: 化工22-3班 | F77: =VLOOKUP(C:C,德育基础分!A76:D176,4,0) -> 100.0000 | G77: 90.0000 | H77: 60.0000 | I77: 36.0000 | J77: =VLOOKUP(C:C,'德育加分 (2)'!C:AC,27,0) -> 4.5340 | K77: =VLOOKUP(C:C,德育扣分!A75:F176,6,0) -> 0.0000 | L77: 100.5340 | M77: 20.1068 | N77: =VLOOKUP(C:C,成绩!B74:D175,3,0) -> 85.0533 | O77: =VLOOKUP(C:C,成绩!B:E,4,0) -> 89.5000 | P77: 85.9427 | Q77: =VLOOKUP(D:D,智育加分汇总!F:G,2,0) -> 7.0000 | R77: 92.9427 | S77: 65.0599 | T77: =VLOOKUP(C:C,成绩!B:F,5,0) -> 94.0000 | U77: 100.0000 | V77: 56.4000 | W77: 40.0000 | X77: =VLOOKUP(C:C,'文体加分 (2)'!C75:O240,13,0) -> 8.0000 | Y77: 104.4000 | Z77: 10.4400 | AA77: 95.6067 | AB77: =VLOOKUP(C:C,成绩!B:G,6,0) -> 78.9474% | AC77: 521 | AD77: =VLOOKUP(C:C,成绩!B:H,7,0) -> 0
A78: 50 | B78: 54 | C78: 2022010467 | D78: 石彩君 | E78: 化工22-3班 | F78: =VLOOKUP(C:C,德育基础分!A77:D177,4,0) -> 100.0000 | G78: 90.0000 | H78: 60.0000 | I78: 36.0000 | J78: =VLOOKUP(C:C,'德育加分 (2)'!C:AC,27,0) -> 11.9333 | K78: =VLOOKUP(C:C,德育扣分!A76:F177,6,0) -> 0.0000 | L78: 107.9333 | M78: 21.5867 | N78: =VLOOKUP(C:C,成绩!B75:D176,3,0) -> 76.2400 | O78: =VLOOKUP(C:C,成绩!B:E,4,0) -> 83.3333 | P78: 77.6587 | Q78: 0.0000 | R78: 77.6587 | S78: 54.3611 | T78: =VLOOKUP(C:C,成绩!B:F,5,0) -> 89.5000 | U78: 100.0000 | V78: 53.7000 | W78: 40.0000 | X78: =VLOOKUP(C:C,'文体加分 (2)'!C76:O241,13,0) -> 0.0000 | Y78: 93.7000 | Z78: 9.3700 | AA78: 85.3177 | AB78: =VLOOKUP(C:C,成绩!B:G,6,0) -> 42.1053% | AC78: 479 | AD78: =VLOOKUP(C:C,成绩!B:H,7,0) -> 0
A79: 57 | B79: 77 | C79: 2022010468 | D79: 吴忆 | E79: 化工22-3班 | F79: =VLOOKUP(C:C,德育基础分!A78:D178,4,0) -> 100.0000 | G79: 90.0000 | H79: 60.0000 | I79: 36.0000 | J79: =VLOOKUP(C:C,'德育加分 (2)'!C:AC,27,0) -> 9.5300 | K79: =VLOOKUP(C:C,德育扣分!A77:F178,6,0) -> 0.0000 | L79: 105.5300 | M79: 21.1060 | N79: =VLOOKUP(C:C,成绩!B76:D177,3,0) -> 71.1600 | O79: =VLOOKUP(C:C,成绩!B:E,4,0) -> 70.0000 | P79: 70.9280 | Q79: =VLOOKUP(D:D,智育加分汇总!F:G,2,0) -> 5.8333 | R79: 76.7613 | S79: 53.7329 | T79: =VLOOKUP(C:C,成绩!B:F,5,0) -> 82.0000 | U79: 100.0000 | V79: 49.2000 | W79: 40.0000 | X79: =VLOOKUP(C:C,'文体加分 (2)'!C77:O242,13,0) -> 0.0000 | Y79: 89.2000 | Z79: 8.9200 | AA79: 83.7589 | AB79: =VLOOKUP(C:C,成绩!B:G,6,0) -> 47.3684% | AC79: 544 | AD79: =VLOOKUP(C:C,成绩!B:H,7,0) -> 1
A80: 56 | B80: 42 | C80: 2022010469 | D80: 许馨月 | E80: 化工22-3班 | F80: =VLOOKUP(C:C,德育基础分!A79:D179,4,0) -> 100.0000 | G80: 90.0000 | H80: 60.0000 | I80: 36.0000 | J80: =VLOOKUP(C:C,'德育加分 (2)'!C:AC,27,0) -> 9.3300 | K80: =VLOOKUP(C:C,德育扣分!A78:F179,6,0) -> 2.0000 | L80: 103.3300 | M80: 20.6660 | N80: =VLOOKUP(C:C,成绩!B77:D178,3,0) -> 78.2800 | O80: =VLOOKUP(C:C,成绩!B:E,4,0) -> 75.0000 | P80: 77.6240 | Q80: 0.0000 | R80: 77.6240 | S80: 54.3368 | T80: =VLOOKUP(C:C,成绩!B:F,5,0) -> 90.0000 | U80: 100.0000 | V80: 54.0000 | W80: 40.0000 | X80: =VLOOKUP(C:C,'文体加分 (2)'!C78:O243,13,0) -> 0.0000 | Y80: 94.0000 | Z80: 9.4000 | AA80: 84.4028 | AB80: =VLOOKUP(C:C,成绩!B:G,6,0) -> 52.6316% | AC80: 482 | AD80: =VLOOKUP(C:C,成绩!B:H,7,0) -> 0
A81: 12 | B81: 64 | C81: 2022010471 | D81: 张支铭 | E81: 化工22-3班 | F81: =VLOOKUP(C:C,德育基础分!A80:D180,4,0) -> 100.0000 | G81: 90.0000 | H81: 60.0000 | I81: 36.0000 | J81: =VLOOKUP(C:C,'德育加分 (2)'!C:AC,27,0) -> 9.3640 | K81: =VLOOKUP(C:C,德育扣分!A79:F180,6,0) -> 0.0000 | L81: 105.3640 | M81: 21.0728 | N81: =VLOOKUP(C:C,成绩!B78:D179,3,0) -> 74.5333 | O81: =VLOOKUP(C:C,成绩!B:E,4,0) -> 85.0000 | P81: 76.6267 | Q81: =VLOOKUP(D:D,智育加分汇总!F:G,2,0) -> 18.0000 | R81: 94.6267 | S81: 66.2387 | T81: =VLOOKUP(C:C,成绩!B:F,5,0) -> 90.0000 | U81: 100.0000 | V81: 54.0000 | W81: 40.0000 | X81: =VLOOKUP(C:C,'文体加分 (2)'!C79:O244,13,0) -> 0.0000 | Y81: 94.0000 | Z81: 9.4000 | AA81: 96.7115 | AB81: =VLOOKUP(C:C,成绩!B:G,6,0) -> 52.6316% | AC81: 536 | AD81: =VLOOKUP(C:C,成绩!B:H,7,0) -> 0
A82: 30 | B82: 11 | C82: 2022010500 | D82: 马倩 | E82: 化工22-3班 | F82: =VLOOKUP(C:C,德育基础分!A81:D181,4,0) -> 100.0000 | G82: 90.0000 | H82: 60.0000 | I82: 36.0000 | J82: =VLOOKUP(C:C,'德育加分 (2)'!C:AC,27,0) -> 4.0000 | K82: =VLOOKUP(C:C,德育扣分!A80:F181,6,0) -> 0.0000 | L82: 100.0000 | M82: 20.0000 | N82: =VLOOKUP(C:C,成绩!B79:D180,3,0) -> 85.9867 | O82: =VLOOKUP(C:C,成绩!B:E,4,0) -> 90.5000 | P82: 86.8893 | Q82: 0.0000 | R82: 86.8893 | S82: 60.8225 | T82: =VLOOKUP(C:C,成绩!B:F,5,0) -> 85.5000 | U82: 100.0000 | V82: =T82*0.6 -> 51.3000 | W82: =U82*0.4 -> 40.0000 | X82: =VLOOKUP(C:C,'文体加分 (2)'!C80:O245,13,0) -> 0.0000 | Y82: 91.3000 | Z82: 9.1300 | AA82: 89.9525 | AB82: =VLOOKUP(C:C,成绩!B:G,6,0) -> 94.7368% | AC82: 545 | AD82: =VLOOKUP(C:C,成绩!B:H,7,0) -> 0
A83: 37 | B83: 31 | C83: 2022010501 | D83: 屈芷晴 | E83: 化工22-3班 | F83: =VLOOKUP(C:C,德育基础分!A82:D182,4,0) -> 100.0000 | G83: 90.0000 | H83: 60.0000 | I83: 36.0000 | J83: =VLOOKUP(C:C,'德育加分 (2)'!C:AC,27,0) -> 1.0000 | K83: =VLOOKUP(C:C,德育扣分!A81:F182,6,0) -> 0.0000 | L83: 97.0000 | M83: 19.4000 | N83: =VLOOKUP(C:C,成绩!B80:D181,3,0) -> 81.1733 | O83: =VLOOKUP(C:C,成绩!B:E,4,0) -> 89.0000 | P83: 82.7387 | Q83: 0.0000 | R83: 82.7387 | S83: 57.9171 | T83: =VLOOKUP(C:C,成绩!B:F,5,0) -> 99.0000 | U83: 100.0000 | V83: 59.4000 | W83: 40.0000 | X83: =VLOOKUP(C:C,'文体加分 (2)'!C81:O246,13,0) -> 14.0000 | Y83: 113.4000 | Z83: 11.3400 | AA83: 88.6571 | AB83: =VLOOKUP(C:C,成绩!B:G,6,0) -> 63.1579% | AC83: 495 | AD83: =VLOOKUP(C:C,成绩!B:H,7,0) -> 0
A84: 70 | B84: 57 | C84: 2022010421 | D84: 季磊 | E84: 化工22-3班 | F84: =VLOOKUP(C:C,德育基础分!A83:D183,4,0) -> 100.0000 | G84: 90.0000 | H84: 60.0000 | I84: 36.0000 | J84: =VLOOKUP(C:C,'德育加分 (2)'!C:AC,27,0) -> 0.0000 | K84: =VLOOKUP(C:C,德育扣分!A82:F183,6,0) -> 0.0000 | L84: 96.0000 | M84: 19.2000 | N84: =VLOOKUP(C:C,成绩!B81:D182,3,0) -> 76.0133 | O84: =VLOOKUP(C:C,成绩!B:E,4,0) -> 72.0000 | P84: 75.2107 | Q84: 0.0000 | R84: 75.2107 | S84: 52.6475 | T84: =VLOOKUP(C:C,成绩!B:F,5,0) -> 83.5000 | U84: 100.0000 | V84: 50.1000 | W84: 40.0000 | X84: =VLOOKUP(C:C,'文体加分 (2)'!C82:O247,13,0) -> 0.0000 | Y84: 90.1000 | Z84: 9.0100 | AA84: 80.8575 | AB84: =VLOOKUP(C:C,成绩!B:G,6,0) -> 47.3684% | AC84: 535 | AD84: =VLOOKUP(C:C,成绩!B:H,7,0) -> 0
A85: 76 | B85: 72 | C85: 2022010423 | D85: 汪礼俊 | E85: 化工22-3班 | F85: =VLOOKUP(C:C,德育基础分!A84:D184,4,0) -> 100.0000 | G85: 90.0000 | H85: 60.0000 | I85: 36.0000 | J85: =VLOOKUP(C:C,'德育加分 (2)'!C:AC,27,0) -> 0.0000 | K85: =VLOOKUP(C:C,德育扣分!A83:F184,6,0) -> 0.0000 | L85: 96.0000 | M85: 19.2000 | N85: =VLOOKUP(C:C,成绩!B82:D183,3,0) -> 72.6267 | O85: =VLOOKUP(C:C,成绩!B:E,4,0) -> 76.0000 | P85: 73.3013 | Q85: 0.0000 | R85: 73.3013 | S85: 51.3109 | T85: =VLOOKUP(C:C,成绩!B:F,5,0) -> 84.0000 | U85: 100.0000 | V85: 50.4000 | W85: 40.0000 | X85: =VLOOKUP(C:C,'文体加分 (2)'!C83:O248,13,0) -> 0.0000 | Y85: 90.4000 | Z85: 9.0400 | AA85: 79.5509 | AB85: =VLOOKUP(C:C,成绩!B:G,6,0) -> 42.1053% | AC85: 492 | AD85: =VLOOKUP(C:C,成绩!B:H,7,0) -> 0
A86: 78 | B86: 74 | C86: 2022010424 | D86: 席振昌 | E86: 化工22-3班 | F86: =VLOOKUP(C:C,德育基础分!A85:D185,4,0) -> 99.5311 | G86: 90.0000 | H86: 59.7187 | I86: 36.0000 | J86: =VLOOKUP(C:C,'德育加分 (2)'!C:AC,27,0) -> 0.0000 | K86: =VLOOKUP(C:C,德育扣分!A84:F185,6,0) -> 0.0000 | L86: 95.7187 | M86: 19.1437 | N86: =VLOOKUP(C:C,成绩!B83:D184,3,0) -> 72.0533 | O86: =VLOOKUP(C:C,成绩!B:E,4,0) -> 79.0000 | P86: 73.4427 | Q86: 0.0000 | R86: 73.4427 | S86: 51.4099 | T86: =VLOOKUP(C:C,成绩!B:F,5,0) -> 82.5000 | U86: 100.0000 | V86: 49.5000 | W86: 40.0000 | X86: =VLOOKUP(C:C,'文体加分 (2)'!C84:O249,13,0) -> 0.0000 | Y86: 89.5000 | Z86: 8.9500 | AA86: 79.5036 | AB86: =VLOOKUP(C:C,成绩!B:G,6,0) -> 36.8421% | AC86: 582 | AD86: =VLOOKUP(C:C,成绩!B:H,7,0) -> 0
A87: 94 | B87: 96 | C87: 2022010425 | D87: 闫杨奇昊 | E87: 化工22-3班 | F87: =VLOOKUP(C:C,德育基础分!A86:D186,4,0) -> 100.0000 | G87: 90.0000 | H87: 60.0000 | I87: 36.0000 | J87: =VLOOKUP(C:C,'德育加分 (2)'!C:AC,27,0) -> 0.0000 | K87: =VLOOKUP(C:C,德育扣分!A85:F186,6,0) -> 0.0000 | L87: 96.0000 | M87: 19.2000 | N87: =VLOOKUP(C:C,成绩!B84:D185,3,0) -> 66.2267 | O87: =VLOOKUP(C:C,成绩!B:E,4,0) -> 71.0000 | P87: 67.1813 | Q87: 0.0000 | R87: 67.1813 | S87: 47.0269 | T87: =VLOOKUP(C:C,成绩!B:F,5,0) -> 72.0000 | U87: 100.0000 | V87: 43.2000 | W87: 40.0000 | X87: =VLOOKUP(C:C,'文体加分 (2)'!C85:O250,13,0) -> 0.0000 | Y87: 83.2000 | Z87: 8.3200 | AA87: 74.5469 | AB87: =VLOOKUP(C:C,成绩!B:G,6,0) -> 21.0526% | AC87: 495 | AD87: =VLOOKUP(C:C,成绩!B:H,7,0) -> 2
A88: 80 | B88: 68 | C88: 2022010473 | D88: 刘源兴 | E88: 化工22-3班 | F88: =VLOOKUP(C:C,德育基础分!A87:D187,4,0) -> 99.6874 | G88: 90.0000 | H88: 59.8124 | I88: 36.0000 | J88: =VLOOKUP(C:C,'德育加分 (2)'!C:AC,27,0) -> 0.0000 | K88: =VLOOKUP(C:C,德育扣分!A86:F187,6,0) -> 0.0000 | L88: 95.8124 | M88: 19.1625 | N88: =VLOOKUP(C:C,成绩!B85:D186,3,0) -> 73.6133 | O88: =VLOOKUP(C:C,成绩!B:E,4,0) -> 73.0000 | P88: 73.4907 | Q88: 0.0000 | R88: 73.4907 | S88: 51.4435 | T88: =VLOOKUP(C:C,成绩!B:F,5,0) -> 79.5000 | U88: 100.0000 | V88: 47.7000 | W88: 40.0000 | X88: =VLOOKUP(C:C,'文体加分 (2)'!C86:O251,13,0) -> 0.0000 | Y88: 87.7000 | Z88: 8.7700 | AA88: 79.3760 | AB88: =VLOOKUP(C:C,成绩!B:G,6,0) -> 36.8421% | AC88: 464 | AD88: =VLOOKUP(C:C,成绩!B:H,7,0) -> 1
A89: 100 | B89: 92 | C89: 2022010476 | D89: 何岩松 | E89: 化工22-3班 | F89: =VLOOKUP(C:C,德育基础分!A88:D188,4,0) -> 99.6874 | G89: 90.0000 | H89: 59.8124 | I89: 36.0000 | J89: =VLOOKUP(C:C,'德育加分 (2)'!C:AC,27,0) -> 0.0000 | K89: =VLOOKUP(C:C,德育扣分!A87:F188,6,0) -> 0.0000 | L89: 95.8124 | M89: 19.1625 | N89: =VLOOKUP(C:C,成绩!B86:D187,3,0) -> 68.6000 | O89: =VLOOKUP(C:C,成绩!B:E,4,0) -> 0.0000 | P89: 54.8800 | Q89: 0.0000 | R89: 54.8800 | S89: 38.4160 | T89: =VLOOKUP(C:C,成绩!B:F,5,0) -> 82.5000 | U89: 100.0000 | V89: 49.5000 | W89: 40.0000 | X89: =VLOOKUP(C:C,'文体加分 (2)'!C87:O252,13,0) -> 0.0000 | Y89: 89.5000 | Z89: 8.9500 | AA89: 66.5285 | AB89: =VLOOKUP(C:C,成绩!B:G,6,0) -> 30.0000% | AC89: 432 | AD89: =VLOOKUP(C:C,成绩!B:H,7,0) -> 4
A90: 32 | B90: 55 | C90: 2022010477 | D90: 张帅 | E90: 化工22-3班 | F90: =VLOOKUP(C:C,德育基础分!A89:D189,4,0) -> 100.0000 | G90: 90.0000 | H90: 60.0000 | I90: 36.0000 | J90: =VLOOKUP(C:C,'德育加分 (2)'!C:AC,27,0) -> 10.0633 | K90: =VLOOKUP(C:C,德育扣分!A88:F189,6,0) -> 0.0000 | L90: 106.0633 | M90: 21.2127 | N90: =VLOOKUP(C:C,成绩!B87:D188,3,0) -> 76.1867 | O90: =VLOOKUP(C:C,成绩!B:E,4,0) -> 82.0000 | P90: 77.3493 | Q90: =VLOOKUP(D:D,智育加分汇总!F:G,2,0) -> 6.6667 | R90: 84.0160 | S90: 58.8112 | T90: =VLOOKUP(C:C,成绩!B:F,5,0) -> 97.5000 | U90: 100.0000 | V90: 58.5000 | W90: 40.0000 | X90: =VLOOKUP(C:C,'文体加分 (2)'!C88:O253,13,0) -> 0.0000 | Y90: 98.5000 | Z90: 9.8500 | AA90: 89.8739 | AB90: =VLOOKUP(C:C,成绩!B:G,6,0) -> 52.6316% | AC90: 462 | AD90: =VLOOKUP(C:C,成绩!B:H,7,0) -> 1
A91: 38 | B91: 23 | C91: 2022010478 | D91: 李煌 | E91: 化工22-3班 | F91: =VLOOKUP(C:C,德育基础分!A90:D190,4,0) -> 99.6874 | G91: 90.0000 | H91: 59.8124 | I91: 36.0000 | J91: =VLOOKUP(C:C,'德育加分 (2)'!C:AC,27,0) -> 3.6660 | K91: =VLOOKUP(C:C,德育扣分!A89:F190,6,0) -> 0.0000 | L91: 99.4784 | M91: 19.8957 | N91: =VLOOKUP(C:C,成绩!B88:D189,3,0) -> 83.7733 | O91: =VLOOKUP(C:C,成绩!B:E,4,0) -> 0.0000 | P91: 67.0187 | Q91: =VLOOKUP(D:D,智育加分汇总!F:G,2,0) -> 18.0000 | R91: 85.0187 | S91: 59.5131 | T91: =VLOOKUP(C:C,成绩!B:F,5,0) -> 83.5000 | U91: 100.0000 | V91: 50.1000 | W91: 40.0000 | X91: =VLOOKUP(C:C,'文体加分 (2)'!C89:O254,13,0) -> 0.0000 | Y91: 90.1000 | Z91: 9.0100 | AA91: 88.4188 | AB91: =VLOOKUP(C:C,成绩!B:G,6,0) -> 84.2105% | AC91: 532 | AD91: =VLOOKUP(C:C,成绩!B:H,7,0) -> 0
A92: 73 | B92: 69 | C92: 2022010479 | D92: 杨广军 | E92: 化工22-3班 | F92: =VLOOKUP(C:C,德育基础分!A91:D191,4,0) -> 100.0000 | G92: 90.0000 | H92: 60.0000 | I92: 36.0000 | J92: =VLOOKUP(C:C,'德育加分 (2)'!C:AC,27,0) -> 2.0000 | K92: =VLOOKUP(C:C,德育扣分!A90:F191,6,0) -> 0.0000 | L92: 98.0000 | M92: 19.6000 | N92: =VLOOKUP(C:C,成绩!B89:D190,3,0) -> 72.9600 | O92: =VLOOKUP(C:C,成绩!B:E,4,0) -> 76.0000 | P92: 73.5680 | Q92: 0.0000 | R92: 73.5680 | S92: 51.4976 | T92: =VLOOKUP(C:C,成绩!B:F,5,0) -> 87.5000 | U92: 100.0000 | V92: 52.5000 | W92: 40.0000 | X92: =VLOOKUP(C:C,'文体加分 (2)'!C90:O255,13,0) -> 0.0000 | Y92: 92.5000 | Z92: 9.2500 | AA92: 80.3476 | AB92: =VLOOKUP(C:C,成绩!B:G,6,0) -> 42.1053% | AC92: 未通过 | AD92: =VLOOKUP(C:C,成绩!B:H,7,0) -> 0
A93: 99 | B93: 87 | C93: 2022010480 | D93: 杨明涛 | E93: 化工22-3班 | F93: =VLOOKUP(C:C,德育基础分!A92:D192,4,0) -> 100.0000 | G93: 90.0000 | H93: 60.0000 | I93: 36.0000 | J93: =VLOOKUP(C:C,'德育加分 (2)'!C:AC,27,0) -> 0.0000 | K93: =VLOOKUP(C:C,德育扣分!A91:F192,6,0) -> 0.0000 | L93: 96.0000 | M93: 19.2000 | N93: =VLOOKUP(C:C,成绩!B90:D191,3,0) -> 68.9600 | O93: =VLOOKUP(C:C,成绩!B:E,4,0) -> 0.0000 | P93: 55.1680 | Q93: 0.0000 | R93: 55.1680 | S93: 38.6176 | T93: =VLOOKUP(C:C,成绩!B:F,5,0) -> 86.0000 | U93: 100.0000 | V93: 51.6000 | W93: 40.0000 | X93: =VLOOKUP(C:C,'文体加分 (2)'!C91:O256,13,0) -> 0.0000 | Y93: 91.6000 | Z93: 9.1600 | AA93: 66.9776 | AB93: =VLOOKUP(C:C,成绩!B:G,6,0) -> 31.5789% | AC93: 未通过 | AD93: =VLOOKUP(C:C,成绩!B:H,7,0) -> 3
A94: 61 | B94: 29 | C94: 2022010482 | D94: 傅世坤 | E94: 化工22-3班 | F94: =VLOOKUP(C:C,德育基础分!A93:D193,4,0) -> 99.8437 | G94: 90.0000 | H94: 59.9062 | I94: 36.0000 | J94: =VLOOKUP(C:C,'德育加分 (2)'!C:AC,27,0) -> 5.5340 | K94: =VLOOKUP(C:C,德育扣分!A92:F193,6,0) -> 10.0000 | L94: 91.4402 | M94: 18.2880 | N94: =VLOOKUP(C:C,成绩!B91:D192,3,0) -> 81.7333 | O94: =VLOOKUP(C:C,成绩!B:E,4,0) -> 73.2000 | P94: 80.0267 | Q94: 0.0000 | R94: 80.0267 | S94: 56.0187 | T94: =VLOOKUP(C:C,成绩!B:F,5,0) -> 77.0000 | U94: 100.0000 | V94: 46.2000 | W94: 40.0000 | X94: =VLOOKUP(C:C,'文体加分 (2)'!C92:O257,13,0) -> 0.0000 | Y94: 86.2000 | Z94: 8.6200 | AA94: 82.9267 | AB94: =VLOOKUP(C:C,成绩!B:G,6,0) -> 73.6842% | AC94: 532 | AD94: 1
A95: 90 | B95: 53 | C95: 2022010483 | D95: 李浩永 | E95: 化工22-3班 | F95: =VLOOKUP(C:C,德育基础分!A94:D194,4,0) -> 100.0000 | G95: 90.0000 | H95: 60.0000 | I95: 36.0000 | J95: =VLOOKUP(C:C,'德育加分 (2)'!C:AC,27,0) -> 3.0000 | K95: =VLOOKUP(C:C,德育扣分!A93:F194,6,0) -> 0.0000 | L95: 99.0000 | M95: 19.8000 | N95: =VLOOKUP(C:C,成绩!B92:D193,3,0) -> 76.3200 | O95: =VLOOKUP(C:C,成绩!B:E,4,0) -> 50.0000 | P95: 71.0560 | Q95: 0.0000 | R95: 71.0560 | S95: 49.7392 | T95: =VLOOKUP(C:C,成绩!B:F,5,0) -> 65.5000 | U95: 100.0000 | V95: 39.3000 | W95: 40.0000 | X95: =VLOOKUP(C:C,'文体加分 (2)'!C93:O258,13,0) -> 0.0000 | Y95: 79.3000 | Z95: 7.9300 | AA95: 77.4692 | AB95: =VLOOKUP(C:C,成绩!B:G,6,0) -> 57.8947% | AC95: 510 | AD95: 2
A96: 91 | B96: 93 | C96: 2022010487 | D96: 涂景豪 | E96: 化工22-3班 | F96: =VLOOKUP(C:C,德育基础分!A95:D195,4,0) -> 100.0000 | G96: 90.0000 | H96: 60.0000 | I96: 36.0000 | J96: =VLOOKUP(C:C,'德育加分 (2)'!C:AC,27,0) -> 0.0000 | K96: =VLOOKUP(C:C,德育扣分!A94:F195,6,0) -> 0.0000 | L96: 96.0000 | M96: 19.2000 | N96: =VLOOKUP(C:C,成绩!B93:D194,3,0) -> 68.5200 | O96: =VLOOKUP(C:C,成绩!B:E,4,0) -> 74.6667 | P96: 69.7493 | Q96: 0.0000 | R96: 69.7493 | S96: 48.8245 | T96: =VLOOKUP(C:C,成绩!B:F,5,0) -> 79.0000 | U96: 100.0000 | V96: 47.4000 | W96: 40.0000 | X96: =VLOOKUP(C:C,'文体加分 (2)'!C94:O259,13,0) -> 0.0000 | Y96: 87.4000 | Z96: 8.7400 | AA96: 76.7645 | AB96: =VLOOKUP(C:C,成绩!B:G,6,0) -> 15.7895% | AC96: 581 | AD96: =VLOOKUP(C:C,成绩!B:H,7,0) -> 1
A97: 54 | B97: 82 | C97: 2022010489 | D97: 谢林洲 | E97: 化工22-3班 | F97: =VLOOKUP(C:C,德育基础分!A96:D196,4,0) -> 100.0000 | G97: 90.0000 | H97: 60.0000 | I97: 36.0000 | J97: =VLOOKUP(C:C,'德育加分 (2)'!C:AC,27,0) -> 4.6000 | K97: =VLOOKUP(C:C,德育扣分!A95:F196,6,0) -> 0.0000 | L97: 100.6000 | M97: 20.1200 | N97: =VLOOKUP(C:C,成绩!B94:D195,3,0) -> 70.4824 | O97: =VLOOKUP(C:C,成绩!B:E,4,0) -> 83.5000 | P97: 73.0859 | Q97: =VLOOKUP(D:D,智育加分汇总!F:G,2,0) -> 5.0000 | R97: 78.0859 | S97: 54.6601 | T97: =VLOOKUP(C:C,成绩!B:F,5,0) -> 91.5000 | U97: 100.0000 | V97: 54.9000 | W97: 40.0000 | X97: =VLOOKUP(C:C,'文体加分 (2)'!C95:O260,13,0) -> 6.0000 | Y97: 100.9000 | Z97: 10.0900 | AA97: 84.8701 | AB97: =VLOOKUP(C:C,成绩!B:G,6,0) -> 30.0000% | AC97: 568 | AD97: =VLOOKUP(C:C,成绩!B:H,7,0) -> 1
A98: 60 | B98: 59 | C98: 2022010490 | D98: 严臻睿 | E98: 化工22-3班 | F98: =VLOOKUP(C:C,德育基础分!A97:D197,4,0) -> 100.0000 | G98: 90.0000 | H98: 60.0000 | I98: 36.0000 | J98: =VLOOKUP(C:C,'德育加分 (2)'!C:AC,27,0) -> 6.0000 | K98: =VLOOKUP(C:C,德育扣分!A96:F197,6,0) -> 0.0000 | L98: 102.0000 | M98: 20.4000 | N98: =VLOOKUP(C:C,成绩!B95:D196,3,0) -> 75.6667 | O98: =VLOOKUP(C:C,成绩!B:E,4,0) -> 85.0000 | P98: 77.5333 | Q98: 0.0000 | R98: 77.5333 | S98: 54.2733 | T98: =VLOOKUP(C:C,成绩!B:F,5,0) -> 80.5000 | U98: 100.0000 | V98: 48.3000 | W98: 40.0000 | X98: =VLOOKUP(C:C,'文体加分 (2)'!C96:O261,13,0) -> 0.0000 | Y98: 88.3000 | Z98: 8.8300 | AA98: 83.5033 | AB98: =VLOOKUP(C:C,成绩!B:G,6,0) -> 42.1053% | AC98: 644 | AD98: =VLOOKUP(C:C,成绩!B:H,7,0) -> 0
A99: 84 | B99: 70 | C99: 2022010504 | D99: 李宇翔 | E99: 化工22-3班 | F99: =VLOOKUP(C:C,德育基础分!A98:D198,4,0) -> 100.0000 | G99: 90.0000 | H99: 60.0000 | I99: 36.0000 | J99: =VLOOKUP(C:C,'德育加分 (2)'!C:AC,27,0) -> 0.0000 | K99: =VLOOKUP(C:C,德育扣分!A97:F198,6,0) -> 0.0000 | L99: 96.0000 | M99: 19.2000 | N99: =VLOOKUP(C:C,成绩!B96:D197,3,0) -> 72.8133 | O99: =VLOOKUP(C:C,成绩!B:E,4,0) -> 72.5000 | P99: 72.7507 | Q99: 0.0000 | R99: 72.7507 | S99: 50.9255 | T99: =VLOOKUP(C:C,成绩!B:F,5,0) -> 73.5000 | U99: 100.0000 | V99: 44.1000 | W99: 40.0000 | X99: =VLOOKUP(C:C,'文体加分 (2)'!C97:O262,13,0) -> 0.0000 | Y99: 84.1000 | Z99: 8.4100 | AA99: 78.5355 | AB99: =VLOOKUP(C:C,成绩!B:G,6,0) -> 21.0526% | AC99: 477 | AD99: =VLOOKUP(C:C,成绩!B:H,7,0) -> 1
A100: 51 | B100: 81 | C100: 2022010506 | D100: 张席地 | E100: 化工22-3班 | F100: =VLOOKUP(C:C,德育基础分!A99:D199,4,0) -> 100.0000 | G100: 90.0000 | H100: 60.0000 | I100: 36.0000 | J100: =VLOOKUP(C:C,'德育加分 (2)'!C:AC,27,0) -> 7.2000 | K100: =VLOOKUP(C:C,德育扣分!A98:F199,6,0) -> 0.0000 | L100: 103.2000 | M100: 20.6400 | N100: =VLOOKUP(C:C,成绩!B97:D198,3,0) -> 70.6322 | O100: =VLOOKUP(C:C,成绩!B:E,4,0) -> 82.5000 | P100: 73.0057 | Q100: =VLOOKUP(D:D,智育加分汇总!F:G,2,0) -> 4.0000 | R100: 77.0057 | S100: 53.9040 | T100: =VLOOKUP(C:C,成绩!B:F,5,0) -> 99.0000 | U100: 100.0000 | V100: 59.4000 | W100: 40.0000 | X100: =VLOOKUP(C:C,'文体加分 (2)'!C98:O263,13,0) -> 7.0000 | Y100: 106.4000 | Z100: 10.6400 | AA100: 85.1840 | AB100: =VLOOKUP(C:C,成绩!B:G,6,0) -> 45.0000% | AC100: 528 | AD100: =VLOOKUP(C:C,成绩!B:H,7,0) -> 1
A101: 93 | B101: 90 | C101: 2022010507 | D101: 马凯园 | E101: 化工22-3班 | F101: =VLOOKUP(C:C,德育基础分!A100:D200,4,0) -> 100.0000 | G101: 90.0000 | H101: 60.0000 | I101: 36.0000 | J101: =VLOOKUP(C:C,'德育加分 (2)'!C:AC,27,0) -> 0.0000 | K101: =VLOOKUP(C:C,德育扣分!A99:F200,6,0) -> 0.0000 | L101: 96.0000 | M101: 19.2000 | N101: =VLOOKUP(C:C,成绩!B98:D199,3,0) -> 68.8133 | O101: =VLOOKUP(C:C,成绩!B:E,4,0) -> 60.5000 | P101: 67.1507 | Q101: 0.0000 | R101: 67.1507 | S101: 47.0055 | T101: =VLOOKUP(C:C,成绩!B:F,5,0) -> 75.0000 | U101: 100.0000 | V101: 45.0000 | W101: 40.0000 | X101: =VLOOKUP(C:C,'文体加分 (2)'!C99:O264,13,0) -> 0.0000 | Y101: 85.0000 | Z101: 8.5000 | AA101: 74.7055 | AB101: =VLOOKUP(C:C,成绩!B:G,6,0) -> 5.2632% | AC101: 512 | AD101: =VLOOKUP(C:C,成绩!B:H,7,0) -> 0
A102: 17 | B102: 28 | C102: 2022011451 | D102: 喻治坤 | E102: 化工22-3班 | F102: =VLOOKUP(C:C,德育基础分!A101:D201,4,0) -> 100.0000 | G102: 90.0000 | H102: 60.0000 | I102: 36.0000 | J102: =VLOOKUP(C:C,'德育加分 (2)'!C:AC,27,0) -> 1.0000 | K102: =VLOOKUP(C:C,德育扣分!A100:F201,6,0) -> 0.0000 | L102: 97.0000 | M102: 19.4000 | N102: =VLOOKUP(C:C,成绩!B99:D200,3,0) -> 82.0676 | O102: =VLOOKUP(C:C,成绩!B:E,4,0) -> 74.3333 | P102: 80.5207 | Q102: =VLOOKUP(D:D,智育加分汇总!F:G,2,0) -> 13.6700 | R102: 94.1907 | S102: 65.9335 | T102: =VLOOKUP(C:C,成绩!B:F,5,0) -> 81.5000 | U102: 100.0000 | V102: 48.9000 | W102: 40.0000 | X102: =VLOOKUP(C:C,'文体加分 (2)'!C100:O265,13,0) -> 0.0000 | Y102: 88.9000 | Z102: 8.8900 | AA102: 94.2235 | AB102: =VLOOKUP(C:C,成绩!B:G,6,0) -> 75.0000% | AC102: 458 | AD102: =VLOOKUP(C:C,成绩!B:H,7,0) -> 0
A103: 20 | B103: 22 | C103: 2022010837 | D103: 陈伟玄 | E103: 化工22-3班 | F103: =VLOOKUP(C:C,德育基础分!A102:D202,4,0) -> 100.0000 | G103: 90.0000 | H103: 60.0000 | I103: 36.0000 | J103: =VLOOKUP(C:C,'德育加分 (2)'!C:AC,27,0) -> 0.0000 | K103: 0.0000 | L103: 96.0000 | M103: 19.2000 | N103: =VLOOKUP(C:C,成绩!B100:D201,3,0) -> 83.9146 | O103: =VLOOKUP(C:C,成绩!B:E,4,0) -> 79.5000 | P103: 83.0317 | Q103: =VLOOKUP(D:D,智育加分汇总!F:G,2,0) -> 9.0000 | R103: 92.0317 | S103: 64.4222 | T103: =VLOOKUP(C:C,成绩!B:F,5,0) -> 97.5000 | U103: 100.0000 | V103: 58.5000 | W103: 40.0000 | X103: =VLOOKUP(C:C,'文体加分 (2)'!C101:O266,13,0) -> 0.0000 | Y103: 98.5000 | Z103: 9.8500 | AA103: 93.4722 | AB103: =VLOOKUP(C:C,成绩!B:G,6,0) -> 85.7143% | AC103: 503 | AD103: =VLOOKUP(C:C,成绩!B:H,7,0) -> 0
A104: 67 | B104: 61 | C104: 2022010547 | D104: 黄一翀 | E104: 化工22-3班 | F104: =VLOOKUP(C:C,德育基础分!A103:D203,4,0) -> 99.7187 | G104: 90.0000 | H104: 59.8312 | I104: 36.0000 | J104: =VLOOKUP(C:C,'德育加分 (2)'!C:AC,27,0) -> 2.0000 | K104: =VLOOKUP(C:C,德育扣分!A102:F203,6,0) -> 0.0000 | L104: 97.8312 | M104: 19.5662 | N104: =VLOOKUP(C:C,成绩!B101:D202,3,0) -> 75.1733 | O104: =VLOOKUP(C:C,成绩!B:E,4,0) -> 79.0000 | P104: 75.9387 | Q104: 0.0000 | R104: 75.9387 | S104: 53.1571 | T104: =VLOOKUP(C:C,成绩!B:F,5,0) -> 87.0000 | U104: 100.0000 | V104: 52.2000 | W104: 40.0000 | X104: =VLOOKUP(C:C,'文体加分 (2)'!C102:O267,13,0) -> 0.0000 | Y104: 92.2000 | Z104: 9.2200 | AA104: 81.9433 | AB104: =VLOOKUP(C:C,成绩!B:G,6,0) -> 42.1053% | AC104: 526 | AD104: =VLOOKUP(C:C,成绩!B:H,7,0) -> 0

Sheet 成绩
A1: 序号 | B1: 学号 | C1: 姓名 | D1: 必修课加权平均分 | E1: 选修课加权平均分 | F1: 体育课成绩 | G1: 必修课优良率 | H1: 挂科数
A2: 1 | B2: 2022010364 | C2: 张姝瑶 | D2: 84.23 | E2: 82.50 | F2: 90.00 | G2: 78.95% | H2: 0
A3: 2 | B3: 2022010367 | C3: 周芹 | D3: 65.64 | E3: 89.00 | F3: 92.50 | G3: 35.00% | H3: 4
A4: 3 | B4: 2022010369 | C4: 李越 | D4: 83.63 | E4: 78.50 | F4: 90.00 | G4: 73.68% | H4: 0
A5: 4 | B5: 2022010370 | C5: 马海霞 | D5: 70.84 | E5: 72.00 | F5: 75.00 | G5: 28.57% | H5: 0
A6: 5 | B6: 2022010371 | C6: 何丽鸿 | D6: 79.43 | E6: 80.25 | F6: 90.50 | G6: 55.00% | H6: 0
A7: 6 | B7: 2022010372 | C7: 史佳悦 | D7: 80.01 | E7: 87.33 | F7: 87.00 | G7: 63.16% | H7: 0
A8: 7 | B8: 2022010373 | C8: 王晴宇 | D8: 88.52 | E8: 90.67 | F8: 92.00 | G8: 89.47% | H8: 0
A9: 8 | B9: 2022010374 | C9: 袁佳怡 | D9: 88.03 | E9: 86.50 | F9: 95.50 | G9: 94.74% | H9: 0
A10: 9 | B10: 2022012311 | C10: 布威麦尔耶姆·麦麦提图尔荪 | D10: 72.31 | E10: 78.00 | F10: 84.00 | G10: 42.11% | H10: 1
A11: 10 | B11: 2022010397 | C11: 李安然 | D11: 84.91 | E11: 81.50 | F11: 86.50 | G11: 94.74% | H11: 0
A12: 11 | B12: 2022010100 | C12: 智玉轩 | D12: 86.55 | E12: 82.00 | F12: 93.50 | G12: 95.24% | H12: 0
A13: 12 | B13: 2022010377 | C13: 刘超 | D13: 75.80 | E13: 73.00 | F13: 76.00 | G13: 42.11% | H13: 0
A14: 13 | B14: 2022010379 | C14: 孙科 | D14: 68.62 | E14: 84.67 | F14: 82.00 | G14: 40.00% | H14: 3
A15: 14 | B15: 2022010382 | C15: 张铸 | D15: 78.22 | E15: 74.67 | F15: 87.50 | G15: 60.00% | H15: 0
A16: 15 | B16: 2022010383 | C16: 刘子瑞 | D16: 77.61 | E16: 86.00 | F16: 81.00 | G16: 68.42% | H16: 1
A17: 16 | B17: 2022010384 | C17: 吴立新 | D17: 87.80 | E17: 80.00 | F17: 83.50 | G17: 94.74% | H17: 0
A18: 17 | B18: 2022010385 | C18: 龚泽恩 | D18: 79.84 | E18: 80.00 | F18: 87.00 | G18: 63.16% | H18: 0
A19: 18 | B19: 2022010386 | C19: 李陶然 | D19: 78.17 | E19: 70.50 | F19: 75.00 | G19: 45.00% | H19: 1
A20: 19 | B20: 2022010389 | C20: 牛浩镔 | D20: 79.70 | E20: 78.00 | F20: 75.00 | G20: 60.00% | H20: 0
A21: 20 | B21: 2022010390 | C21: 申溱 | D21: 82.99 | E21: 87.00 | F21: 82.50 | G21: 78.95% | H21: 1
A22: 21 | B22: 2022010392 | C22: 吴照飞 | D22: 84.76 | E22: 0.00 | F22: 87.50 | G22: 80.00% | H22: 0
A23: 22 | B23: 2022010394 | C23: 张之翼 | D23: 82.90 | E23: 94.00 | F23: 90.50 | G23: 85.00% | H23: 0
A24: 23 | B24: 2022012312 | C24: 徐峥 | D24: 77.89 | E24: 79.00 | F24: 76.50 | G24: 63.16% | H24: 0
A25: 24 | B25: 2022010409 | C25: 周家艺 | D25: 71.68 | E25: 85.00 | F25: 81.50 | G25: 47.37% | H25: 2
A26: 25 | B26: 2022010411 | C26: 姚锦栋 | D26: 70.77 | E26: 79.00 | F26: 91.50 | G26: 45.00% | H26: 2
A27: 26 | B27: 2022010412 | C27: 代肖彤 | D27: 84.85 | E27: 82.50 | F27: 92.50 | G27: 84.21% | H27: 0
A28: 27 | B28: 2022010413 | C28: 陈恒宇 | D28: 69.28 | E28: 81.50 | F28: 83.00 | G28: 47.37% | H28: 3
A29: 28 | B29: 2022010414 | C29: 潘恒懿 | D29: 77.86 | E29: 80.50 | F29: 75.00 | G29: 38.89% | H29: 1
A30: 29 | B30: 2022010418 | C30: 王明堃 | D30: 69.24 | E30: 78.00 | F30: 80.50 | G30: 40.00% | H30: 2
A31: 30 | B31: 2022010419 | C31: 史国柱 | D31: 74.40 | E31: 84.67 | F31: 84.50 | G31: 57.89% | H31: 1
A32: 31 | B32: 2022010516 | C32: 郭智硕 | D32: 85.01 | E32: 89.33 | F32: 83.50 | G32: 89.47% | H32: 0
A33: 32 | B33: 2022010518 | C33: 贾思远 | D33: 86.00 | E33: 84.33 | F33: 97.00 | G33: 78.95% | H33: 0
A34: 33 | B34: 2022010519 | C34: 李佳俊 | D34: 84.16 | E34: 84.67 | F34: 97.50 | G34: 78.95% | H34: 0
A35: 34 | B35: 2022010622 | C35: 顾凌云 | D35: 68.84 | E35: 0.00 | F35: 79.50 | G35: 27.78% | H35: 2
A36: 35 | B36: 2022010429 | C36: 程实 | D36: 81.44 | E36: 86.00 | F36: 90.00 | G36: 73.68% | H36: 0
A37: 36 | B37: 2022010430 | C37: 马瑜含 | D37: 76.51 | E37: 85.50 | F37: 95.00 | G37: 60.00% | H37: 0
A38: 37 | B38: 2022010431 | C38: 贺婕 | D38: 69.14 | E38: 82.00 | F38: 90.00 | G38: 0.00% | H38: 0
A39: 38 | B39: 2022010432 | C39: 刘雨佳 | D39: 58.81 | E39: 63.00 | F39: 76.50 | G39: 21.05% | H39: 6
A40: 39 | B40: 2022010435 | C40: 秦婧瑶 | D40: 64.12 | E40: 64.00 | F40: 84.50 | G40: 26.32% | H40: 3
A41: 40 | B41: 2022010436 | C41: 孙涵 | D41: 83.01 | E41: 86.50 | F41: 80.50 | G41: 73.68% | H41: 0
A42: 41 | B42: 2022010437 | C42: 王晓弘 | D42: 71.40 | E42: 83.67 | F42: 86.00 | G42: 42.11% | H42: 2
A43: 42 | B43: 2022010438 | C43: 张涵婷 | D43: 77.09 | E43: 69.00 | F43: 89.50 | G43: 52.63% | H43: 0
A44: 43 | B44: 2022010439 | C44: 张心怡 | D44: 77.09 | E44: 88.00 | F44: 90.50 | G44: 52.63% | H44: 0
A45: 44 | B45: 2022010494 | C45: 唐樱菲 | D45: 74.40 | E45: 91.00 | F45: 90.50 | G45: 52.63% | H45: 0
A46: 45 | B46: 2022010499 | C46: 曹炜曼 | D46: 84.41 | E46: 83.00 | F46: 91.00 | G46: 78.95% | H46: 0
A47: 46 | B47: 2022010585 | C47: 崔跃兰 | D47: 79.17 | E47: 87.50 | F47: 92.00 | G47: 68.42% | H47: 0
A48: 47 | B48: 2022010584 | C48: 肖涵芮 | D48: 74.60 | E48: 79.00 | F48: 93.00 | G48: 42.11% | H48: 0
A49: 48 | B49: 2022010408 | C49: 许文轲 | D49: 87.13 | E49: 86.50 | F49: 93.00 | G49: 89.47% | H49: 0
A50: 49 | B50: 2022010422 | C50: 江锦欣 | D50: 84.87 | E50: 85.67 | F50: 83.00 | G50: 94.74% | H50: 0
A51: 50 | B51: 2022010426 | C51: 赵群 | D51: 72.75 | E51: 76.00 | F51: 78.00 | G51: 36.84% | H51: 2
A52: 51 | B52: 2022010427 | C52: 周慧林 | D52: 73.69 | E52: 90.00 | F52: 80.00 | G52: 52.63% | H52: 0
A53: 52 | B53: 2022010440 | C53: 黄颖聪 | D53: 70.43 | E53: 86.50 | F53: 82.00 | G53: 42.11% | H53: 0
A54: 53 | B54: 2022010441 | C54: 白兆 | D54: 79.69 | E54: 83.00 | F54: 93.50 | G54: 63.16% | H54: 0
A55: 54 | B55: 2022010442 | C55: 尹泽 | D55: 68.30 | E55: 84.00 | F55: 80.50 | G55: 33.33% | H55: 3
A56: 55 | B56: 2022010443 | C56: 杨志文 | D56: 75.16 | E56: 90.33 | F56: 76.00 | G56: 31.58% | H56: 1
A57: 56 | B57: 2022010445 | C57: 赵国平 | D57: 76.80 | E57: 85.00 | F57: 75.50 | G57: 42.11% | H57: 0
A58: 57 | B58: 2022010446 | C58: 金立民 | D58: 77.28 | E58: 74.50 | F58: 92.00 | G58: 47.37% | H58: 0
A59: 58 | B59: 2022010448 | C59: 王增智 | D59: 80.04 | E59: 78.33 | F59: 98.00 | G59: 57.89% | H59: 0
A60: 59 | B60: 2022010449 | C60: 郑少杰 | D60: 86.64 | E60: 87.00 | F60: 92.50 | G60: 89.47% | H60: 0
A61: 60 | B61: 2022010452 | C61: 康胜 | D61: 89.71 | E61: 85.00 | F61: 98.00 | G61: 94.74% | H61: 0
A62: 61 | B62: 2022010453 | C62: 李成歆 | D62: 63.40 | E62: 0.00 | F62: 73.00 | G62: 31.58% | H62: 4
A63: 62 | B63: 2022010454 | C63: 孙琪桐 | D63: 84.07 | E63: 85.00 | F63: 86.00 | G63: 89.47% | H63: 0
A64: 63 | B64: 2022010456 | C64: 吴金琪 | D64: 87.92 | E64: 90.00 | F64: 77.00 | G64: 84.21% | H64: 0
A65: 64 | B65: 2022010458 | C65: 赵帅 | D65: 75.42 | E65: 83.00 | F65: 74.00 | G65: 38.89% | H65: 0
A66: 65 | B66: 2022010459 | C66: 朱行健 | D66: 79.08 | E66: 80.00 | F66: 88.50 | G66: 52.63% | H66: 0
A67: 66 | B67: 2022012316 | C67: 陈语 | D67: 66.73 | E67: 81.50 | F67: 94.50 | G67: 35.00% | H67: 3
A68: 67 | B68: 2022010511 | C68: 罗小刚 | D68: 71.14 | E68: 81.00 | F68: 85.00 | G68: 40.00% | H68: 2
A69: 68 | B69: 2022010512 | C69: 陈俊逸 | D69: 79.19 | E69: 87.00 | F69: 70.00 | G69: 57.89% | H69: 1
A70: 69 | B70: 2022010406 | C70: 彭莎莎 | D70: 76.17 | E70: 79.50 | F70: 90.00 | G70: 47.37% | H70: 0
A71: 70 | B71: 2022010407 | C71: 叶海宇 | D71: 87.01 | E71: 88.00 | F71: 98.00 | G71: 89.47% | H71: 0
A72: 71 | B72: 2022010460 | C72: 努尔斯巴·买提库尔班 | D72: 57.87 | E72: 81.00 | F72: 68.00 | G72: 36.84% | H72: 10
A73: 72 | B73: 2022010461 | C73: 吴芷璇 | D73: 79.17 | E73: 83.50 | F73: 96.50 | G73: 52.63% | H73: 0
A74: 73 | B74: 2022010463 | C74: 孙千翔 | D74: 68.88 | E74: 79.33 | F74: 82.50 | G74: 36.84% | H74: 2
A75: 74 | B75: 2022010465 | C75: 陈飞月 | D75: 85.05 | E75: 89.50 | F75: 94.00 | G75: 78.95% | H75: 0
A76: 75 | B76: 2022010467 | C76: 石彩君 | D76: 76.24 | E76: 83.33 | F76: 89.50 | G76: 42.11% | H76: 0
A77: 76 | B77: 2022010468 | C77: 吴忆 | D77: 71.16 | E77: 70.00 | F77: 82.00 | G77: 47.37% | H77: 1
A78: 77 | B78: 2022010469 | C78: 许馨月 | D78: 78.28 | E78: 75.00 | F78: 90.00 | G78: 52.63% | H78: 0
A79: 78 | B79: 2022010471 | C79: 张支铭 | D79: 74.53 | E79: 85.00 | F79: 90.00 | G79: 52.63% | H79: 0
A80: 79 | B80: 2022010500 | C80: 马倩 | D80: 85.99 | E80: 90.50 | F80: 85.50 | G80: 94.74% | H80: 0
A81: 80 | B81: 2022010501 | C81: 屈芷晴 | D81: 81.17 | E81: 89.00 | F81: 99.00 | G81: 63.16% | H81: 0
A82: 81 | B82: 2022010421 | C82: 季磊 | D82: 76.01 | E82: 72.00 | F82: 83.50 | G82: 47.37% | H82: 0
A83: 82 | B83: 2022010423 | C83: 汪礼俊 | D83: 72.63 | E83: 76.00 | F83: 84.00 | G83: 42.11% | H83: 0
A84: 83 | B84: 2022010424 | C84: 席振昌 | D84: 72.05 | E84: 79.00 | F84: 82.50 | G84: 36.84% | H84: 0
A85: 84 | B85: 2022010425 | C85: 闫杨奇昊 | D85: 66.23 | E85: 71.00 | F85: 72.00 | G85: 21.05% | H85: 2
A86: 85 | B86: 2022010473 | C86: 刘源兴 | D86: 73.61 | E86: 73.00 | F86: 79.50 | G86: 36.84% | H86: 1
A87: 86 | B87: 2022010476 | C87: 何岩松 | D87: 68.60 | E87: 0.00 | F87: 82.50 | G87: 30.00% | H87: 4
A88: 87 | B88: 2022010477 | C88: 张帅 | D88: 76.19 | E88: 82.00 | F88: 97.50 | G88: 52.63% | H88: 1
A89: 88 | B89: 2022010478 | C89: 李煌 | D89: 83.77 | E89: 0.00 | F89: 83.50 | G89: 84.21% | H89: 0
A90: 89 | B90: 2022010479 | C90: 杨广军 | D90: 72.96 | E90: 76.00 | F90: 87.50 | G90: 42.11% | H90: 0
A91: 90 | B91: 2022010480 | C91: 杨明涛 | D91: 68.96 | E91: 0.00 | F91: 86.00 | G91: 31.58% | H91: 3
A92: 91 | B92: 2022010482 | C92: 傅世坤 | D92: 81.73 | E92: 73.20 | F92: 77.00 | G92: 73.68% | H92: 1
A93: 92 | B93: 2022010483 | C93: 李浩永 | D93: 76.32 | E93: 50.00 | F93: 65.50 | G93: 57.89% | H93: 2
A94: 93 | B94: 2022010487 | C94: 涂景豪 | D94: 68.52 | E94: 74.67 | F94: 79.00 | G94: 15.79% | H94: 1
A95: 94 | B95: 2022010489 | C95: 谢林洲 | D95: 70.48 | E95: 83.50 | F95: 91.50 | G95: 30.00% | H95: 1
A96: 95 | B96: 2022010490 | C96: 严臻睿 | D96: 75.67 | E96: 85.00 | F96: 80.50 | G96: 42.11% | H96: 0
A97: 96 | B97: 2022010504 | C97: 李宇翔 | D97: 72.81 | E97: 72.50 | F97: 73.50 | G97: 21.05% | H97: 1
A98: 97 | B98: 2022010506 | C98: 张席地 | D98: 70.63 | E98: 82.50 | F98: 99.00 | G98: 45.00% | H98: 1
A99: 98 | B99: 2022010507 | C99: 马凯园 | D99: 68.81 | E99: 60.50 | F99: 75.00 | G99: 5.26% | H99: 0
A100: 99 | B100: 2022011451 | C100: 喻治坤 | D100: 82.07 | E100: 74.33 | F100: 81.50 | G100: 75.00% | H100: 0
A101: 100 | B101: 2022010837 | C101: 陈伟玄 | D101: 83.91 | E101: 79.50 | F101: 97.50 | G101: 85.71% | H101: 0
A102: 101 | B102: 2022010547 | C102: 黄一翀 | D102: 75.17 | E102: 79.00 | F102: 87.00 | G102: 42.11% | H102: 0

Sheet 德育基础分
A1: 辅导员打分
A2: 学号 | B2: 姓名 | C2: 班级 | D2: 互评分 | E2: 辅导员打分
A3: 2022010364 | B3: 张姝瑶 | C3: 化工22-1班 | D3: 99.88 | E3: 90
A4: 2022010367 | B4: 周芹 | C4: 化工22-1班 | D4: 99.91 | E4: 90
A5: 2022010369 | B5: 李越 | C5: 化工22-1班 | D5: 99.88 | E5: 90
A6: 2022010370 | B6: 马海霞 | C6: 化工22-1班 | D6: 99.85 | E6: 90
A7: 2022010371 | B7: 何丽鸿 | C7: 化工22-1班 | D7: 99.85 | E7: 90
A8: 2022010372 | B8: 史佳悦 | C8: 化工22-1班 | D8: 99.54 | E8: 90
A9: 2022010373 | B9: 王晴宇 | C9: 化工22-1班 | D9: 99.82 | E9: 90
A10: 2022010374 | B10: 袁佳怡 | C10: 化工22-1班 | D10: 99.85 | E10: 90
A11: 2022012311 | B11: 布威麦尔耶姆·麦麦提图尔荪 | C11: 化工22-1班 | D11: 99.88 | E11: 90
A12: 2022010397 | B12: 李安然 | C12: 化工22-1班 | D12: 99.85 | E12: 90
A13: 2022010100 | B13: 智玉轩 | C13: 化工22-1班 | D13: 99.85 | E13: 90
A14: 2022010377 | B14: 刘超 | C14: 化工22-1班 | D14: 100.00 | E14: 90
A15: 2022010379 | B15: 孙科 | C15: 化工22-1班 | D15: 99.48 | E15: 90
A16: 2022010382 | B16: 张铸 | C16: 化工22-1班 | D16: 99.94 | E16: 90
A17: 2022010383 | B17: 刘子瑞 | C17: 化工22-1班 | D17: 99.91 | E17: 90
A18: 2022010384 | B18: 吴立新 | C18: 化工22-1班 | D18: 99.97 | E18: 90
A19: 2022010385 | B19: 龚泽恩 | C19: 化工22-1班 | D19: 99.88 | E19: 90
A20: 2022010386 | B20: 李陶然 | C20: 化工22-1班 | D20: 99.88 | E20: 90
A21: 2022010389 | B21: 牛浩镔 | C21: 化工22-1班 | D21: 99.94 | E21: 90
A22: 2022010390 | B22: 申溱 | C22: 化工22-1班 | D22: 99.51 | E22: 90
A23: 2022010392 | B23: 吴照飞 | C23: 化工22-1班 | D23: 99.79 | E23: 90
A24: 2022010394 | B24: 张之翼 | C24: 化工22-1班 | D24: 99.73 | E24: 90
A25: 2022012312 | B25: 徐峥 | C25: 化工22-1班 | D25: 98.72 | E25: 90
A26: 2022010409 | B26: 周家艺 | C26: 化工22-1班 | D26: 99.79 | E26: 90
A27: 2022010411 | B27: 姚锦栋 | C27: 化工22-1班 | D27: 99.79 | E27: 90
A28: 2022010412 | B28: 代肖彤 | C28: 化工22-1班 | D28: 99.82 | E28: 90
A29: 2022010413 | B29: 陈恒宇 | C29: 化工22-1班 | D29: 99.79 | E29: 90
A30: 2022010414 | B30: 潘恒懿 | C30: 化工22-1班 | D30: 99.82 | E30: 90
A31: 2022010418 | B31: 王明堃 | C31: 化工22-1班 | D31: 99.63 | E31: 90
A32: 2022010419 | B32: 史国柱 | C32: 化工22-1班 | D32: 99.79 | E32: 90
A33: 2022010516 | B33: 郭智硕 | C33: 化工22-1班 | D33: 99.79 | E33: 90
A34: 2022010518 | B34: 贾思远 | C34: 化工22-1班 | D34: 99.70 | E34: 90
A35: 2022010519 | B35: 李佳俊 | C35: 化工22-1班 | D35: 99.76 | E35: 90
A36: 2022010622 | B36: 顾凌云 | C36: 化工22-1班 | D36: 99.73 | E36: 90
A37: 2022010429 | B37: 程实 | C37: 化工22-2班 | D37: 99.55 | E37: 90
A38: 2022010430 | B38: 马瑜含 | C38: 化工22-2班 | D38: 99.67 | E38: 90
A39: 2022010431 | B39: 贺婕 | C39: 化工22-2班 | D39: 99.62 | E39: 90
A40: 2022010432 | B40: 刘雨佳 | C40: 化工22-2班 | D40: 99.45 | E40: 90
A41: 2022010435 | B41: 秦婧瑶 | C41: 化工22-2班 | D41: 99.55 | E41: 90
A42: 2022010436 | B42: 孙涵 | C42: 化工22-2班 | D42: 99.83 | E42: 90
A43: 2022010437 | B43: 王晓弘 | C43: 化工22-2班 | D43: 99.48 | E43: 90
A44: 2022010438 | B44: 张涵婷 | C44: 化工22-2班 | D44: 99.64 | E44: 90
A45: 2022010439 | B45: 张心怡 | C45: 化工22-2班 | D45: 99.48 | E45: 90
A46: 2022010494 | B46: 唐樱菲 | C46: 化工22-2班 | D46: 99.83 | E46: 90
A47: 2022010499 | B47: 曹炜曼 | C47: 化工22-2班 | D47: 99.64 | E47: 90
A48: 2022010585 | B48: 崔跃兰 | C48: 化工22-2班 | D48: 99.52 | E48: 90
A49: 2022010584 | B49: 肖涵芮 | C49: 化工22-2班 | D49: 99.55 | E49: 90
A50: 2022010408 | B50: 许文轲 | C50: 化工22-2班 | D50: 99.74 | E50: 90
A51: 2022010422 | B51: 江锦欣 | C51: 化工22-2班 | D51: 99.83 | E51: 90
A52: 2022010426 | B52: 赵群 | C52: 化工22-2班 | D52: 99.70 | E52: 90
A53: 2022010427 | B53: 周慧林 | C53: 化工22-2班 | D53: 99.83 | E53: 90
A54: 2022010440 | B54: 黄颖聪 | C54: 化工22-2班 | D54: 99.70 | E54: 90
A55: 2022010441 | B55: 白兆 | C55: 化工22-2班 | D55: 99.10 | E55: 90
A56: 2022010442 | B56: 尹泽 | C56: 化工22-2班 | D56: 99.61 | E56: 90
A57: 2022010443 | B57: 杨志文 | C57: 化工22-2班 | D57: 99.70 | E57: 90
A58: 2022010445 | B58: 赵国平 | C58: 化工22-2班 | D58: 99.77 | E58: 90
A59: 2022010446 | B59: 金立民 | C59: 化工22-2班 | D59: 99.64 | E59: 90
A60: 2022010448 | B60: 王增智 | C60: 化工22-2班 | D60: 99.64 | E60: 90
A61: 2022010449 | B61: 郑少杰 | C61: 化工22-2班 | D61: 99.71 | E61: 90
A62: 2022010452 | B62: 康胜 | C62: 化工22-2班 | D62: 99.77 | E62: 90
A63: 2022010453 | B63: 李成歆 | C63: 化工22-2班 | D63: 99.52 | E63: 90
A64: 2022010454 | B64: 孙琪桐 | C64: 化工22-2班 | D64: 99.52 | E64: 90
A65: 2022010456 | B65: 吴金琪 | C65: 化工22-2班 | D65: 99.45 | E65: 90
A66: 2022010458 | B66: 赵帅 | C66: 化工22-2班 | D66: 99.63 | E66: 90
A67: 2022010459 | B67: 朱行健 | C67: 化工22-2班 | D67: 99.56 | E67: 90
A68: 2022012316 | B68: 陈语 | C68: 化工22-2班 | D68: 99.69 | E68: 90
A69: 2022010511 | B69: 罗小刚 | C69: 化工22-2班 | D69: 99.55 | E69: 90
A70: 2022010512 | B70: 陈俊逸 | C70: 化工22-2班 | D70: 99.55 | E70: 90
A71: 2022010406 | B71: 彭莎莎 | C71: 化工22-3班 | D71: 100.00 | E71: 90
A72: 2022010407 | B72: 叶海宇 | C72: 化工22-3班 | D72: 100.00 | E72: 90
A73: 2022010460 | B73: 努尔斯巴·买提库尔班 | C73: 化工22-3班 | D73: 99.69 | E73: 90
A74: 2022010461 | B74: 吴芷璇 | C74: 化工22-3班 | D74: 99.69 | E74: 90
A75: 2022010463 | B75: 孙千翔 | C75: 化工22-3班 | D75: 99.69 | E75: 90
A76: 2022010465 | B76: 陈飞月 | C76: 化工22-3班 | D76: 100.00 | E76: 90
A77: 2022010467 | B77: 石彩君 | C77: 化工22-3班 | D77: 100.00 | E77: 90
A78: 2022010468 | B78: 吴忆 | C78: 化工22-3班 | D78: 100.00 | E78: 90
A79: 2022010469 | B79: 许馨月 | C79: 化工22-3班 | D79: 100.00 | E79: 90
A80: 2022010471 | B80: 张支铭 | C80: 化工22-3班 | D80: 100.00 | E80: 90
A81: 2022010500 | B81: 马倩 | C81: 化工22-3班 | D81: 100.00 | E81: 90
A82: 2022010501 | B82: 屈芷晴 | C82: 化工22-3班 | D82: 100.00 | E82: 90
A83: 2022010421 | B83: 季磊 | C83: 化工22-3班 | D83: 100.00 | E83: 90
A84: 2022010423 | B84: 汪礼俊 | C84: 化工22-3班 | D84: 100.00 | E84: 90
A85: 2022010424 | B85: 席振昌 | C85: 化工22-3班 | D85: 99.53 | E85: 90
A86: 2022010425 | B86: 闫杨奇昊 | C86: 化工22-3班 | D86: 100.00 | E86: 90
A87: 2022010473 | B87: 刘源兴 | C87: 化工22-3班 | D87: 99.69 | E87: 90
A88: 2022010476 | B88: 何岩松 | C88: 化工22-3班 | D88: 99.69 | E88: 90
A89: 2022010477 | B89: 张帅 | C89: 化工22-3班 | D89: 100.00 | E89: 90
A90: 2022010478 | B90: 李煌 | C90: 化工22-3班 | D90: 99.69 | E90: 90
A91: 2022010479 | B91: 杨广军 | C91: 化工22-3班 | D91: 100.00 | E91: 90
A92: 2022010480 | B92: 杨明涛 | C92: 化工22-3班 | D92: 100.00 | E92: 90
A93: 2022010482 | B93: 傅世坤 | C93: 化工22-3班 | D93: 99.84 | E93: 90
A94: 2022010483 | B94: 李浩永 | C94: 化工22-3班 | D94: 100.00 | E94: 90
A95: 2022010487 | B95: 涂景豪 | C95: 化工22-3班 | D95: 100.00 | E95: 90
A96: 2022010489 | B96: 谢林洲 | C96: 化工22-3班 | D96: 100.00 | E96: 90
A97: 2022010490 | B97: 严臻睿 | C97: 化工22-3班 | D97: 100.00 | E97: 90
A98: 2022010504 | B98: 李宇翔 | C98: 化工22-3班 | D98: 100.00 | E98: 90
A99: 2022010506 | B99: 张席地 | C99: 化工22-3班 | D99: 100.00 | E99: 90
A100: 2022010507 | B100: 马凯园 | C100: 化工22-3班 | D100: 100.00 | E100: 90
A101: 2022011451 | B101: 喻治坤 | C101: 化工22-3班 | D101: 100.00 | E101: 90
A102: 2022010837 | B102: 陈伟玄 | C102: 化工22-3班 | D102: 100.00 | E102: 90
A103: 2022010547 | B103: 黄一翀 | C103: 化工22-3班 | D103: 99.72 | E103: 90

Sheet 德育加分 (2)
A1: 序号 | B1: 班级 | C1: 学号 | D1: 姓名 | E1: 学生团体及班级干部 | L1: 社会实践获奖（参与奖、优秀奖不加分）2023年的 | S1: 大型活动 | X1: 荣誉称号 | AC1: 德育加分求和
E2: 第一项 | H2: 第二项×0.2 | K2: 总计 | L2: 社会实践 | R2: 总计 | S2: 第一项 | U2: 第二项 | W2: 总计 | X2: 第一项 | Z2: 第二项 | AB2: 总计
E3: 项目 | F3: 原始加分 | G3: 校院级折合（不填） | H3: 项目 | I3: 原始加分 | J3: 校院级折合（不填） | L3: 第一项目 | M3: 是否为队长 | N3: 加分 | O3: 第二项目 | P3: 是否为队长 | Q3: 加分（×0.5） | S3: 项目 | T3: 加分 | U3: 项目 | V3: 加分 | X3: 项目 | Y3: 加分 | Z3: 项目 | AA3: 加分
A4: 1 | B4: 化工22-1班 | C4: 2022010364 | D4: 张姝瑶 | K4: =G4+J4*0.2 -> 0 | R4: =N4+Q4*0.5 -> 0 | W4: =T4+V4 -> 0 | X4: 示范班集体 | Y4: 0.5 | AB4: =Y4+AA4 -> 0.5 | AC4: =K4+R4+W4+AB4 -> 0.5
A5: 2 | B5: 化工22-1班 | C5: 2022010367 | D5: 周芹 | E5: 校红十字会血液部部长 | F5: 8 | G5: 5.33 | H5: 化工22-1副班长 | I5: 5 | J5: 5 | K5: 6.33 | R5: 0 | W5: 0 | X5: 示范班集体 | Y5: 0.5 | AB5: 0.5 | AC5: 6.83
A6: 3 | B6: 化工22-1班 | C6: 2022010369 | D6: 李越 | K6: 0 | R6: 0 | W6: 0 | X6: 示范班集体 | Y6: 0.5 | AB6: 0.5 | AC6: 0.5
A7: 4 | B7: 化工22-1班 | C7: 2022010370 | D7: 马海霞 | K7: 0 | R7: 0 | W7: 0 | X7: 示范班集体 | Y7: 0.5 | AB7: 0.5 | AC7: 0.5
A8: 5 | B8: 化工22-1班 | C8: 2022010371 | D8: 何丽鸿 | E8: 有机实验课代表 | F8: 3 | G8: 3 | K8: 3 | R8: 0 | W8: 0 | X8: 示范班集体 | Y8: 0.5 | AB8: 0.5 | AC8: 3.5
A9: 6 | B9: 化工22-1班 | C9: 2022010372 | D9: 史佳悦 | E9: 化工22-1班宣传委员 | F9: 4 | G9: 4 | K9: 4 | R9: 0 | W9: 0 | X9: 示范班集体 | Y9: 0.5 | AB9: 0.5 | AC9: 4.5
A10: 7 | B10: 化工22-1班 | C10: 2022010373 | D10: 王晴宇 | E10: 校青年实践创新中心创新部部长 | F10: 10 | G10: 6.67 | H10: 化工22-1班团支书 | I10: 6 | J10: 6 | K10: 7.87 | L10: 2023红色“1+1”校三等奖 | M10: 否 | N10: 1 | R10: 1 | W10: 0 | X10: 示范班集体 | Y10: 0.5 | AB10: 0.5 | AC10: 9.37
A11: 8 | B11: 化工22-1班 | C11: 2022010374 | D11: 袁佳怡 | E11: 化工22-1班组织委员 | F11: 4 | G11: 4 | K11: 4 | R11: 0 | W11: 0 | X11: 示范班集体 | Y11: 0.5 | AB11: 0.5 | AC11: 4.5
A12: 9 | B12: 化工22-1班 | C12: 2022012311 | D12: 布威麦尔耶姆·麦麦提图尔荪 | K12: 0 | R12: 0 | W12: 0 | X12: 示范班集体 | Y12: 0.5 | AB12: 0.5 | AC12: 0.5
A13: 10 | B13: 化工22-1班 | C13: 2022010397 | D13: 李安然 | K13: 0 | R13: 0 | W13: 0 | X13: 示范班集体 | Y13: 0.5 | AB13: 0.5 | AC13: 0.5
A14: 11 | B14: 化工22-1班 | C14: 2022010100 | D14: 智玉轩 | E14: 化工22-1班长 | F14: 6 | G14: 6 | K14: 6 | R14: 0 | W14: 0 | X14: 示范班集体 | Y14: 0.5 | Z14: 校级优秀宿舍 | AA14: 2 | AB14: 2.5 | AC14: 8.5
A15: 12 | B15: 化工22-1班 | C15: 2022010377 | D15: 刘超 | K15: 0 | R15: 0 | W15: 0 | X15: 示范班集体 | Y15: 0.5 | AB15: 0.5 | AC15: 0.5
A16: 13 | B16: 化工22-1班 | C16: 2022010379 | D16: 孙科 | K16: 0 | R16: 0 | W16: 0 | X16: 示范班集体 | Y16: 0.5 | AB16: 0.5 | AC16: 0.5
A17: 14 | B17: 化工22-1班 | C17: 2022010382 | D17: 张铸 | E17: 文体委员 | F17: 3.8 | G17: 3.8 | H17: 物化实验课代表 | I17: 3 | J17: 3 | K17: 4.4 | R17: 0 | W17: 0 | X17: 示范班集体 | Y17: 0.5 | AB17: 0.5 | AC17: 4.9
A18: 15 | B18: 化工22-1班 | C18: 2022010383 | D18: 刘子瑞 | E18: 化工22-1班心理委员 | F18: 3.8 | G18: 3.8 | H18: 寝室长 | I18: 3 | J18: 3 | K18: 4.4 | R18: 0 | W18: 0 | X18: 示范班集体 | Y18: 0.5 | AB18: 0.5 | AC18: 4.9
A19: 16 | B19: 化工22-1班 | C19: 2022010384 | D19: 吴立新 | E19: 大物课代表 | F19: 3 | G19: 3 | K19: 3 | R19: 0 | W19: 0 | X19: 示范班集体 | Y19: 0.5 | AB19: 0.5 | AC19: 3.5
A20: 17 | B20: 化工22-1班 | C20: 2022010385 | D20: 龚泽恩 | K20: 0 | R20: 0 | W20: 0 | X20: 示范班集体 | Y20: 0.5 | AB20: 0.5 | AC20: 0.5
A21: 18 | B21: 化工22-1班 | C21: 2022010386 | D21: 李陶然 | E21: 化工22-1班学习委员 | F21: 3.8 | G21: 3.8 | H21: 化工原理（Ⅰ）课代表 | I21: 3 | J21: 3 | K21: 4.4 | R21: 0 | W21: 0 | X21: 示范班集体 | Y21: 0.5 | AB21: 0.5 | AC21: 4.9
A22: 19 | B22: 化工22-1班 | C22: 2022010389 | D22: 牛浩镔 | E22: 物理化学（上）课代表 | F22: 3 | G22: 3 | H22: 机械制图课代表 | I22: 3 | J22: 3 | K22: 3.6 | R22: 0 | W22: 0 | X22: 示范班集体 | Y22: 0.5 | AB22: 0.5 | AC22: 4.1
A23: 20 | B23: 化工22-1班 | C23: 2022010390 | D23: 申溱 | E23: 化院青协办公室部长 | F23: 6 | G23: 6 | H23: 物理化学（下）课代表 | I23: 3 | J23: 3 | K23: 6.6 | R23: 0 | W23: 0 | X23: 示范班集体 | Y23: 0.5 | AB23: 0.5 | AC23: 7.1
A24: 21 | B24: 化工22-1班 | C24: 2022010392 | D24: 吴照飞 | K24: 0 | R24: 0 | W24: 0 | X24: 示范班集体 | Y24: 0.5 | AB24: 0.5 | AC24: 0.5
A25: 22 | B25: 化工22-1班 | C25: 2022010394 | D25: 张之翼 | K25: 0 | R25: 0 | W25: 0 | X25: 示范班集体 | Y25: 0.5 | AB25: 0.5 | AC25: 0.5
A26: 23 | B26: 化工22-1班 | C26: 2022012312 | D26: 徐峥 | E26: 大学生记者团部委 | F26: 3 | G26: 2 | K26: 2 | R26: 0 | W26: 0 | X26: 示范班集体 | Y26: 0.5 | AB26: 0.5 | AC26: 2.5
A27: 24 | B27: 化工22-1班 | C27: 2022010409 | D27: 周家艺 | K27: 0 | R27: 0 | W27: 0 | X27: 示范班集体 | Y27: 0.5 | AB27: 0.5 | AC27: 0.5
A28: 25 | B28: 化工22-1班 | C28: 2022010411 | D28: 姚锦栋 | K28: 0 | R28: 0 | W28: 0 | X28: 示范班集体 | Y28: 0.5 | AB28: 0.5 | AC28: 0.5
A29: 26 | B29: 化工22-1班 | C29: 2022010412 | D29: 代肖彤 | E29: 网球协会部委 | F29: 0 | G29: 0 | K29: 0 | R29: 0 | W29: 0 | X29: 示范班集体 | Y29: 0.5 | AB29: 0.5 | AC29: 0.5
A30: 27 | B30: 化工22-1班 | C30: 2022010413 | D30: 陈恒宇 | K30: 0 | R30: 0 | W30: 0 | X30: 示范班集体 | Y30: 0.5 | AB30: 0.5 | AC30: 0.5
A31: 28 | B31: 化工22-1班 | C31: 2022010414 | D31: 潘恒懿 | E31: 中石大传媒视创部部长 | F31: 8 | G31: 5.33 | K31: 5.33 | R31: 0 | W31: 0 | X31: 示范班集体 | Y31: 0.5 | AB31: 0.5 | AC31: 5.83
A32: 29 | B32: 化工22-1班 | C32: 2022010418 | D32: 王明堃 | K32: 0 | R32: 0 | W32: 0 | X32: 示范班集体 | Y32: 0.5 | AB32: 0.5 | AC32: 0.5
A33: 30 | B33: 化工22-1班 | C33: 2022010419 | D33: 史国柱 | E33: 寝室长 | F33: 3 | G33: 3 | H33: 开放原子开源社运营部部委 | I33: 0 | J33: 0 | K33: 3 | R33: 0 | W33: 0 | X33: 示范班集体 | Y33: 0.5 | AB33: 0.5 | AC33: 3.5
A34: 31 | B34: 化工22-1班 | C34: 2022010516 | D34: 郭智硕 | E34: AlChE–CUPB部长 | H34: 星罗天文社部委 | I34: 0 | J34: 0 | K34: 0 | R34: 0 | W34: 0 | X34: 示范班集体 | Y34: 0.5 | AB34: 0.5 | AC34: 0.5
A35: 32 | B35: 化工22-1班 | C35: 2022010518 | D35: 贾思远 | K35: 0 | R35: 0 | W35: 0 | X35: 示范班集体 | Y35: 0.5 | AB35: 0.5 | AC35: 0.5
A36: 33 | B36: 化工22-1班 | C36: 2022010519 | D36: 李佳俊 | E36: 校田径协会副主席 | F36: 2 | G36: 2 | H36: 铁三协会部长 | I36: 0 | J36: 0 | K36: =G36+J36*0.2 -> 2 | R36: =N36+Q36*0.5 -> 0 | W36: =T36+V36 -> 0 | X36: 示范班集体 | Y36: 0.5 | AB36: =Y36+AA36 -> 0.5 | AC36: =K36+R36+W36+AB36 -> 2.5
A37: 34 | B37: 化工22-1班 | C37: 2022010622 | D37: 顾凌云 | E37: 化院学习部部长 | F37: 4.5 | G37: 4.5 | H37: 信息员 | I37: 4 | J37: 4 | K37: 5.3 | R37: 0 | W37: 0 | X37: 示范班集体 | Y37: 0.5 | AB37: 0.5 | AC37: 5.8
A38: 35 | B38: 化工22-2班 | C38: 2022010429 | D38: 程实 | K38: 0 | R38: 0 | W38: 0 | X38: 先锋团支部 | Y38: 1 | Z38: 校级文明宿舍 | AA38: 2 | AB38: 3 | AC38: 3
A39: 36 | B39: 化工22-2班 | C39: 2022010430 | D39: 马瑜含 | E39: 文体委员 | F39: 4 | G39: 4 | H39: 青年实践创新中心部委 | I39: 4 | J39: 2.67 | K39: 4.534 | R39: 0 | W39: 0 | X39: 先锋团支部 | Y39: 1 | Z39: 校级文明宿舍 | AA39: 2 | AB39: 3 | AC39: 7.534
A40: 37 | B40: 化工22-2班 | C40: 2022010431 | D40: 贺婕 | K40: 0 | R40: 0 | W40: 0 | X40: 先锋团支部 | Y40: 1 | Z40: 示范班集体 | AA40: 0.5 | AB40: 1.5 | AC40: 1.5
A41: 38 | B41: 化工22-2班 | C41: 2022010432 | D41: 刘雨佳 | E41: 青年艺术发展中心舞蹈团团长 | F41: 15 | G41: 10 | K41: 10 | R41: 0 | S41: 校庆舞蹈演员 | T41: 2 | W41: 2 | X41: 先锋团支部 | Y41: 1 | Z41: 示范班集体 | AA41: 0.5 | AB41: 1.5 | AC41: 13.5
A42: 39 | B42: 化工22-2班 | C42: 2022010435 | D42: 秦婧瑶 | K42: 0 | R42: 0 | S42: 运动会啦啦队 | T42: 1 | W42: 1 | X42: 先锋团支部 | Y42: 1 | Z42: 示范班集体 | AA42: 0.5 | AB42: 1.5 | AC42: 2.5
A43: 40 | B43: 化工22-2班 | C43: 2022010436 | D43: 孙涵 | E43: 化院青协实践部部长 | F43: 6 | G43: 6 | H43: 班长 | I43: 6 | J43: 6 | K43: 7.2 | L43: 校级三等奖 | M43: 否 | N43: 1 | R43: 1 | W43: 0 | X43: 先锋团支部 | Y43: 1 | Z43: 示范班集体 | AA43: 0.5 | AB43: 1.5 | AC43: 9.7
A44: 41 | B44: 化工22-2班 | C44: 2022010437 | D44: 王晓弘 | E44: 宿舍长 | F44: 3 | K44: 3 | R44: 0 | W44: 0 | X44: 先锋团支部 | Y44: 1 | Z44: 示范班集体 | AA44: 0.5 | AB44: 1.5 | AC44: 4.5
A45: 42 | B45: 化工22-2班 | C45: 2022010438 | D45: 张涵婷 | E45: 化院青协实践部部长 | F45: 6 | G45: 6 | H45: 信息员 | I45: 4 | J45: 4 | K45: 6.8 | R45: 0 | S45: 运动会方阵 | T45: 1 | W45: 1 | X45: 先锋团支部 | Y45: 1 | Z45: 示范班集体 | AA45: 0.5 | AB45: 1.5 | AC45: 9.3
A46: 43 | B46: 化工22-2班 | C46: 2022010439 | D46: 张心怡 | K46: 0 | R46: 0 | W46: 0 | X46: 先锋团支部 | Y46: 1 | Z46: 示范班集体 | AA46: 0.5 | AB46: 1.5 | AC46: 1.5
A47: 44 | B47: 化工22-2班 | C47: 2022010494 | D47: 唐樱菲 | E47: 创新创业活动中心部委 | F47: 0 | G47: 0 | K47: 0 | R47: 0 | W47: 0 | X47: 先锋团支部 | Y47: 1 | Z47: 示范班集体 | AA47: 0.5 | AB47: 1.5 | AC47: 1.5
A48: 45 | B48: 化工22-2班 | C48: 2022010499 | D48: 曹炜曼 | E48: 校团委办公室部长 | F48: 10 | G48: 6.67 | H48: 团支书 | I48: 6 | J48: 6 | K48: 7.87 | R48: 0 | S48: 校庆演员合唱团 | T48: 2 | W48: 2 | X48: 先锋团支部 | Y48: 1 | Z48: 示范班集体 | AA48: 0.5 | AB48: 1.5 | AC48: 11.37
A49: 46 | B49: 化工22-2班 | C49: 2022010585 | D49: 崔跃兰 | E49: 院青协外事部部长 | F49: 6 | G49: 6 | H49: 开放原子开源社团活动部部委 | I49: 0 | J49: 0 | K49: 6 | R49: 0 | W49: 0 | X49: 先锋团支部 | Y49: 1 | Z49: 校级文明宿舍 | AA49: 2 | AB49: 3 | AC49: 9
A50: 47 | B50: 化工22-2班 | C50: 2022010584 | D50: 肖涵芮 | E50: 校学生会办公室部长 | F50: 9 | G50: 6 | H50: 绿芽社团宣传部长 | I50: 6 | J50: 6 | K50: 7.2 | L50: 红色“1+1”校级三等奖 | M50: 否 | N50: 1 | R50: 1 | W50: 0 | X50: 先锋团支部 | Y50: 1 | Z50: 校级文明宿舍 | AA50: 2 | AB50: 3 | AC50: 11.2
A51: 48 | B51: 化工22-2班 | C51: 2022010408 | D51: 许文轲 | E51: 青年实践创新中心部委 | F51: 6 | G51: 4 | H51: 乒乓球爱好者协会部长 | I51: 6 | J51: 4 | K51: 4.8 | R51: 0 | W51: 0 | X51: 先锋团支部 | Y51: 1 | Z51: 示范班集体 | AA51: 0.5 | AB51: 1.5 | AC51: 6.3
A52: 49 | B52: 化工22-2班 | C52: 2022010422 | D52: 江锦欣 | E52: 校团委办公室部长 | F52: 9 | G52: 6 | H52: 心理委员 | I52: 4 | J52: 4 | K52: 6.8 | R52: 0 | W52: 0 | X52: 先锋团支部 | Y52: 1 | Z52: 示范班集体 | AA52: 0.5 | AB52: 1.5 | AC52: 8.3
A53: 50 | B53: 化工22-2班 | C53: 2022010426 | D53: 赵群 | K53: 0 | R53: 0 | W53: 0 | X53: 先锋团支部 | Y53: 1 | Z53: 示范班集体 | AA53: 0.5 | AB53: 1.5 | AC53: 1.5
A54: 51 | B54: 化工22-2班 | C54: 2022010427 | D54: 周慧林 | K54: 0 | R54: 0 | W54: 0 | X54: 先锋团支部 | Y54: 1 | Z54: 示范班集体 | AA54: 0.5 | AB54: 1.5 | AC54: 1.5
A55: 52 | B55: 化工22-2班 | C55: 2022010440 | D55: 黄颖聪 | K55: 0 | R55: 0 | S55: 运动会拉拉队 | T55: 1 | W55: 1 | X55: 先锋团支部 | Y55: 1 | Z55: 示范班集体 | AA55: 0.5 | AB55: 1.5 | AC55: 2.5
A56: 53 | B56: 化工22-2班 | C56: 2022010441 | D56: 白兆 | E56: 院学生会部长 | F56: 6 | G56: 6 | H56: 化成天下运营部部长 | I56: 6 | J56: 6 | K56: 7.2 | L56: 校级三等奖 | M56: 否 | N56: 1 | R56: 1 | W56: 0 | X56: 先锋团支部 | Y56: 1 | Z56: 示范班集体 | AA56: 0.5 | AB56: 1.5 | AC56: 9.7
A57: 54 | B57: 化工22-2班 | C57: 2022010442 | D57: 尹泽 | E57: 校团委办公室部长 | F57: 9 | G57: 6 | H57: 副班长 | I57: 5 | J57: 5 | K57: 7 | L57: 校级三等奖 | M57: 否 | N57: 1 | R57: 1 | W57: 0 | X57: 先锋团支部 | Y57: 1 | Z57: 示范班集体 | AA57: 0.5 | AB57: 1.5 | AC57: 9.5
A58: 55 | B58: 化工22-2班 | C58: 2022010443 | D58: 杨志文 | E58: 青年实践创新中心部委 | F58: 5 | G58: 3.33 | H58: 寝室长 | I58: 3 | J58: 3 | K58: 3.93 | R58: 0 | W58: 0 | X58: 先锋团支部 | Y58: 1 | Z58: 示范班集体 | AA58: 0.5 | AB58: 1.5 | AC58: 5.43
A59: 56 | B59: 化工22-2班 | C59: 2022010445 | D59: 赵国平 | E59: 青年实践创新中心部委 | F59: 3 | G59: 2 | K59: 2 | L59: 校级三等奖 | M59: 否 | N59: 1 | R59: 1 | W59: 0 | X59: 先锋团支部 | Y59: 1 | Z59: 示范班集体 | AA59: 0.5 | AB59: 1.5 | AC59: 4.5
A60: 57 | B60: 化工22-2班 | C60: 2022010446 | D60: 金立民 | E60: AIChE-CUPB社团部长 | K60: 0 | R60: 0 | W60: 0 | X60: 先锋团支部 | Y60: 1 | Z60: 示范班集体 | AA60: 0.5 | AB60: 1.5 | AC60: 1.5
A61: 58 | B61: 化工22-2班 | C61: 2022010448 | D61: 王增智 | E61: 寝室长 | F61: 3 | G61: 3 | K61: 3 | R61: 0 | W61: 0 | X61: 先锋团支部 | Y61: 1 | Z61: 示范班集体 | AA61: 0.5 | AB61: 1.5 | AC61: 4.5
A62: 59 | B62: 化工22-2班 | C62: 2022010449 | D62: 郑少杰 | E62: 实践中心办公室部长 | F62: 10 | G62: 6.67 | H62: 大艺团话剧团团员 | I62: 0 | J62: 0 | K62: 6.67 | R62: 0 | W62: 0 | X62: 先锋团支部 | Y62: 1 | Z62: 示范班集体 | AA62: 0.5 | AB62: 1.5 | AC62: 8.17
A63: 60 | B63: 化工22-2班 | C63: 2022010452 | D63: 康胜 | E63: 学习委员 | F63: 3 | G63: 3 | H63: 职业发展协会部长 | I63: 6 | J63: 4 | K63: 3.8 | R63: 0 | W63: 0 | X63: 先锋团支部 | Y63: 1 | Z63: 示范班集体 | AA63: 0.5 | AB63: 1.5 | AC63: 5.3
A64: 61 | B64: 化工22-2班 | C64: 2022010453 | D64: 李成歆 | K64: 0 | R64: 0 | W64: 0 | X64: 先锋团支部 | Y64: 1 | Z64: 示范班集体 | AA64: 0.5 | AB64: 1.5 | AC64: 1.5
A65: 62 | B65: 化工22-2班 | C65: 2022010454 | D65: 孙琪桐 | E65: 院学生会活动部部长 | F65: 5.5 | G65: 5.5 | K65: 5.5 | R65: 0 | W65: 0 | X65: 先锋团支部 | Y65: 1 | Z65: 示范班集体 | AA65: 0.5 | AB65: 1.5 | AC65: 7
A66: 63 | B66: 化工22-2班 | C66: 2022010456 | D66: 吴金琪 | K66: 0 | R66: 0 | W66: 0 | X66: 先锋团支部 | Y66: 1 | Z66: 示范班集体 | AA66: 0.5 | AB66: 1.5 | AC66: 1.5
A67: 64 | B67: 化工22-2班 | C67: 2022010458 | D67: 赵帅 | K67: 0 | R67: 0 | W67: 0 | X67: 先锋团支部 | Y67: 1 | Z67: 示范班集体 | AA67: 0.5 | AB67: 1.5 | AC67: 1.5
A68: 65 | B68: 化工22-2班 | C68: 2022010459 | D68: 朱行健 | E68: 流云车协活动部部长 | H68: 管弦乐团团员 | I68: 4 | J68: 2.67 | K68: =G68+J68*0.2 -> 0.534 | L68: 校级三等奖 | M68: 否 | N68: 1 | R68: =N68+Q68*0.5 -> 1 | S68: 运动会拉拉队 | T68: 1 | W68: =T68+V68 -> 1 | X68: 先锋团支部 | Y68: 1 | Z68: 示范班集体 | AA68: 0.5 | AB68: =Y68+AA68 -> 1.5 | AC68: =K68+R68+W68+AB68 -> 4.034
A69: 66 | B69: 化工22-2班 | C69: 2022012316 | D69: 陈语 | E69: star冰雪运动协会宣传部部长 | H69: 寝室长 | I69: 3 | J69: 3 | K69: 0.6 | L69: 校级三等奖 | M69: 否 | N69: 1 | R69: 1 | W69: 0 | X69: 先锋团支部 | Y69: 1 | Z69: 示范班集体 | AA69: 0.5 | AB69: 1.5 | AC69: 3.1
A70: 67 | B70: 化工22-2班 | C70: 2022010511 | D70: 罗小刚 | E70: 寝室长 | F70: 3 | G70: 3 | K70: 3 | R70: 0 | W70: 0 | X70: 先锋团支部 | Y70: 1 | Z70: 示范班集体 | AA70: 0.5 | AB70: 1.5 | AC70: 4.5
A71: 68 | B71: 化工22-2班 | C71: 2022010512 | D71: 陈俊逸 | E71: 青年志愿服务指导中心部长 | F71: 10 | G71: 6.67 | K71: 6.67 | R71: 0 | W71: 0 | X71: 先锋团支部 | Y71: 1 | Z71: 示范班集体 | AA71: 0.5 | AB71: 1.5 | AC71: 8.17
A72: 69 | B72: 化工22-3班 | C72: 2022010406 | D72: 彭莎莎 | E72: 宿舍长 | F72: 3 | G72: 3 | K72: 3 | R72: 0 | W72: 0 | X72: 2022-2023年度中国石油大学（北京）“文明宿舍” | Y72: 2 | Z72: 2022-2023年度中国石油大学（北京）“科技创新先进个人” | AA72: 0 | AB72: 2 | AC72: 5
A73: 70 | B73: 化工22-3班 | C73: 2022010407 | D73: 叶海宇 | E73: 觅音社综合联络部部长 | F73: 1 | G73: 1 | H73: 九州武社部委 | I73: 0 | J73: 0 | K73: 1 | R73: 0 | S73: 秋季运动会裁判 | T73: 0 | W73: 0 | X73: 2022-2023年度中国石油大学（北京）“文明宿舍” | Y73: 2 | AB73: 2 | AC73: 3
A74: 71 | B74: 化工22-3班 | C74: 2022010460 | D74: 努尔斯巴·买提库尔班 | K74: 0 | R74: 0 | W74: 0 | AB74: 0 | AC74: 0
A75: 72 | B75: 化工22-3班 | C75: 2022010461 | D75: 吴芷璇 | E75: 院学生会体育部部长 | F75: 5.5 | G75: 5.5 | H75: 国旗仪仗队实践部部长 | I75: 6 | J75: 4 | K75: 6.3 | L75: 振兴小分队 | M75: 否 | N75: 1 | R75: 1 | W75: 0 | X75: 2022-2023年度中国石油大学（北京）"科技创新先进个人" | Y75: 0 | Z75: 第二十一届校长奖 | AA75: 0 | AB75: 0 | AC75: 7.3
A76: 73 | B76: 化工22-3班 | C76: 2022010463 | D76: 孙千翔 | E76: 石创空间部长 | F76: 9 | G76: 6 | H76: 化工22-3班副班长 | I76: 5 | J76: 5 | K76: 7 | R76: 0 | W76: 0 | X76: 2022-2023年度中国石油大学（北京）"科技创新先进个人" | Y76: 0 | AB76: 0 | AC76: 7
A77: 74 | B77: 化工22-3班 | C77: 2022010465 | D77: 陈飞月 | E77: 化工22-3班宣传委员 | F77: 4 | G77: 4 | H77: 校广播台部委 | I77: 4 | J77: 2.67 | K77: 4.534 | R77: 0 | W77: 0 | AB77: 0 | AC77: 4.534
A78: 75 | B78: 化工22-3班 | C78: 2022010467 | D78: 石彩君 | E78: 青年文化发展中心大学生艺术团话剧团团长 | F78: 14 | G78: =F78*2/3 -> 9.333333333 | H78: 寝室长 | I78: 3 | J78: 3 | K78: 9.933333333 | R78: 0 | S78: 70周年校庆文艺晚会演员 | T78: 2 | W78: 2 | AB78: 0 | AC78: 11.93333333
A79: 76 | B79: 化工22-3班 | C79: 2022010468 | D79: 吴忆 | E79: 校团委组织部中心主任 | F79: 10 | G79: 6.33 | H79: 化工22-3班团支书 | I79: 6 | J79: 6 | K79: 7.53 | R79: 0 | W79: 0 | X79: 2022-2023年度中国石油大学（北京）“文明宿舍” | Y79: 2 | AB79: 2 | AC79: 9.53
A80: 77 | B80: 化工22-3班 | C80: 2022010469 | D80: 许馨月 | E80: 青年文化发展中心办公室组长 | F80: 8 | G80: 5.33 | K80: 5.33 | L80: 振兴小分队 | M80: 否 | N80: 1 | R80: 1 | S80: 春季运动会方阵成员 | T80: 1 | W80: 1 | X80: 2022-2023年度中国石油大学（北京）“文明宿舍” | Y80: 2 | AB80: 2 | AC80: 9.33
A81: 78 | B81: 化工22-3班 | C81: 2022010471 | D81: 张支铭 | E81: 勤工助学中心校外部部长 | F81: 8 | G81: 5.33 | H81: 国旗仪仗队实践部部长 | I81: 4 | J81: 2.67 | K81: 5.864 | L81: “石子农情”团队 | M81: 否 | N81: 1 | O81: 振兴小分队 | P81: 否 | Q81: 1 | R81: 1.5 | W81: 0 | X81: 2022-2023年度中国石油大学（北京）“文明宿舍” | Y81: 2 | AB81: 2 | AC81: 9.364
A82: 79 | B82: 化工22-3班 | C82: 2022010500 | D82: 马倩 | E82: 化工22-3班信息委员 | F82: 4 | G82: 4 | K82: 4 | R82: 0 | W82: 0 | AB82: 0 | AC82: 4
A83: 80 | B83: 化工22-3班 | C83: 2022010501 | D83: 屈芷晴 | E83: 石大羽协部长 | F83: 1 | G83: 1 | K83: 1 | R83: 0 | W83: 0 | AB83: 0 | AC83: 1
A84: 81 | B84: 化工22-3班 | C84: 2022010421 | D84: 季磊 | K84: 0 | R84: 0 | W84: 0 | AB84: 0 | AC84: 0
A85: 82 | B85: 化工22-3班 | C85: 2022010423 | D85: 汪礼俊 | K85: 0 | R85: 0 | W85: 0 | AB85: 0 | AC85: 0
A86: 83 | B86: 化工22-3班 | C86: 2022010424 | D86: 席振昌 | K86: 0 | R86: 0 | W86: 0 | AB86: 0 | AC86: 0
A87: 84 | B87: 化工22-3班 | C87: 2022010425 | D87: 闫杨奇昊 | K87: 0 | R87: 0 | W87: 0 | AB87: 0 | AC87: 0
A88: 85 | B88: 化工22-3班 | C88: 2022010473 | D88: 刘源兴 | K88: 0 | R88: 0 | W88: 0 | AB88: 0 | AC88: 0
A89: 86 | B89: 化工22-3班 | C89: 2022010476 | D89: 何岩松 | K89: 0 | R89: 0 | W89: 0 | AB89: 0 | AC89: 0
A90: 87 | B90: 化工22-3班 | C90: 2022010477 | D90: 张帅 | E90: 青年文化发展中心活动组组长 | F90: 10 | G90: 6.33 | H90: 九州武社主席 | I90: 2 | J90: 2 | K90: 6.73 | L90: 2023年暑期社会实践“三等奖” | M90: 是 | N90: 1.33 | R90: 1.333333333 | S90: 70年校庆文艺晚会武术演员 | T90: 1 | U90: 春季运动会学院啦啦队 | V90: 1 | W90: 2 | X90: 2022-2023年度文体活动先进个人 | Y90: 0 | Z90: 2022-2023年度社会实践优秀个人 | AA90: 0 | AB90: 0 | AC90: 10.06333333
A91: 88 | B91: 化工22-3班 | C91: 2022010478 | D91: 李煌 | E91: 职业发展协会招聘部部委 | F91: 3 | G91: 2 | H91: 青年文化发展中心活动组部委 | I91: 5 | J91: 3.33 | K91: 2.666 | L91: 振兴小分队 | M91: 否 | N91: 1 | R91: 1 | W91: 0 | AB91: 0 | AC91: 3.666
A92: 89 | B92: 化工22-3班 | C92: 2022010479 | D92: 杨广军 | E92: 青年文化发展中心活动组部委 | F92: 3 | G92: 2 | K92: 2 | R92: 0 | W92: 0 | AB92: 0 | AC92: 2
A93: 90 | B93: 化工22-3班 | C93: 2022010480 | D93: 杨明涛 | K93: 0 | R93: 0 | W93: 0 | AB93: 0 | AC93: 0
A94: 91 | B94: 化工22-3班 | C94: 2022010482 | D94: 傅世坤 | E94: 化工22-3班组织委员 | F94: 4 | G94: 4 | H94: 石创空间创业部部委 | I94: 4 | J94: 2.67 | K94: 4.534 | R94: 0 | S94: 春季运动会方阵成员 | T94: 1 | W94: 1 | AB94: 0 | AC94: 5.534
A95: 92 | B95: 化工22-3班 | C95: 2022010483 | D95: 李浩永 | E95: 化工22-3班心理委员 | F95: 3 | G95: 3 | H95: 星罗天文社部委 | I95: 0 | J95: 0 | K95: 3 | R95: 0 | W95: 0 | AB95: 0 | AC95: 3
A96: 93 | B96: 化工22-3班 | C96: 2022010487 | D96: 涂景豪 | K96: 0 | R96: 0 | W96: 0 | AB96: 0 | AC96: 0
A97: 94 | B97: 化工22-3班 | C97: 2022010489 | D97: 谢林洲 | E97: 招生大使团办公室部长 | F97: 6 | G97: 4 | H97: 概率论课代表 | I97: 3 | J97: 3 | K97: 4.6 | R97: 0 | W97: 0 | AB97: 0 | AC97: 4.6
A98: 95 | B98: 化工22-3班 | C98: 2022010490 | D98: 严臻睿 | E98: 院权益部部长 | F98: 6 | K98: 6 | R98: 0 | W98: 0 | AB98: 0 | AC98: 6
A99: 96 | B99: 化工22-3班 | C99: 2022010504 | D99: 李宇翔 | K99: 0 | R99: 0 | W99: 0 | AB99: 0 | AC99: 0
A100: 97 | B100: 化工22-3班 | C100: 2022010506 | D100: 张席地 | E100: 中石大传媒工作室主席 | F100: 9 | G100: 6 | H100: 化工22-3班班长 | I100: 6 | J100: 6 | K100: =G100+J100*0.2 -> 7.2 | R100: =N100+Q100*0.5 -> 0 | W100: =T100+V100 -> 0 | AB100: =Y100+AA100 -> 0 | AC100: =K100+R100+W100+AB100 -> 7.2
A101: 98 | B101: 化工22-3班 | C101: 2022010507 | D101: 马凯园 | K101: 0 | R101: 0 | W101: 0 | AB101: 0 | AC101: 0
A102: 99 | B102: 化工22-3班 | C102: 2022011451 | D102: 喻治坤 | K102: 0 | L102: 校三等奖 | M102: 否 | N102: 1 | R102: 1 | W102: 0 | AB102: 0 | AC102: 1
A103: 100 | B103: 化工22-3班 | C103: 2022010837 | D103: 陈伟玄 | K103: 0 | R103: 0 | W103: 0 | AB103: 0 | AC103: 0
A104: 101 | B104: 化工22-3班 | C104: 2022010547 | D104: 黄一翀 | E104: 青年文化发展中心活动组部委 | F104: 3 | G104: 2 | K104: 2 | R104: 0 | W104: 0 | AB104: 0 | AC104: 2
A105: 102 | B105: 能化22-1班 | C105: 2022010398 | D105: 杨慧 | E105: 校红会同伴教育部部委 | F105: 6 | G105: 4 | H105: 田径协会部长 | I105: 1 | J105: 1 | K105: 4.2 | R105: 0 | W105: 0 | AB105: 0 | AC105: 4.2
A106: 103 | B106: 能化22-1班 | C106: 2022010399 | D106: 邱绮慧 | E106: 校团委宣传部部长 | F106: 10 | G106: 6.67 | H106: 田径协会部长 | I106: 1 | J106: 1 | K106: 6.87 | R106: 0 | W106: 0 | AB106: 0 | AC106: 6.87
A107: 104 | B107: 能化22-1班 | C107: 2022010400 | D107: 王一伊 | E107: 院学生会体育部部长 | F107: 5.5 | G107: 5.5 | H107: 田径协会主席 | I107: 2 | J107: 2 | K107: 5.9 | R107: 0 | W107: 0 | AB107: 0 | AC107: 5.9
A108: 105 | B108: 能化22-1班 | C108: 2022010401 | D108: 贾文青 | E108: 校红会同伴教育部部委 | F108: 6 | G108: 4 | H108: 田径协会部长 | I108: 1 | J108: 1 | K108: 4.2 | R108: 0 | W108: 0 | AB108: 0 | AC108: 4.2
A109: 106 | B109: 能化22-1班 | C109: 2022010402 | D109: 季睿 | E109: 红十字会同伴教育部部长 | F109: 8 | G109: 5.33 | H109: 田径协会部长 | I109: 1 | J109: 1 | K109: 5.53 | R109: 0 | S109: 校庆情景朗诵演员 | T109: 1 | W109: 1 | AB109: 0 | AC109: 6.53
A110: 107 | B110: 能化22-1班 | C110: 2022010403 | D110: 成思宇 | E110: 校红会青红部委 | F110: 5 | G110: 3.33 | H110: 能化22-1班信息员 | I110: 4 | J110: 4 | K110: 4.13 | R110: 0 | W110: 0 | AB110: 0 | AC110: 4.13
A111: 108 | B111: 能化22-1班 | C111: 2022010404 | D111: 付晨汐 | K111: 0 | R111: 0 | W111: 0 | X111: 校级文明宿舍 | Y111: 2 | AB111: 2 | AC111: 2
A112: 109 | B112: 能化22-1班 | C112: 2022012313 | D112: 巴合加娜提·加冷 | K112: 0 | R112: 0 | W112: 0 | AB112: 0 | AC112: 0
A113: 110 | B113: 能化22-1班 | C113: 2022010428 | D113: 马芬 | K113: 0 | R113: 0 | W113: 0 | X113: 校级文明宿舍 | Y113: 2 | AB113: 2 | AC113: 2
A114: 111 | B114: 能化22-1班 | C114: 2022010433 | D114: 陈禾婕 | E114: 校青年实践与创新中心办公室部长 | F114: 10 | G114: 6.67 | H114: 青年文化发展中心话剧团团长 | I114: 10 | J114: 6.67 | K114: 8.004 | R114: 0 | W114: 0 | AB114: 0 | AC114: 8.004
B115: 能化22-1班 | C115: 2022010470 | D115: 张润霞 | E115: 校学生会权益部部门负责人 | F115: 10 | G115: 6.67 | H115: 青年文化发展中心办公室部长 | I115: 9 | J115: 6 | K115: 7.87 | L115: “振兴小分队”社会实践校级三等奖 | M115: 是 | N115: 1.33 | R115: 1.333333333 | W115: 0 | X115: 校级文明宿舍 | Y115: 2 | AB115: 2 | AC115: 11.20333333
A116: 113 | B116: 能化22-1班 | C116: 2022010376 | D116: 刘珣 | K116: 0 | R116: 0 | W116: 0 | AB116: 0 | AC116: 0
A117: 114 | B117: 能化22-1班 | C117: 2022010380 | D117: 张茂霖 | K117: 0 | R117: 0 | W117: 0 | AB117: 0 | AC117: 0
A118: 115 | B118: 能化22-1班 | C118: 2022010381 | D118: 耿智盖灵 | K118: 0 | R118: 0 | W118: 0 | AB118: 0 | AC118: 0
A119: 116 | B119: 能化22-1班 | C119: 2022010387 | D119: 陈方旭 | E119: 能化22-1班心理委员 | F119: 3 | G119: 3 | H119: 宿舍长 | I119: 3 | J119: 3 | K119: 3.6 | R119: 0 | W119: 0 | AB119: 0 | AC119: 3.6
A120: 117 | B120: 能化22-1班 | C120: 2022010388 | D120: 缪祥麟 | K120: 0 | R120: 0 | W120: 0 | AB120: 0 | AC120: 0
A121: 118 | B121: 能化22-1班 | C121: 2022010391 | D121: 王禹程 | K121: 0 | R121: 0 | W121: 0 | AB121: 0 | AC121: 0
A122: 119 | B122: 能化22-1班 | C122: 2022010410 | D122: 王子路 | E122: 能化22-1班组织委员 | F122: 4 | G122: 4 | H122: 物理化学课代表 | I122: 3 | J122: 3 | K122: 4.6 | R122: 0 | S122: 校庆开幕式 | T122: 1 | W122: 1 | AB122: 0 | AC122: 5.6
A123: 120 | B123: 能化22-1班 | C123: 2022010417 | D123: 段少坤 | K123: 0 | R123: 0 | W123: 0 | AB123: 0 | AC123: 0
A124: 121 | B124: 能化22-1班 | C124: 2022010420 | D124: 曹坤阳 | K124: 0 | R124: 0 | W124: 0 | AB124: 0 | AC124: 0
A125: 122 | B125: 能化22-1班 | C125: 2022010444 | D125: 汪洋 | K125: 0 | R125: 0 | W125: 0 | AB125: 0 | AC125: 0
A126: 123 | B126: 能化22-1班 | C126: 2022010447 | D126: 王冰宇 | K126: 0 | R126: 0 | W126: 0 | AB126: 0 | AC126: 0
A127: 124 | B127: 能化22-1班 | C127: 2022010451 | D127: 蒋子强 | E127: 大学生记者团部长 | F127: 6 | G127: 4 | H127: 能化22-1班学习委员 | I127: 3 | J127: 3 | K127: 4.6 | R127: 0 | W127: 0 | AB127: 0 | AC127: 4.6
A128: 125 | B128: 能化22-1班 | C128: 2022010455 | D128: 王德民 | E128: 能化22-1班班长 | K128: 0 | R128: 0 | W128: 0 | AB128: 0 | AC128: 0
A129: 126 | B129: 能化22-1班 | C129: 2022010457 | D129: 杨乐辰 | K129: 0 | R129: 0 | W129: 0 | AB129: 0 | AC129: 0
A130: 127 | B130: 能化22-1班 | C130: 2022010474 | D130: 杨志远 | K130: 0 | R130: 0 | W130: 0 | AB130: 0 | AC130: 0
A131: 128 | B131: 能化22-1班 | C131: 2022010475 | D131: 蔡进鹏 | K131: 0 | R131: 0 | W131: 0 | AB131: 0 | AC131: 0
A132: 129 | B132: 能化22-1班 | C132: 2022012318 | D132: 阿尔帕提·阿卜杜合力力 | E132: 能化22-1班副班长 | F132: 5 | G132: 5 | K132: =G132+J132*0.2 -> 5 | R132: =N132+Q132*0.5 -> 0 | W132: =T132+V132 -> 0 | AB132: =Y132+AA132 -> 0 | AC132: =K132+R132+W132+AB132 -> 5
A133: 130 | B133: 能化22-1班 | C133: 2022010513 | D133: 陈心 | E133: 宿舍长 | F133: 3 | G133: 3 | K133: 3 | R133: 0 | W133: 0 | AB133: 0 | AC133: 3
A134: 131 | B134: 能化22-1班 | C134: 2022010517 | D134: 郝信淳 | K134: 0 | R134: 0 | W134: 0 | AB134: 0 | AC134: 0
A135: 132 | B135: 能化22-1班 | C135: 2022010520 | D135: 孙祖麟 | K135: 0 | R135: 0 | W135: 0 | AB135: 0 | AC135: 0
A136: 133 | B136: 能化22-1班 | C136: 2022010523 | D136: 章俊阳 | K136: 0 | R136: 0 | W136: 0 | AB136: 0 | AC136: 0
A137: 134 | B137: 能化22-2班 | C137: 2022010365 | D137: 杨秋瑶 | E137: 红十字会外联部部长 | F137: 8 | G137: 5.33 | H137: 化院学生会权益部部长 | I137: 4.5 | J137: 4.5 | K137: 6.23 | R137: 0 | W137: 0 | AB137: 0 | AC137: 6.23
A138: 135 | B138: 能化22-2班 | C138: 2022010368 | D138: 张露 | E138: 能化22-2班副班长 | F138: 5 | G138: 5 | H138: 化院学生会新媒体部长 | I138: 6 | J138: 6 | K138: 6.2 | R138: 0 | W138: 0 | AB138: 0 | AC138: 6.2
A139: 136 | B139: 能化22-2班 | C139: 2022010396 | D139: 邵兰贺 | H139: 校团委办公室部长 | I139: 7 | J139: 4.67 | K139: 0.934 | R139: 0 | W139: 0 | AB139: 0 | AC139: 0.934
A140: 137 | B140: 能化22-2班 | C140: 2022010462 | D140: 胡咪 | E140: 石创空间宣传部部委 | F140: 4 | G140: 2.67 | K140: 2.67 | R140: 0 | W140: 0 | AB140: 0 | AC140: 2.67
A141: 138 | B141: 能化22-2班 | C141: 2022010464 | D141: 邓姣 | E141: 校红会手语部部委 | F141: 4 | G141: 2.67 | H141: 石创空间宣传部部委 | I141: 4 | J141: 2.67 | K141: 3.204 | R141: 0 | W141: 0 | AB141: 0 | AC141: 3.204
A142: 139 | B142: 能化22-2班 | C142: 2022010492 | D142: 钮缨雪 | E142: 能化22-2团支书 | F142: 6 | G142: 6 | H142: 中石大传媒工作室部长 | I142: 8 | J142: 5.33 | K142: 7.066 | R142: 0 | W142: 0 | X142: 校级文明宿舍 | Y142: 2 | AB142: 2 | AC142: 9.066
A143: 140 | B143: 能化22-2班 | C143: 2022010493 | D143: 付锦依 | E143: 院青协宣传部部长 | F143: 6 | G143: 6 | H143: 组织委员 | I143: 3 | J143: 3 | K143: 6.6 | R143: 0 | W143: 0 | X143: 校级文明宿舍 | Y143: 2 | AB143: 2 | AC143: 8.6
A144: 141 | B144: 能化22-2班 | C144: 2022010495 | D144: 何欣怡 | K144: 0 | R144: 0 | W144: 0 | AB144: 0 | AC144: 0
A145: 142 | B145: 能化22-2班 | C145: 2022010496 | D145: 张鑫 | E145: 红十字会部委 | F145: 6 | G145: 4 | H145: 心理委员 | I145: 3 | J145: 3 | K145: 4.6 | R145: 0 | W145: 0 | AB145: 0 | AC145: 4.6
A146: 143 | B146: 能化22-2班 | C146: 2022010497 | D146: 达娃卓玛 | K146: 0 | R146: 0 | W146: 0 | AB146: 0 | AC146: 0
A147: 144 | B147: 能化22-2班 | C147: 2022010395 | D147: 赵志帆 | K147: 0 | R147: 0 | W147: 0 | AB147: 0 | AC147: 0
A148: 145 | B148: 能化22-2班 | C148: 2022012314 | D148: 努尔兰·吐尔军 | K148: 0 | R148: 0 | W148: 0 | AB148: 0 | AC148: 0
A149: 146 | B149: 能化22-2班 | C149: 2022010450 | D149: 阿坚全 | K149: 0 | R149: 0 | W149: 0 | AB149: 0 | AC149: 0
A150: 147 | B150: 能化22-2班 | C150: 2022010472 | D150: 王奕喆 | K150: 0 | R150: 0 | W150: 0 | AB150: 0 | AC150: 0
A151: 148 | B151: 能化22-2班 | C151: 2022010481 | D151: 施孔君 | K151: 0 | R151: 0 | W151: 0 | AB151: 0 | AC151: 0
A152: 149 | B152: 能化22-2班 | C152: 2022010484 | D152: 李芃钰 | K152: 0 | L152: 扶贫南华显真情，支教路上并肩行 | M152: 否 | N152: 1 | R152: 1 | W152: 0 | AB152: 0 | AC152: 1
A153: 150 | B153: 能化22-2班 | C153: 2022010485 | D153: 刘帅杰 | K153: 0 | R153: 0 | W153: 0 | AB153: 0 | AC153: 0
A154: 151 | B154: 能化22-2班 | C154: 2022010486 | D154: 邵科元 | K154: 0 | R154: 0 | W154: 0 | AB154: 0 | AC154: 0
A155: 152 | B155: 能化22-2班 | C155: 2022010491 | D155: 张志彬 | E155: 能化22-2班班长 | F155: 6 | G155: 6 | H155: 化成天下工作室部长 | I155: 6 | J155: 6 | K155: 7.2 | R155: 0 | W155: 0 | AB155: 0 | AC155: 7.2
A156: 153 | B156: 能化22-2班 | C156: 2022012317 | D156: 萨比尔·库尔班江 | K156: 0 | R156: 0 | W156: 0 | AB156: 0 | AC156: 0
A157: 154 | B157: 能化22-2班 | C157: 2022010503 | D157: 袁祺瑞 | K157: 0 | R157: 0 | W157: 0 | AB157: 0 | AC157: 0
A158: 155 | B158: 能化22-2班 | C158: 2022010505 | D158: 叶斯波力·叶尔生 | E158: 文体委员 | F158: 3 | G158: 3 | K158: 3 | R158: 0 | W158: 0 | AB158: 0 | AC158: 3
A159: 156 | B159: 能化22-2班 | C159: 2022010508 | D159: 郝政凯 | K159: 0 | R159: 0 | W159: 0 | AB159: 0 | AC159: 0
A160: 157 | B160: 能化22-2班 | C160: 2022010509 | D160: 李京运 | K160: 0 | R160: 0 | W160: 0 | AB160: 0 | AC160: 0
A161: 158 | B161: 能化22-2班 | C161: 2022010510 | D161: 李君成 | K161: 0 | R161: 0 | W161: 0 | AB161: 0 | AC161: 0
A162: 159 | B162: 能化22-2班 | C162: 2022010515 | D162: 郭家栋 | K162: 0 | R162: 0 | W162: 0 | AB162: 0 | AC162: 0
A163: 160 | B163: 能化22-2班 | C163: 2022010521 | D163: 吴振宇 | K163: 0 | R163: 0 | W163: 0 | AB163: 0 | AC163: 0
A164: 161 | B164: 能化22-2班 | C164: 2022010522 | D164: 熊俊程 | E164: 能化22-2班学习委员 | F164: 4 | G164: 4 | K164: =G164+J164*0.2 -> 4 | R164: =N164+Q164*0.5 -> 0 | W164: =T164+V164 -> 0 | AB164: =Y164+AA164 -> 0 | AC164: =K164+R164+W164+AB164 -> 4
A165: 162 | B165: 能化22-2班 | C165: 2022012319 | D165: 李文杰 | K165: 0 | R165: 0 | W165: 0 | AB165: 0 | AC165: 0
A166: 163 | B166: 能化22-2班 | C166: 2022012320 | D166: 阿布杜拉·居乃都拉 | K166: 0 | R166: 0 | W166: 0 | AB166: 0 | AC166: 0
A167: 164 | B167: 能化22-2班 | C167: 2022012012 | D167: 欧子俊 | K167: 0 | R167: 0 | W167: 0 | AB167: 0 | AC167: 0

Sheet 德育扣分
A1: 德育扣分
A2: 学号 | B2: 姓名 | C2: 班级 | D2: 翘课学时 | E2: 通报批评 | F2: 德育扣分
A3: 2022010364 | B3: 张姝瑶 | C3: 化工22-1班
A4: 2022010367 | B4: 周芹 | C4: 化工22-1班
A5: 2022010369 | B5: 李越 | C5: 化工22-1班
A6: 2022010370 | B6: 马海霞 | C6: 化工22-1班
A7: 2022010371 | B7: 何丽鸿 | C7: 化工22-1班
A8: 2022010372 | B8: 史佳悦 | C8: 化工22-1班
A9: 2022010373 | B9: 王晴宇 | C9: 化工22-1班
A10: 2022010374 | B10: 袁佳怡 | C10: 化工22-1班
A11: 2022012311 | B11: 布威麦尔耶姆·麦麦提图尔荪 | C11: 化工22-1班
A12: 2022010397 | B12: 李安然 | C12: 化工22-1班
A13: 2022010100 | B13: 智玉轩 | C13: 化工22-1班
A14: 2022010377 | B14: 刘超 | C14: 化工22-1班
A15: 2022010379 | B15: 孙科 | C15: 化工22-1班
A16: 2022010382 | B16: 张铸 | C16: 化工22-1班
A17: 2022010383 | B17: 刘子瑞 | C17: 化工22-1班
A18: 2022010384 | B18: 吴立新 | C18: 化工22-1班
A19: 2022010385 | B19: 龚泽恩 | C19: 化工22-1班
A20: 2022010386 | B20: 李陶然 | C20: 化工22-1班
A21: 2022010389 | B21: 牛浩镔 | C21: 化工22-1班
A22: 2022010390 | B22: 申溱 | C22: 化工22-1班
A23: 2022010392 | B23: 吴照飞 | C23: 化工22-1班
A24: 2022010394 | B24: 张之翼 | C24: 化工22-1班
A25: 2022012312 | B25: 徐峥 | C25: 化工22-1班
A26: 2022010409 | B26: 周家艺 | C26: 化工22-1班
A27: 2022010411 | B27: 姚锦栋 | C27: 化工22-1班
A28: 2022010412 | B28: 代肖彤 | C28: 化工22-1班
A29: 2022010413 | B29: 陈恒宇 | C29: 化工22-1班
A30: 2022010414 | B30: 潘恒懿 | C30: 化工22-1班
A31: 2022010418 | B31: 王明堃 | C31: 化工22-1班
A32: 2022010419 | B32: 史国柱 | C32: 化工22-1班
A33: 2022010516 | B33: 郭智硕 | C33: 化工22-1班
A34: 2022010518 | B34: 贾思远 | C34: 化工22-1班
A35: 2022010519 | B35: 李佳俊 | C35: 化工22-1班
A36: 2022010622 | B36: 顾凌云 | C36: 化工22-1班
A37: 2022010429 | B37: 程实 | C37: 化工22-2班
A38: 2022010430 | B38: 马瑜含 | C38: 化工22-2班
A39: 2022010431 | B39: 贺婕 | C39: 化工22-2班
A40: 2022010432 | B40: 刘雨佳 | C40: 化工22-2班 | D40: 2 | F40: 2
A41: 2022010435 | B41: 秦婧瑶 | C41: 化工22-2班
A42: 2022010436 | B42: 孙涵 | C42: 化工22-2班
A43: 2022010437 | B43: 王晓弘 | C43: 化工22-2班
A44: 2022010438 | B44: 张涵婷 | C44: 化工22-2班
A45: 2022010439 | B45: 张心怡 | C45: 化工22-2班
A46: 2022010494 | B46: 唐樱菲 | C46: 化工22-2班 | D46: 2 | F46: 2
A47: 2022010499 | B47: 曹炜曼 | C47: 化工22-2班
A48: 2022010585 | B48: 崔跃兰 | C48: 化工22-2班
A49: 2022010584 | B49: 肖涵芮 | C49: 化工22-2班
A50: 2022010408 | B50: 许文轲 | C50: 化工22-2班
A51: 2022010422 | B51: 江锦欣 | C51: 化工22-2班
A52: 2022010426 | B52: 赵群 | C52: 化工22-2班
A53: 2022010427 | B53: 周慧林 | C53: 化工22-2班
A54: 2022010440 | B54: 黄颖聪 | C54: 化工22-2班
A55: 2022010441 | B55: 白兆 | C55: 化工22-2班
A56: 2022010442 | B56: 尹泽 | C56: 化工22-2班 | E56: 通报批评 | F56: 10
A57: 2022010443 | B57: 杨志文 | C57: 化工22-2班
A58: 2022010445 | B58: 赵国平 | C58: 化工22-2班
A59: 2022010446 | B59: 金立民 | C59: 化工22-2班
A60: 2022010448 | B60: 王增智 | C60: 化工22-2班
A61: 2022010449 | B61: 郑少杰 | C61: 化工22-2班 | E61: 通报批评 | F61: 10
A62: 2022010452 | B62: 康胜 | C62: 化工22-2班
A63: 2022010453 | B63: 李成歆 | C63: 化工22-2班
A64: 2022010454 | B64: 孙琪桐 | C64: 化工22-2班
A65: 2022010456 | B65: 吴金琪 | C65: 化工22-2班
A66: 2022010458 | B66: 赵帅 | C66: 化工22-2班
A67: 2022010459 | B67: 朱行健 | C67: 化工22-2班
A68: 2022012316 | B68: 陈语 | C68: 化工22-2班
A69: 2022010511 | B69: 罗小刚 | C69: 化工22-2班
A70: 2022010512 | B70: 陈俊逸 | C70: 化工22-2班
A71: 2022010406 | B71: 彭莎莎 | C71: 化工22-3班
A72: 2022010407 | B72: 叶海宇 | C72: 化工22-3班
A73: 2022010460 | B73: 努尔斯巴·买提库尔班 | C73: 化工22-3班
A74: 2022010461 | B74: 吴芷璇 | C74: 化工22-3班
A75: 2022010463 | B75: 孙千翔 | C75: 化工22-3班
A76: 2022010465 | B76: 陈飞月 | C76: 化工22-3班
A77: 2022010467 | B77: 石彩君 | C77: 化工22-3班
A78: 2022010468 | B78: 吴忆 | C78: 化工22-3班
A79: 2022010469 | B79: 许馨月 | C79: 化工22-3班 | D79: 2 | F79: 2
A80: 2022010471 | B80: 张支铭 | C80: 化工22-3班
A81: 2022010500 | B81: 马倩 | C81: 化工22-3班
A82: 2022010501 | B82: 屈芷晴 | C82: 化工22-3班
A83: 2022010421 | B83: 季磊 | C83: 化工22-3班
A84: 2022010423 | B84: 汪礼俊 | C84: 化工22-3班
A85: 2022010424 | B85: 席振昌 | C85: 化工22-3班
A86: 2022010425 | B86: 闫杨奇昊 | C86: 化工22-3班
A87: 2022010473 | B87: 刘源兴 | C87: 化工22-3班
A88: 2022010476 | B88: 何岩松 | C88: 化工22-3班
A89: 2022010477 | B89: 张帅 | C89: 化工22-3班
A90: 2022010478 | B90: 李煌 | C90: 化工22-3班
A91: 2022010479 | B91: 杨广军 | C91: 化工22-3班
A92: 2022010480 | B92: 杨明涛 | C92: 化工22-3班
A93: 2022010482 | B93: 傅世坤 | C93: 化工22-3班 | E93: 通报批评 | F93: 10
A94: 2022010483 | B94: 李浩永 | C94: 化工22-3班
A95: 2022010487 | B95: 涂景豪 | C95: 化工22-3班
A96: 2022010489 | B96: 谢林洲 | C96: 化工22-3班
A97: 2022010490 | B97: 严臻睿 | C97: 化工22-3班
A98: 2022010504 | B98: 李宇翔 | C98: 化工22-3班
A99: 2022010506 | B99: 张席地 | C99: 化工22-3班
A100: 2022010507 | B100: 马凯园 | C100: 化工22-3班
A101: 2022011451 | B101: 喻治坤 | C101: 化工22-3班
A102: 2022010837 | B102: 陈伟玄 | C102: 化工22-3班
A103: 2022010547 | B103: 黄一翀 | C103: 化工22-3班

Sheet 智育加分 (2)
E1: 智育加分
A2: 序号 | B2: 学号 | C2: 姓名 | D2: 班级 | E2: 竞赛名称 | F2: 主办单位 | G2: 竞赛级别 | H2: 获奖等级 | I2: 是否为团队项目 | J2: 若为团队竞赛，填写团队成员；若为个人竞赛，则无需填写 | K2: 加分(辅导员填写)
A3: 实例 | B3: 2018010615 | C3: 张山 | D3: 能化18-1班 | E3: 2020年第十二届北京市大学生化学实验竞赛 | F3: 北京化工大学化学实验竞赛组委会 | G3: 省部级 | H3: 二等奖 | I3: 否
B4: 2018010615 | C4: 张山 | D4: 能化18-1班 | E4: 2020年中国石油大学（北京）第十二届北京市大学生化学实验竞赛校内选拔赛 | F4: 中国石油大学（北京）化学爱好者协会 | G4: 校级 | H4: 一等奖 | I4: 否
B5: 2018010615 | C5: 张山 | D5: 能化18-1班 | E5: 2020年第十届亚太地区大学生数学建模竞赛 | F5: 北京图象图形学学会 | G5: 省部级 | H5: 三等奖 | I5: 是 | J5: 张山，李四，王五
E6: 第十二届全国大学生化学实验邀请赛校赛 | F6: 中国石油大学（北京） | G6: 国家级 | H6: 三等奖 | I6: 否 | J6: 李四、王五、张山、赵六
J7: 合计
B8: 2022010491 | C8: 张志彬 | D8: 能化22-2班 | E8: 青创北京"挑战杯"首都大学生课外学术科技作品竞赛 | F8: 北京市教育委员会 | G8: 省部级 | H8: 一等奖 | I8: 是 | J8: 张志彬 吴忆 孟婧涵 王晴宇 曹炜曼 张润霞 孙涵 叶海宇 | K8: 5.33
B9: 2022010491 | C9: 张志彬 | E9: “创青春”碳中和创新创业大赛 | F9: “创青春”中国青年碳中和创新创业大赛组委会 | G9: 国家级 | H9: 鼓励奖 | I9: 是 | J9: 郭飞扬、吴忆、张伊蕊、张志彬、齐嘉莹、钮缨雪、李佳蕊 | K9: 2.50
B10: 2022010491 | C10: 张志彬 | E10: 2024年第十七届全国大学生节能减排社会实践与科技竞赛 | F10: 中国石油大学（北京） | G10: 校级 | H10: 三等奖 | I10: 是 | J10: 吴忆,左丁伟,张志彬,孟婧涵,曹炜曼,周一凡,霍宇欣 | K10: 1.33
J11: 合计
B12: 2022010493 | C12: 付锦依 | D12: 能化22-2班 | E12: 2024年第十七届全国大学生节能减排社会实践与科技竞赛 | F12: 中国石油大学（华东） | G12: 国家级 | H12: 二等奖 | I12: 是 | J12: 张润霞、王德民、蒋子强、付锦依、王泽寰、邵兰贺、孙鑫洋 | K12: 4.50
B13: 2022010493 | C13: 付锦依 | E13: 2024年中国石油大学（北京）第十五届北京市大学生化学实验竞赛校内选拔赛 | F13: 中国石油大学（北京）理学院 | G13: 校级 | H13: 一等奖 | I13: 否 | K13: 5.00
B14: 2022010494 | C14: 付锦依 | E14: 2024年全国大学生英语竞赛 | F14: 高等学校大学外语教研会 | G14: 校级 | H14: 三等奖 | I14: 否 | K14: 2.00
B15: 2022010495 | C15: 付锦依 | E15: 2024年首届青年绿色科技创新大赛 | F15: 北京林业大学 中国长城绿化促进会 | G15: 国家级 | H15: 一等奖 | I15: 否 | J15: 吴芷璇、傅世坤、李芃钰、张支铭、张帅、张馨瑶、付锦依、池双佑
J16: 合计
B17: 2022010522 | C17: 熊俊程 | D17: 能化22-2班 | E17: 2024年中国石油大学（北京）第十五届北京市大学生化学实验竞赛校内选拔赛 | F17: 中国石油大学（北京）理学院 | G17: 校级 | H17: 三等奖 | I17: 否 | K17: 2.00
C18: 熊俊程 | E18: 2023年中国石油大学（北京）大学生物理竞赛 | F18: 中国石油大学（北京）理学院 | G18: 校级 | H18: 三等奖 | I18: 否 | K18: 2.00
J19: 合计
B20: 2022010496 | C20: 张鑫 | D20: 能化22-2班 | E20: 2024年中国石油大学（北京）第十五届北京市大学生化学实验竞赛校内选拔赛 | F20: 中国石油大学（北京）理学院 | G20: 校级 | H20: 三等奖 | I20: 否 | K20: 2.00
J21: 合计
B22: 2022010486 | C22: 邵科元 | D22: 能化22-22 | E22: 2024中国大学生Chem-E-Car竞赛 | F22: 中国化工学会 | G22: 国家级 | H22: 一等奖 | I22: 是 | J22: 邵科元 潘思迪 康胜 王德民等13人 | K22: 6.00
J23: 合计
B24: 2022012012 | C24: 欧子俊 | D24: 能化22-2班 | E24: 2024年中国石油大学（北京）第十五届北京市大学生化学实验竞赛校内选拔赛 | F24: 中国石油大学（北京）理学院 | G24: 校级 | H24: 三等奖 | I24: 否 | K24: 2.00
J25: 合计
B26: 2022010492 | C26: 钮缨雪 | D26: 能化22-22 | E26: “创青春”碳中和创新创业大赛 | F26: “创青春”中国青年碳中和创新创业大赛组委会 | G26: 国家级 | H26: 鼓励奖 | I26: 是 | J26: 郭飞扬、吴忆、张伊蕊、张志彬、齐嘉莹、钮缨雪、李佳蕊 | K26: 2.50
C27: 钮缨雪 | E27: 2024年第十七届全国大学生节能减排社会实践与科技竞赛 | F27: 中国石油大学（北京） | G27: 校级 | H27: 三等奖 | I27: 是 | J27: 郭飞扬、黄凯涵、李佳蕊、齐嘉莹、钮缨雪、张伊蕊 | K27: 1.33
J28: 合计
B29: 2022010368 | C29: 张露 | D29: 能化22-2 | E29: 2024年中国石油大学（北京）第十五届北京市大学生化学实验竞赛校内选拔赛 | F29: 中国石油大学（北京）理学院 | G29: 校级 | H29: 一等奖 | I29: 否 | K29: 5.00
C30: 张露 | E30: 2023年中国石油大学（北京）大学生物理竞赛 | F30: 中国石油大学（北京）理学院 | G30: 校级 | H30: 一等奖 | I30: 否 | K30: 5.00
C31: 张露 | E31: 2023年北京市第三十四届大学生数学竞赛（非数学专业甲组） | F31: 北京数学会 | G31: 市级 | H31: 三等奖 | I31: 否 | K31: 6.00
C32: 张露 | E32: 2023年第十五届全国大学生数学竞赛（非数学A类） | F32: 中国数学会 | G32: 国家级 | H32: 三等奖 | I32: 否 | K32: 6.00
J33: 合计
B34: 2022010365 | C34: 杨秋瑶 | D34: 能化22-2 | E34: 2024年中国石油大学（北京）第十五届北京市大学生化学实验竞赛校内选拔赛 | F34: 中国石油大学（北京）理学院 | G34: 校级 | H34: 二等奖 | I34: 否 | K34: 4.00
C35: 杨秋瑶 | E35: 2024年大学生英语竞赛 | F35: 高等学校大学外语教研会 | G35: 国家级 | H35: 三等奖 | I35: 否 | K35: 6.00
C36: 杨秋瑶 | E36: 2023年中国石油大学（北京）大学生物理竞赛 | F36: 中国石油大学（北京）理学院 | G36: 校级 | H36: 一等奖 | I36: 否 | K36: 5.00
J37: 合计
B38: 2022010464 | C38: 邓姣 | D38: 能化22-2 | E38: 2024年中国石油大学（北京）第十五届北京市大学生化学实验竞赛校内选拔赛 | F38: 中国石油大学（北京）理学院 | G38: 校级 | H38: 一等奖 | I38: 否 | K38: 5.00
C39: 邓姣 | E39: 北京市大学生化工原理竞赛 | F39: 中国石油大学（北京）理学院 | G39: 校级 | H39: 三等奖 | I39: 否 | K39: 2.00
J40: 合计
B41: 2022010484 | C41: 李芃钰 | D41: 能化22-2 | E41: 2024年首届青年绿色科技创新大赛 | F41: 北京林业大学 中国长城绿化促进会 | G41: 国家级 | H41: 一等奖 | I41: 是 | J41: 吴芷璇、傅世坤、李芃钰、张支铭、张帅、张馨瑶、付锦依、池双佑
C42: 李芃钰 | E42: 2023年“CAN油”中国石油大学(北京)创业大赛 | F42: 共青团中国石油大学(北京)委员会 创新创业教育学院 | G42: 校级 | H42: 一等奖 | I42: 是 | J42: 吴芷璇、吴思玮、陈子骏、李芃钰、张支铭、池双佑、张馨瑶、徐卫星、康 胜、张诗曼、张心怡、李俊杰、陈 妮、余曼妮 | K42: 2.50
C43: 李芃钰 | E43: 第六届北京市大学生节能节水低碳减排社会实践与科技竞赛 | F43: 北京市教育委员会 | G43: 市级 | H43: 三等奖 | I43: 是 | J43: 吴芷璇,吴思玮,张支铭,池双佑,陈子骏,马晟哲,李芃钰 | K43: 2.50
C44: 李芃钰 | E44: 2023 年北京高校大学生创新创业训练校际合作计划 | F44: 北京高校创新创业人才培养指导中心，北京邮电大学 | G44: 市级 | H44: 一等奖 | I44: 是 | J44: 吴芷璇、傅世坤、李芃钰、张支铭、陈妮 | K44: 0.00
J45: 合计
B46: 2022010455 | C46: 王德民 | D46: 能化22-1 | E46: 2023年中国石油大学（北京）大学生物理竞赛 | F46: 中国石油大学（北京） | G46: 校级 | H46: 一等奖 | I46: 否 | K46: 5.00
C47: 王德民 | E47: 第十五届北京市化学实验竞赛校赛 | F47: 中国石油大学（北京） | G47: 校级 | H47: 一等奖 | I47: 否 | K47: 5.00
C48: 王德民 | E48: 2024年中国石油大学（北京）大学生化工原理竞赛 | F48: 中国石油大学（北京） | G48: 校级 | H48: 三等奖 | I48: 否 | K48: 2.00
C49: 王德民 | E49: 2024中国大学生Chem-e-car竞赛 | F49: 中国化工学会 | G49: 国家级 | H49: 一等奖 | I49: 是 | J49: 潘思迪，郭智硕，金立民，刘庆炽，李佳俊，周怡辰，王德民，康胜，王佳琪，陈佳佳，刘润昊，邵科元，张磊 | K49: 6.00
C50: 王德民 | E50: 第十七届全国大学生节能减排社会实践与科技竞赛 | F50: 全国大学生节能减排社会实践与科技竞赛委员会 | G50: 国家级 | H50: 二等奖 | I50: 是 | J50: 张润霞，王德民，蒋子强，付锦依，王泽寰，邵兰贺，孙鑫洋 | K50: 4.50
J51: 合计
B52: 2022010513 | C52: 陈心 | D52: 能化22-1 | E52: 2023年中国石油大学（北京）大学生物理竞赛 | F52: 中国石油大学（北京） | G52: 校级 | H52: 二等奖 | I52: 否 | K52: 4.00
J53: 合计
B54: 2022010470 | C54: 张润霞 | D54: 能化22-1 | E54: 第十五届北京市化学实验竞赛校赛 | F54: 中国石油大学（北京） | G54: 校级 | H54: 二等奖 | I54: 否 | K54: 4.00
C55: 张润霞 | E55: 第十七届全国大学生节能减排社会实践与科技竞赛 | F55: 全国大学生节能减排社会实践与科技竞赛委员会 | G55: 国家级 | H55: 二等奖 | I55: 是 | J55: 张润霞，王德民，蒋子强，付锦依，王泽寰，邵兰贺，孙鑫洋 | K55: 6.00
C56: 张润霞 | E56: 中国国际大学生创新大赛（2024）北京赛区“青年红色筑梦之旅”赛道 | F56: 北京市教育委员会 | G56: 省部级 | H56: 三等奖 | I56: 是 | J56: 罗楚龙，孙一铭，戴的珊，宋暑寒，张清爽，于闿歌，黄乐，罗语涵，邹怀墨，杨杭，张润霞，刘紫颖，巨博雅，段雨杨，孙润祺 | K56: 3.00
C57: 张润霞 | E57: 2023年“CAN油”中国石油大学（北京）创业大赛暨2024年“挑战杯”中国大学生创业计划竞赛 | F57: 共青团中国石油大学（北京）委员会创新创业教育学院 | G57: 校级 | H57: 二等奖 | I57: 是 | J57: 孙一铭，戴的珊，贾亿博，康栗铭，孟婧涵，黄乐，罗语涵，邹怀墨，杨安琦，张润霞，董家琛，巨博雅，段雨杨，孙润祺，许铭伟 | K57: 2.00
C58: 张润霞 | E58: “青创北京” 2024年“挑战杯”首都大学生创业计划竞赛 | F58: 市教委、团市委、市学联、市科协 | G58: 省部级 | H58: 二等奖 | I58: 是 | J58: 吴忆，孟婧涵，王晴宇，曹炜曼，张润霞，孙涵 | K58: 3.00
J59: 合计
B60: 2022010387 | C60: 陈方旭 | D60: 能化22-1 | E60: 第十五届北京市化学实验竞赛校赛 | F60: 中国石油大学（北京） | G60: 校级 | H60: 三等奖 | I60: 否 | K60: 2.00
J61: 合计
B62: 2022010401 | C62: 贾文青 | D62: 能化22-1 | E62: 2024年中国石油大学（北京）大学生化工原理竞赛 | F62: 中国石油大学(北京) | G62: 校级 | H62: 三等奖 | I62: 否 | K62: 2.00
J63: 合计
B64: 2022010402 | C64: 季睿 | D64: 能化22-1 | E64: 2024年中国石油大学（北京）大学生化工原理竞赛 | F64: 中国石油大学（北京） | G64: 校级 | H64: 三等奖 | I64: 否 | K64: 2.00
J65: 合计
B66: 2022010451 | C66: 蒋子强 | D66: 能化22-1 | E66: 2023年中国石油大学（北京）大学生物理竞赛 | F66: 中国石油大学（北京） | G66: 校极 | H66: 二等奖 | I66: 否 | K66: 4.00
C67: 蒋子强 | E67: 第十五届北京市化学实验竞赛校赛 | F67: 中国石油大学（北京） | G67: 校级 | H67: 一等奖 | I67: 否 | K67: 5.00
C68: 蒋子强 | E68: 2024年中国石油大学（北京）大学生化工原理竞赛 | F68: 中国石油大学（北京） | G68: 校级 | H68: 三等奖 | I68: 否 | K68: 2.00
C69: 蒋子强 | E69: 第十七届全国大学生节能减排社会实践与科技竞赛 | F69: 全国大学生节能减排社会实践与科技竞赛委员会 | G69: 国家级 | H69: 二等奖 | I69: 是 | J69: 张润霞，王德民，蒋子强，付锦依，王泽寰，邵兰贺，孙鑫洋 | K69: 4.50
J70: 合计
B71: 2022010433 | C71: 陈禾婕 | D71: 能化22-1 | E71: 2024全国大学生英语能力竞赛 | F71: 中国石油大学（北京） | G71: 校级 | H71: 一等奖 | I71: 否 | K71: 5.00
C72: 陈禾婕 | E72: 2023年外教杯 | F72: 中国石油大学（北京） | G72: 校级 | H72: 三等奖 | I72: 是 | J72: 陈雨薇，陈禾婕，袁佳怡 | K72: 1.00
C73: 陈禾婕 | E73: “青创北京”2024挑战杯首都大学生创业计划竞赛 | F73: 市教委，团市委，市学联，市科协 | G73: 省部级 | H73: 三等奖 | I73: 是 | J73: 陈禾婕，郑少杰，廖沛沛，蔡宜含，麦卜文，李沁芸，杨晨曦，姜慧，郭文宣，郭园粟 | K73: 2.67
C74: 陈禾婕 | E74: 2024外研杯全国大学生英语写作大赛 | F74: 中国石油大学（北京） | G74: 校级 | H74: 三等奖 | I74: 否 | K74: 2.00
J75: 合计
B76: 2022010399 | C76: 邱绮慧 | D76: 能化22-1 | E76: 第十五届北京市化学实验竞赛校赛 | F76: 中国石油大学（北京） | G76: 校级 | H76: 三等奖 | I76: 否 | K76: 2.00
C77: 邱绮慧 | E77: 中国国际大学生创新大赛 | F77: 北京市教育委员会 | G77: 省部级 | H77: 三等奖 | I77: 是 | J77: 周子正，凌晨，陈凯毅，李永峰，马广，李泽辰，孟钰明，谭雪，刘雨欣，陈锐，邱绮慧，乐嘉宇 | K77: 3.00
J78: 合计
B79: 2022010465 | C79: 陈飞月 | D79: 化工-22-3班 | E79: 2024年北京市大学生化工原理竞赛 | F79: 北京市教育委员会 | G79: 省部级 | H79: 三等奖 | I79: 否 | K79: 4.00
B80: 2022010465 | C80: 陈飞月 | D80: 化工-22-3班 | E80: 2024年北京市大学生化工原理竞赛 | F80: 北京市教育委员会 | G80: 省部级 | H80: 团体二等奖 | I80: 是 | K80: 3.00
J81: 合计
B82: 2022010463 | C82: 孙千翔 | D82: 化工-22-3班 | E82: 2023“CAN油”中国石油大学（北京）创业大赛暨2024年“挑战杯”中国大学生创业计划竞赛校内选拔赛 | F82: 共青团中国石油大学（北京）委员会 创新创业教育学院 | G82: 校级 | H82: 一等奖 | I82: 是 | J82: 章姝，杨欣悦,张仁婕,张伊萌,张思为,武妤珈,乔琳舒,王心悦,温绮婷,李健凯,唐舞,王奕欢,孙千翔,董皊希,阿丽亚 | K82: 2.50
B83: 2022010463 | C83: 孙千翔 | D83: 化工-22-3班 | E83: "青创北京"2024年"挑战杯"首都大学生创业计划竞赛主赛道 | F83: 共青团北京市委员会联合北京市教育委员会、北京市人力资源和社会保障局、北京市科学技术协会、北京市青年联合会、北京市学生联合会 | G83: 省级 | H83: 银奖 | I83: 是 | J83: 章姝，杨欣悦,张仁婕,张伊萌,张思为,武妤珈,乔琳舒,王心悦,温绮婷,李健凯,唐舞,王奕欢,孙千翔,董皊希,阿丽亚 | K83: 3.00
B84: 2022010463 | C84: 孙千翔 | D84: 化工-22-3班 | E84: 第十四届全国大学生电子商务"创新、创意及创业"挑战赛北京赛区省级选拔赛 | F84: 教育部高等学校电子商务类专业教学指导委员会 | G84: 省级 | H84: 二等奖 | I84: 是 | J84: 章姝，杨欣悦,张仁婕,张伊萌,张思为,武妤珈,乔琳舒,王心悦,温绮婷,李健凯,唐舞,王奕欢,孙千翔,董皊希,阿丽亚 | K84: 4.00
J85: 合计
B86: 2022010407 | C86: 叶海宇 | D86: 化工-22-3班 | E86: 中国国际大学生创新大赛 | F86: 教育部、中央统战部、中央网信办、国家发展改革委、工业和信息化部、人力资源社会保障部、农业农村部、 中国科学院、中国工程院、国家知识产权局、国家乡村振兴局、 共青团中央和上海市人民政府 | G86: 省部级 | H86: 三等奖 | I86: 是 | J86: 彭莎莎 许文轲 江锦欣 杨雨珊 任正元 彭圆圆 叶海宇 袁佳怡 乔译萱 张文柯 王宇昕 | K86: 3.00
B87: 2022010407 | C87: 叶海宇 | D87: 化工-22-3班 | E87: 2024年第十五届北京市大学生化学实验竞赛 | F87: 北京市教育委员会 | G87: 校级 | H87: 二等奖 | I87: 否 | K87: 4.00
B88: 2022010407 | C88: 叶海宇 | D88: 化工-22-3班 | E88: 第六届全国大学生语言文字能力大赛 | F88: 中国语文报刊协会 | G88: 国家级 | H88: 非专业组金奖 | I88: 否 | K88: 12.00
B89: 2022010407 | C89: 叶海宇 | D89: 化工-22-3班 | E89: “青创北京”2024年“挑战杯”首都大学生创业计划竞赛 | F89: 共青团北京市委员会、北京市教育委员会、北京市人力资源和社会保障局、北京市科学技术协会、北京市青年联合会、北京市学生联合会 | G89: 省部级 | H89: 铜奖 | I89: 是 | J89: 张志彬 吴忆 孟婧涵 王晴宇 曹炜曼 张润霞 孙涵 叶海宇 | K89: 2.00
B90: 2022010407 | C90: 叶海宇 | D90: 化工-22-3班 | E90: 2024年中国石油大学（北京）大学生化工原理竞赛（校赛） | F90: 北京市教育委员会 | G90: 校级 | H90: 三等奖 | I90: 否 | K90: 2.00
J91: 合计
B92: 2022010468 | C92: 吴忆 | D92: 化工-22-3班 | E92: 第十五届中国石油大学（北京） 节能减排社会实践和科技竞赛（校级） | F92: 中国石油大学（北京） | G92: 校级 | H92: 三等奖 | I92: 是 | J92: 吴忆 左丁伟 张志彬 孟婧涵 曹炜曼 周一凡 霍宇欣 | K92: 1.33
B93: 2022010468 | C93: 吴忆 | D93: 化工-22-3班 | E93: “创青春”中国青年碳中和创新创业大赛 | F93: “创青春”中国青年碳中和创新创业大赛全国组委会 | G93: 国家级 | H93: 华北赛区二等奖 | I93: 是 | J93: 郭飞扬 吴忆 张伊蕊 张志彬 齐嘉莹 钮缨雪 李佳蕊 | K93: 2.50 | L93: 省部级
B94: 2022010468 | C94: 吴忆 | D94: 化工-22-3班 | E94: “青创北京”2024年“挑战杯”首都大学生创业计划竞赛 | F94: 共青团中央 | G94: 省部级 | H94: 三等奖 | I94: 是 | J94: 张志彬 吴忆 孟婧涵 王晴宇 叶海宇 张润霞 曹炜曼 孙涵 | K94: 2.00
J95: 合计
B96: 2022010477 | C96: 张帅 | D96: 化工-22-3班 | E96: 2023年大学生创新创业训练计划项目 —创新训练项目 | F96: 中国石油大学（北京） | G96: 国家级 | H96: A | I96: 是 | J96: 郭敬薇、张帅、冯麟喧、黄允恩、姚爽 | L96: 科创评级不加分
B97: 2022010477 | C97: 张帅 | D97: 化工-22-3班 | E97: 2024年第十五届北京市大学生化学实验竞赛校内选拔赛 | F97: 中国石油大学（北京） | G97: 校级 | H97: 三等奖 | I97: 否 | K97: 2.00
B98: 2022010477 | C98: 张帅 | D98: 化工-22-3班 | E98: 2024年第十届全国大学生物理实验讲课竞赛校内选拔赛 | F98: 中国石油大学（北京） | G98: 校级 | H98: 一等奖 | I98: 否 | L98: 不在库里
B99: 2022010477 | C99: 张帅 | D99: 化工-22-3班 | E99: “青创北京”2024年“挑战杯”首都大学生创业计划竞赛“青系四海”专项赛 | F99: 共青团北京市委员会 | G99: 省部级 | H99: 铜奖 | I99: 是 | J99: 张帅、 周晓光、 张晨曦、 黄允恩、 冯麟喧、 王嘉雨、 吴芷璇、 李朵朵、 史优果、 杨超 | K99: 2.67
B100: 2022010477 | C100: 张帅 | D100: 化工-22-3班 | E100: 2024年第十四届MathorCup数学应用挑战赛 | F100: 中国优选法统筹法与经济数学研究会 | G100: 国家级 | H100: 三等奖 | I100: 是 | J100: 张帅、张京生、史优果
B101: 2022010477 | C101: 张帅 | D101: 化工-22-3班 | E101: 首届青年绿色科技创新大赛 | F101: 共青团中央社会联络部 | G101: 国家级 | H101: 金奖 | I101: 是 | J101: 吴芷璇、傅世坤、李芃钰、张支铭、张帅、张馨瑶、付锦依、池双佑
B102: 2022010477 | C102: 张帅 | D102: 化工-22-3班 | E102: 第二届“创青春”中国青年碳中和创新创业大赛 | F102: 全国组委会 | G102: 国家级 | H102: 华北赛区铜奖 | I102: 是 | J102: 吴芷璇、张支铭、张帅、孙涵、池双佑、陈妮、鲁硕、张瑶馨 | K102: 2.00 | L102: 省部级
J103: 合计
B104: 2022010506 | C104: 张席地 | D104: 化工-22-3班 | E104: 北京高校学生信息素养大赛 | F104: 中国石油大学（北京） | G104: 校级 | H104: 三等奖 | I104: 否 | K104: 2.00
B105: 2022010506 | C105: 张席地 | D105: 化工-22-3班 | E105: “青创北京”2024年“挑战杯”首都大学生创业计划竞赛 | F105: 共青团北京市委员会 | G105: 省部级 | H105: 铜奖 | I105: 是 | J105: 马燕、格思尔、文璐、卢永丽、张席地 | K105: 2.00
J106: 合计
B107: 2022010837 | C107: 陈伟玄 | D107: 化工-22-3班 | E107: 2023年全国大学生物理竞赛——校内选拔赛 | F107: 中国石油大学（北京）理学院 | G107: 校级 | H107: 二等奖 | I107: 否 | K107: 4.00
B108: 2022010837 | C108: 陈伟玄 | D108: 化工-22-3班 | E108: 2024年第十五届北京市大学生化学实验竞赛校 内选拔赛 | F108: 中国石油大学（北京）理学院 | G108: 校级 | H108: 一等奖 | I108: 否 | K108: 5.00
J109: 合计
B110: 2022010406 | C110: 彭莎莎 | D110: 化工-22-3班 | E110: 北京市化学实验竞赛 | F110: 北京市教育委员会 | G110: 校级 | H110: 一等奖 | I110: 否 | K110: 8.00
B111: 2022010406 | C111: 彭莎莎 | D111: 化工-22-3班 | E111: 全国大学生物理实验讲课比赛 | F111: 国家级实验教学示范中心联席会物理学科组、教育部大学物理课程教学指导委员会大学物理实验专项委员会、全国高等学校实验物理教学研究会、中国物理学会物理教学委员会、全国大学生物理实验竞赛组织委员会联合主办 | G111: 校级 | H111: 一等奖 | I111: 否 | K111: 5.00
B112: 2022010406 | C112: 彭莎莎 | D112: 化工-22-3班 | E112: 中国国际大学生创新大赛 | F112: 教育部、中央统战部、中央网信办、国家发展改革委、工业和信息化部、人力资源社会保障部、农业农村部、中国科学院、中国工程院、国家知识产权局、国家乡村振兴局、共青团中央和上海市人民政府联合主办 | G112: 省部级 | H112: 三等奖 | I112: 是 | J112: 彭莎莎，许文轲,江锦欣,杨雨珊,任正元,彭圆圆，叶海宇，袁佳怡，乔译萱,张文柯,王宇昕 | K112: 4.00
B113: 2022010406 | C113: 彭莎莎 | D113: 化工-22-3班 | E113: 中国国际大学生创新大赛 | F113: 教育部、中央统战部、中央网信办、国家发展改革委、工业和信息化部、人力资源社会保障部、农业农村部、中国科学院、中国工程院、国家知识产权局、国家乡村振兴局、共青团中央和上海市人民政府联合主办 | G113: 省部级 | H113: 三等奖 | I113: 是 | J113: 乔译萱，张文柯,王宇昕,尹嘉鑫,任正元,石瀚坤,金美萱,杨雨萌,彭莎莎,许文轲,江锦欣,喻治坤 | K113: 3.00
J114: 合计
B115: 2022011451 | C115: 喻治坤 | D115: 化工-22-3班 | E115: 化学实验竞赛 | F115: 中国石油大学北京理学院 | G115: C类 | H115: 校一等奖 | I115: 否 | K115: 5.00
B116: 2022011451 | C116: 喻治坤 | D116: 化工-22-3班 | E116: 北京市大学生数学竞赛 | F116: 北京数学会 | G116: B类 | H116: 省三等奖 | I116: 否 | K116: 4.00
B117: 2022011451 | C117: 喻治坤 | D117: 化工-22-3班 | F117: 节能减排比赛 | G117: b类 | H117: 校一等奖 | I117: 是 | J117: 喻治坤，王培硕，王浙，任正元，马梓宸，白兆 | K117: 0.00
B118: 2022011451 | C118: 喻治坤 | D118: 化工-22-3班 | F118: 节水节能减排 | G118: c类 | H118: 省一等奖 | I118: 是 | J118: 喻治坤，王培硕，王浙，任正元，马梓宸，桑松涛 | K118: =7*2/3 -> 4.67
J119: 合计
B120: 2022010478 | C120: 李煌 | D120: 化工-22-3班 | E120: 北京市第三十四届大学生数学竞赛 | F120: 北京数学会 | G120: 省部级 | H120: 三等奖 | I120: 否 | K120: 4.00
B121: 2022010478 | C121: 李煌 | D121: 化工-22-3班 | E121: 第十五届全国大学生数学竞赛 | F121: 中国数学会 | G121: 国家级 | H121: 三等奖 | I121: 否 | K121: 6.00
B122: 2022010478 | C122: 李煌 | D122: 化工-22-3班 | E122: 全国大学生电子商务“创新，创意及创业”挑战赛 | F122: 全国大学生电子商务“创新，创意及创业”挑战赛竞赛组织委员会 | G122: 省部级 | H122: 二等奖 | I122: 是 | J122: 吴芷璇、张支铭、李煌、池双佑、陈子骏 | K122: 4.00
B123: 2022010478 | C123: 李煌 | D123: 化工-22-3班 | E123: 第十五届北京市化学实验竞赛校赛 | F123: 中国石油大学（北京） | G123: 校级 | H123: 二等奖 | I123: 否 | K123: 4.00
J124: 合计
B125: 2022010490 | C125: 严臻睿 | D125: 化工-22-3班 | E125: 《废塑料催化剂研究进展》 | F125: 塑料科技 | J125: 严臻睿、谢林洲
J126: 合计
B127: 2022010489 | C127: 谢林洲 | D127: 化工-22-3班 | E127: 北京市大学生化学实验竞赛校内选拔赛 | F127: 中国石油大学（北京）理学院 | G127: 校级 | H127: 校一等奖 | I127: 否 | K127: 5.00
B128: 2022010489 | C128: 谢林洲 | D128: 化工-22-3班 | E128: 《塑料科技》期刊发表 | I128: 是 | J128: 严臻睿、谢林洲
J129: 合计
B130: 2022010471 | C130: 张支铭 | D130: 化工-22-3班 | E130: 第二届“创青春”中国青年碳中和创新创业大赛 | F130: “创青春”中国青年碳中和创新创业大赛全国组委会 | G130: 华北赛区 | H130: 铜奖 | I130: 是 | J130: 吴芷璇、张支铭、张帅、孙涵、池双佑、陈妮、鲁硕、张馨瑶 | K130: 2.00
B131: 2022010471 | C131: 张支铭 | D131: 化工-22-3班 | E131: “青创北京”2024年“挑战杯”中国大学生创业计划竞赛主赛道 | F131: 共青团北京市委员会联合北京市教育委员会、北京市人力资源和社会保障局、北京市科学技术协会、北京市青年联合会、北京市学生联合会 | G131: 市级 | H131: 金奖 | I131: 是 | J131: 吴芷璇 吴思玮 张纯懿 杨佳豪 张支铭 池双佑 陈子骏 徐卫星 康胜 张心怡 高文月 黄允恩 刘双 陈凯毅 张东元 | K131: 4.00
B132: 2022010471 | C132: 张支铭 | D132: 化工-22-3班 | E132: 首届青年绿色科技创新大赛 | F132: 全国青少年生态文明教育中心北京林业大学中国长城绿化促进会 | G132: 国家级 | H132: 金奖 | I132: 是 | J132: 吴芷璇、傅世坤、李芃钰、张支铭、张帅、张馨瑶、付锦依、池双佑
B133: 2022010471 | C133: 张支铭 | D133: 化工-22-3班 | E133: 第十四届全国大学生电子商务“创新、创意及创业”挑战赛 | F133: 全国大学生电子商务“创新、创意及创业”挑战赛竞赛组织委员会 | G133: 市级 | H133: 二等奖 | I133: 是 | J133: 吴芷璇、张支铭、李煌、池双佑、陈子骏 | K133: 4.00
B134: 2022010471 | C134: 张支铭 | D134: 化工-22-3班 | E134: 中国国际大学生创新大赛（2024）北京赛区复赛决赛高教主赛道 | F134: 中国国际大学生创新大赛组织委员会 | G134: 市级 | H134: 二等奖 | I134: 是 | J134: 吴芷璇,吴思玮,陈子骏,池双佑,张支铭,康胜,马晟哲,黎之旭,贾子琨,全震,丁彬,叶为民,黄允恩,周子正 | K134: 4.00
B135: 2022010471 | C135: 张支铭 | D135: 化工-22-3班 | E135: 第十五届中国石油大学(北京)节能减排社会实践和科技竞赛 | F135: 中国石油大学（北京） | G135: 校级 | H135: 一等奖 | I135: 是 | J135: 吴芷璇,吴思玮,陈子骏,张支铭,池双佑,马晟哲,康胜 | K135: 0.00
B136: 2022010471 | C136: 张支铭 | D136: 化工-22-3班 | E136: 第六届北京市大学生节能节水低碳减排社会实践与科技竞赛 | F136: 北京市教育委员会 | G136: 市级 | H136: 三等奖 | I136: 是 | J136: 吴芷璇,吴思玮,张支铭,池双佑,陈子骏,马晟哲,李芃钰 | K136: 2.50 | L136: 市赛国赛加高的
B137: 2022010471 | C137: 张支铭 | D137: 化工-22-3班 | E137: 第三届“京彩大创”北京大学生创新创业大赛 | F137: 北京市教育委员会、北京市人力资源和社会保障局、北京市发展和改革委员会 | G137: 市级 | H137: 创业百强团队 | I137: 是 | J137: 吴芷璇、吴思玮、陈子骏、张支铭、池双佑、康胜、马晟哲、张诗曼、王一伊、钮缨雪 | K137: 1.50
B138: 2022010471 | C138: 张支铭 | D138: 化工-22-3班 | E138: 2023 年北京高校大学生创新创业训练校际合作计划 | F138: 北京高校创新创业人才培养指导中心，北京邮电大学 | G138: 市级 | H138: 一等奖 | I138: 是 | J138: 吴芷璇、傅世坤、李芃钰、张支铭、汪于晏 | L138: 不在库里
J139: 合计
B140: 2022010461 | C140: 吴芷璇 | D140: 化工-22-3班 | E140: 第二届“创青春”中国青年碳中和创新创业大赛 | F140: “创青春”中国青年碳中和创新创业大赛全国组委会 | G140: 华北赛区 | H140: 铜奖 | I140: 是 | J140: 吴芷璇、张支铭、张帅、孙涵、池双佑、陈妮、鲁硕、张馨瑶 | K140: 2.67
B141: 2022010461 | C141: 吴芷璇 | D141: 化工-22-3班 | E141: “青创北京”2024年“挑战杯”首都大学生创业计划竞赛主赛道 | F141: 共青团北京市委员会联合北京市教育委员会、北京市人力资源和社会保障局、北京市科学技术协会、北京市青年联合会、北京市学生联合会 | G141: 市级 | H141: 金奖 | I141: 是 | J141: 吴芷璇 吴思玮 张纯懿 杨佳豪 张支铭 池双佑 陈子骏 徐卫星 康胜 张心怡 高文月 黄允恩 刘双 陈凯毅 张东元 | K141: 5.33
B142: 2022010461 | C142: 吴芷璇 | D142: 化工-22-3班 | E142: 首届青年绿色科技创新大赛 | F142: 全国青少年生态文明教育中心北京林业大学中国长城绿化促进会 | G142: 国家级 | H142: 金奖 | I142: 是 | J142: 吴芷璇、傅世坤、李芃钰、张支铭、张帅、张馨瑶、付锦依、池双佑 | L142: 不在库里
B143: 2022010461 | C143: 吴芷璇 | D143: 化工-22-3班 | E143: 第十四届全国大学生电子商务“创新、创意及创业”挑战赛 | F143: 全国大学生电子商务“创新、创意及创业”挑战赛竞赛组织委员会 | G143: 市级 | H143: 二等奖 | I143: 是 | J143: 吴芷璇、张支铭、李煌、池双佑、陈子骏 | K143: 5.33
B144: 2022010461 | C144: 吴芷璇 | D144: 化工-22-3班 | E144: 中国国际大学生创新大赛（2024）北京赛区复赛决赛高教主赛道 | F144: 中国国际大学生创新大赛组织委员会 | G144: 市级 | H144: 二等奖 | I144: 是 | J144: 吴芷璇,吴思玮,陈子骏,池双佑,张支铭,康胜,马晟哲,黎之旭,贾子琨,全震,丁彬,叶为民,黄允恩,周子正 | K144: 5.33
B145: 2022010461 | C145: 吴芷璇 | D145: 化工-22-3班 | E145: 第十五届中国石油大学(北京)节能减排社会实践和科技竞赛 | F145: 中国石油大学（北京） | G145: 校级 | H145: 一等奖 | I145: 是 | J145: 吴芷璇,吴思玮,陈子骏,张支铭,池双佑,马晟哲,康胜 | K145: 0.00
B146: 2022010461 | C146: 吴芷璇 | D146: 化工-22-3班 | E146: 第六届北京市大学生节能节水低碳减排社会实践与科技竞赛 | F146: 北京市教育委员会 | G146: 市级 | H146: 三等奖 | I146: 是 | J146: 吴芷璇,吴思玮,张支铭,池双佑,陈子骏,马晟哲,李芃钰 | K146: 3.33
B147: 2022010461 | C147: 吴芷璇 | D147: 化工-22-3班 | E147: 第三届“京彩大创”北京大学生创新创业大赛 | F147: 北京市教育委员会、北京市人力资源和社会保障局、北京市发展和改革委员会 | G147: 市级 | H147: 创业百强团队 | I147: 是 | J147: 吴芷璇、吴思玮、陈子骏、张支铭、池双佑、康胜、马晟哲、张诗曼、王一伊、钮缨雪 | K147: 2.00
B148: 2022010461 | C148: 吴芷璇 | D148: 化工-22-3班 | E148: 2023 年北京高校大学生创新创业训练校际合作计划 | F148: 北京高校创新创业人才培养指导中心，北京邮电大学 | G148: 市级 | H148: 一等奖 | I148: 是 | J148: 吴芷璇、傅世坤、李芃钰、张支铭、汪于晏 | L148: 不在库里
B149: 2022010461 | C149: 吴芷璇 | D149: 化工-22-3班 | E149: “青创北京”2024年“挑战杯”首都大学生创业计划竞赛“青系四海”赛道 | F149: 共青团北京市委员会联合北京市教育委员会、北京市人力资源和社会保障局、北京市科学技术协会、北京市青年联合会、北京市学生联合会 | G149: 市级 | H149: 三等奖 | I149: 是 | J149: 张帅、冯麟喧、黄允恩、周晓光、史优果、李朵朵、吴芷璇、杨超、王嘉雨、张晨曦 | K149: 2.00
B150: 2022010461 | C150: 吴芷璇 | D150: 化工-22-3班 | E150: 第十八届“挑战杯”全国大学生课外学术科技作品竞赛“黑科技” | F150: 共青团中央、中国科协、教育部、中国社会科学院、全国学联、贵州省人民政府 | G150: 国家级 | H150: 三等奖 | I150: 否 | K150: 8.00
B151: 2022010461 | C151: 吴芷璇 | D151: 化工-22-3班 | E151: 第十五届北京市化学实验竞赛校赛 | F151: 中国石油大学（北京） | G151: 校级 | H151: 三等奖 | I151: 否 | K151: 2.00
B152: 2022010461 | C152: 吴芷璇 | D152: 化工-22-3班 | E152: 中国国际大学生创新大赛（2024）北京赛区复赛决赛高教主赛道 | F152: 中国国际大学生创新大赛组织委员会 | G152: 市级 | H152: 二等奖 | I152: 是 | J152: 刘双、马广、张纯懿、黄允恩、高文月、杨明佩、马瑜含、陈浩鑫、黄睿、王祎婧、张泽欣、杨金琦、吴芷璇、周子正、王荣亮 | K152: 4.00
B153: 2022010461 | C153: 吴芷璇 | D153: 化工-22-3班 | E153: 中国国际大学生创新大赛（2024）北京赛区复赛决赛高教主赛道 | F153: 中国国际大学生创新大赛组织委员会 | G153: 市级 | H153: 一等奖 | I153: 是 | J153: 周子正、凌晨、党雨欣、谭雪、刘彦君、乐嘉宇、刘芮萌、张彩乐、罗禹涵、王瑞瑞、吴芷璇、黄允恩、徐润仪、高文月 | K153: 5.00
J154: 合计
B155: 2022010519 | C155: 李佳俊 | D155: 化工22-1班 | E155: 2024中国大学生chem e car竞赛 | F155: 中国化工协会 | G155: 国家级 | H155: 一等奖 | I155: 是 | J155: 潘思迪 李佳俊 周怡辰 郭智硕 金立民 刘庆炽 康胜 王德民 陈佳佳 刘润昊 王佳琪 邵科元 张磊 | K155: 6.00
B156: 2022010519 | C156: 李佳俊 | D156: 化工22-1班 | E156: 2024年中国石油大学（北京）第十五届北京市大学生化学实验竞赛校内选拔赛 | F156: 中国石油大学（北京）化学爱好者协会 | G156: 校级 | H156: 三等奖 | I156: 否 | K156: 2.00
B157: 2022010519 | C157: 李佳俊 | D157: 化工22-1班 | E157: 2024中国石油大学（北京）大学生化工原理竞赛 | F157: 中国石油大学(北京) | G157: 校级 | H157: 三等奖 | I157: 否 | K157: 2.00
J158: 合计
B159: 2022010390 | C159: 申溱 | D159: 化工22-1班 | E159: 第十五届北京市化学实验竞赛校赛 | F159: 中国石油大学（北京）化学爱好者协会 | G159: 校级 | H159: 一等奖 | I159: 否 | K159: 5.00
B160: 2022010390 | C160: 申溱 | D160: 化工22-1班 | E160: 2024年全国大学生英语竞赛校赛 | F160: 中国石油大学(北京) | G160: 校级 | H160: 三等奖 | I160: 否 | K160: 2.00
B161: 2022010390 | C161: 申溱 | D161: 化工22-1班 | E161: 第五届“华数杯”全国大学生数学建模竞赛 | F161: 天津市未来与预测科学研究会 | G161: 国家级 | H161: 三等奖 | I161: 是 | J161: 申溱 智玉轩 赵国平 | L161: 不在库里
J162: 合计
B163: 2022010374 | C163: 袁佳怡 | D163: 化工22-1班 | E163: 全国大学生英语竞赛 | F163: 高等学校大学外语教学指导委员会 | G163: 国家级 | H163: 二等奖 | I163: 否 | K163: 8.00
B164: 2022010374 | C164: 袁佳怡 | D164: 化工22-1班 | E164: 中国国际大学生创新大赛（2024） | F164: 教育部、陕西省人民政府 | G164: 省部级 | H164: 三等奖 | I164: 是 | J164: 许文轲 江锦欣 杨雨珊 任正元 彭圆圆 叶海宇 袁佳怡 乔译萱 张文柯 王宇昕 | K164: 3.00
B165: 2022010374 | C165: 袁佳怡 | D165: 化工22-1班 | E165: “外教社杯”北京高校青年人才国际胜任力大赛 | F165: 中国石油大学（北京）外国语学院 | G165: 校级 | H165: 三等奖 | I165: 是 | J165: 袁佳怡 陈雨薇 陈禾婕 | K165: 1.00
J166: 合计
B167: 2022010389 | C167: 牛浩镔 | D167: 化工22-1班 | E167: 2024年全国大学生英语竞赛 | F167: 高等学校大学外语教学研究会；全国高等师范院校外语教学与研究协作组 | G167: 校级 | H167: 二等奖 | I167: 否 | K167: 4.00
B168: 2022010389 | C168: 牛浩镔 | D168: 化工22-1班 | E168: 第十五届北京市化学实验竞赛校赛 | F168: 中国石油大学（北京）化学爱好者协会 | G168: 校级 | H168: 二等奖 | I168: 否 | K168: 4.00
J169: 合计
B170: 2022010386 | C170: 李陶然 | D170: 化工22-1班 | E170: 第十五届北京市化学实验竞赛校赛 | F170: 中国石油大学（北京）化学爱好者协会 | G170: 校级 | H170: 一等奖 | I170: 否 | K170: 5.00
B171: 2022010386 | C171: 李陶然 | D171: 化工22-1班 | E171: 2023年中国石油大学（北京）大学生物理竞赛 | F171: 中国石油大学（北京） | G171: 校级 | H171: 三等奖 | I171: 否 | K171: 2.00
J172: 合计
B173: 2022010383 | C173: 刘子瑞 | D173: 化工22-1班 | E173: 第十五届北京市化学实验竞赛校赛 | F173: 中国石油大学（北京）化学爱好者协会 | G173: 校级 | H173: 一等奖 | I173: 否 | K173: 5.00
B174: 2022010383 | C174: 刘子瑞 | D174: 化工22-1班 | E174: 2023年中国石油大学（北京）大学生物理竞赛 | F174: 中国石油大学（北京） | G174: 校级 | H174: 二等奖 | I174: 否 | K174: 4.00
J175: 合计
B176: 2022010384 | C176: 吴立新 | D176: 化工22-1班 | E176: 2023年中国石油大学（北京）大学生物理竞赛 | F176: 中国石油大学（北京） | G176: 校级 | H176: 二等奖 | I176: 否 | K176: 4.00
B177: 2022010384 | C177: 吴立新 | D177: 化工22-1班 | E177: 2024中国石油大学（北京）大学生化工原理竞赛 | F177: 中国石油大学(北京) | G177: 校级 | H177: 三等奖 | I177: 否 | K177: 2.00
J178: 合计
B179: 2022010364 | C179: 张姝瑶 | D179: 化工22-1班 | E179: 第十五届北京市化学实验竞赛校赛 | F179: 中国石油大学（北京）化学爱好者协会 | G179: 校级 | H179: 二等奖 | I179: 否 | K179: 4.00
J180: 合计
B181: 2022010371 | C181: 何丽鸿 | D181: 化工22-1班 | E181: 第二十六届外研社国才杯全国大学生英语辩论赛 | F181: 北京外国语大学 | G181: 校级 | H181: 三等奖 | I181: 否 | K181: 2.00
J182: 合计
B183: 2022010397 | C183: 李安然 | D183: 化工22-1班 | E183: 2024年全国大学生英语竞赛 | F183: 高等学校大学外语教学研究会；全国高等师范院校外语教学与研究协作组 | G183: 校级 | H183: 二等奖 | I183: 否 | K183: 4.00
J184: 合计
B185: 2022010100 | C185: 智玉轩 | D185: 化工22-1班 | E185: 第十五届北京市化学实验竞赛校赛 | F185: 中国石油大学（北京）化学爱好者协会 | G185: 校级 | H185: 二等奖 | I185: 否 | K185: 4.00
B186: 2022010100 | C186: 智玉轩 | D186: 化工22-1班 | E186: 2024年全国大学生英语竞赛校赛 | F186: 中国石油大学(北京) | G186: 国家级 | H186: 三等奖 | I186: 否 | K186: 6.00
B187: 2022010100 | C187: 智玉轩 | D187: 化工22-1班 | E187: 第五届“华数杯”全国大学生数学建模竞赛 | F187: 天津市未来与预测科学研究会 | G187: 国家级 | H187: 三等奖 | I187: 是 | J187: 申溱 智玉轩 赵国平 | L187: 不在库里
J188: 合计
B189: 2022010412 | C189: 代肖彤 | D189: 化工22-1班 | E189: 2023年中国石油大学（北京）大学生物理竞赛 | F189: 中国石油大学（北京） | G189: 校级 | H189: 二等奖 | I189: 否 | K189: 4.00
B190: 2022010412 | C190: 代肖彤 | D190: 化工22-1班 | E190: 第十五届北京市化学实验竞赛校赛 | F190: 中国石油大学（北京）化学爱好者协会 | G190: 校级 | H190: 三等奖 | I190: 否 | K190: 2.00
J191: 合计
B192: 2022010373 | C192: 王晴宇 | D192: 化工22-1班 | E192: 第二届“创青春”中国青年碳中和创新创业大赛 | F192: 中国青年创业就业基金会、中国石油大学（北京）、中国石油天然气集团有限公司、中国石油化工集团有限公司、中国海洋石油集团有限公司 | G192: 省部级 | H192: 银奖 | I192: 是 | J192: 赵玉婷、张仁婕、王晴宇、刘靖娴、姜慧、徐美娟、李羽涵 | K192: 3.00
B193: 2022010373 | C193: 王晴宇 | D193: 化工22-1班 | E193: 第六届北京市大学生节能节水低碳减排社会实践与科技竞赛 | F193: 北京市教育委员会 | G193: 省部级 | H193: 二等奖 | I193: 是 | J193: 王一铭，王晴宇，蒋子明,吴万锦,桑松涛,曲家彤,吴晶宇 | K193: 0.00 | L193: 加国家级的
B194: 2022010373 | C194: 王晴宇 | D194: 化工22-1班 | E194: “青创北京”2024年“挑战杯”首都大学生创业计划竞赛 | F194: 共青团北京市委员会、北京市教育委员会、北京市人力资源和社会保障局、北京市科学技术协会、北京市青年联合会、北京市学生联合会 | G194: 省部级 | H194: 银奖 | I194: 是 | J194: 刘高/姜慧/赵玉婷/王晴宇/王一铭/彭彦舒/刘靖娴/梁坛/徐美娟/李易达/蒋子明 | K194: 3.00
B195: 2022010373 | C195: 王晴宇 | D195: 化工22-1班 | E195: “青创北京”2024年“挑战杯”首都大学生创业计划竞赛 | F195: 共青团北京市委员会、北京市教育委员会、北京市人力资源和社会保障局、北京市科学技术协会、北京市青年联合会、北京市学生联合会 | G195: 省部级 | H195: 铜奖 | I195: 是 | J195: 张志彬/吴忆/孟婧涵/王晴宇/曹炜曼/张润霞/孙涵 | K195: 2.00
B196: 2022010373 | C196: 王晴宇 | D196: 化工22-1班 | E196: 中国国际大学生创新大赛(2024) | F196: 北京市教育委员会 | G196: 省部级 | H196: 二等奖 | I196: 是 | J196: 王晴宇，姜慧，徐卫星，王一铭，蒋子明，彭彦舒，杨欣悦，李彤辉，王宇诠，姜恒，吴万锦，刘高，杨程程，池虹希，贺雨欣 | K196: 5.33
B197: 2022010373 | C197: 王晴宇 | D197: 化工22-1班 | E197: 中国国际大学生创新大赛(2024) | F197: 北京市教育委员会 | G197: 省部级 | H197: 三等奖 | I197: 是 | J197: 姜慧，张仁婕,王一铭,赵玉婷,王晴宇,刘靖娴,蒋子明,王宇诠,吴万锦,杨欣 | K197: 3.00
B198: 2022010373 | C198: 王晴宇 | D198: 化工22-1班 | E198: 第十五届中国大学生服务外包创新创业大赛 | F198: 中华人民共和国教育部、中华人民共和国商务部、无锡市人民政府 | G198: 国家级 | H198: 三等奖 | I198: 是 | J198: 姜慧，张仁婕，王晴宇，王一铭，蒋子明 | K198: 3.00
B199: 2022010373 | C199: 王晴宇 | D199: 化工22-1班 | E199: 第十七届全国大学生节能减排社会实践与科技竞赛 | F199: 教育部高等学校能源动力类专业教学指导委员会、全国大学生节能减排社会实践与科技竞赛委员会 | G199: 国家级 | H199: 三等奖 | I199: 是 | J199: 杨欣悦、彭彦舒、孙嘉璐、乔琳舒、蒋子明、王一铭、王晴宇 | K199: 3.50
B200: 2022010373 | C200: 王晴宇 | D200: 化工22-1班 | E200: 第十五届北京市化学实验竞赛 | F200: 中国石油大学（北京）化学爱好者协会 | G200: 校级 | H200: 一等奖 | I200: 否 | K200: 5.00
... 86 more rows

Sheet 智育加分汇总
A1: 学号 | B1: 姓名 | C1: 加分(辅导员填写)
A2: 2022010491 | B2: 张志彬 | C2: 5.33 | F2: 姓名 | G2: 求和项：加分(辅导员填写)
A3: 2022010491 | B3: 张志彬 | C3: 2.50 | F3: 金立民 | G3: 11
A4: 2022010491 | B4: 张志彬 | C4: 1.33 | F4: 江锦欣 | G4: 21
A5: 2022010493 | B5: 付锦依 | C5: 4.50 | F5: 陈方旭 | G5: 2
A6: 2022010493 | B6: 付锦依 | C6: 5.00 | F6: 陈飞月 | G6: 7
A7: 2022010494 | B7: 付锦依 | C7: 2.00 | F7: 陈禾婕 | G7: 10.66666667
A8: 2022010522 | B8: 熊俊程 | C8: 2.00 | F8: 白兆 | G8: 6.5
B9: 熊俊程 | C9: 2.00 | F9: 陈伟玄 | G9: 9
A10: 2022010496 | B10: 张鑫 | C10: 2.00 | F10: 陈心 | G10: 4
A11: 2022010486 | B11: 邵科元 | C11: 6.00 | F11: 黄颖聪 | G11: 2
A12: 2022012012 | B12: 欧子俊 | C12: 2.00 | F12: 王晴宇 | G12: 31.83333333
A13: 2022010492 | B13: 钮缨雪 | C13: 2.50 | F13: 邓姣 | G13: 7
B14: 钮缨雪 | C14: 1.33 | F14: 付锦依 | G14: 11.5
A15: 2022010368 | B15: 张露 | C15: 5.00 | F15: 康胜 | G15: 46
B16: 张露 | C16: 5.00 | F16: 李安然 | G16: 4
B17: 张露 | C17: 6.00 | F17: 曹炜曼 | G17: 6
B18: 张露 | C18: 6.00 | F18: 季睿 | G18: 2
A19: 2022010365 | B19: 杨秋瑶 | C19: 4.00 | F19: 贾文青 | G19: 2
B20: 杨秋瑶 | C20: 6.00 | F20: 孙涵 | G20: 4
B21: 杨秋瑶 | C21: 5.00 | F21: 蒋子强 | G21: 15.5
A22: 2022010464 | B22: 邓姣 | C22: 5.00 | F22: 马瑜含 | G22: 13
B23: 邓姣 | C23: 2.00 | F23: 张心怡 | G23: 4
B24: 李芃钰 | C24: 2.50 | F24: 智玉轩 | G24: 10
B25: 李芃钰 | C25: 2.50 | F25: 谢林洲 | G25: 5
A26: 2022010455 | B26: 王德民 | C26: 5.00 | F26: 申溱 | G26: 7
B27: 王德民 | C27: 5.00 | F27: 李芃钰 | G27: 5
B28: 王德民 | C28: 2.00 | F28: 刘子瑞 | G28: 9
B29: 王德民 | C29: 6.00 | F29: 吴立新 | G29: 6
B30: 王德民 | C30: 4.50 | F30: 肖涵芮 | G30: 26.5
A31: 2022010513 | B31: 陈心 | C31: 4.00 | F31: 李陶然 | G31: 7
A32: 2022010470 | B32: 张润霞 | C32: 4.00 | F32: 钮缨雪 | G32: 3.833333333
B33: 张润霞 | C33: 6.00 | F33: 欧子俊 | G33: 2
B34: 张润霞 | C34: 3.00 | F34: 彭莎莎 | G34: 20
B35: 张润霞 | C35: 2.00 | F35: 邱绮慧 | G35: 5
B36: 张润霞 | C36: 3.00 | F36: 邵科元 | G36: 6
A37: 2022010387 | B37: 陈方旭 | C37: 2.00 | F37: 袁佳怡 | G37: 12
A38: 2022010401 | B38: 贾文青 | C38: 2.00 | F38: 赵国平 | G38: 2
A39: 2022010402 | B39: 季睿 | C39: 2.00 | F39: 孙千翔 | G39: 9.5
A40: 2022010451 | B40: 蒋子强 | C40: 4.00 | F40: 王德民 | G40: 22.5
B41: 蒋子强 | C41: 5.00 | F41: 郭智硕 | G41: 10
B42: 蒋子强 | C42: 2.00 | F42: 张姝瑶 | G42: 4
B43: 蒋子强 | C43: 4.50 | F43: 吴忆 | G43: 5.833333333
A44: 2022010433 | B44: 陈禾婕 | C44: 5.00 | F44: 李佳俊 | G44: 10
B45: 陈禾婕 | C45: 1.00 | F45: 许文轲 | G45: 35
B46: 陈禾婕 | C46: 2.67 | F46: 张支铭 | G46: 18
B47: 陈禾婕 | C47: 2.00 | F47: 熊俊程 | G47: 4
A48: 2022010399 | B48: 邱绮慧 | C48: 2.00 | F48: 程实 | G48: 2
B49: 邱绮慧 | C49: 3.00 | F49: 杨秋瑶 | G49: 15
A50: 2022010465 | B50: 陈飞月 | C50: 4.00 | F50: 叶海宇 | G50: 23
A51: 2022010465 | B51: 陈飞月 | C51: 3.00 | F51: 李煌 | G51: 18
A52: 2022010463 | B52: 孙千翔 | C52: 2.50 | F52: 牛浩镔 | G52: 8
A53: 2022010463 | B53: 孙千翔 | C53: 3.00 | F53: 张铸 | G53: 2
A54: 2022010463 | B54: 孙千翔 | C54: 4.00 | F54: 张露 | G54: 22
A55: 2022010407 | B55: 叶海宇 | C55: 3.00 | F55: 张润霞 | G55: 18
A56: 2022010407 | B56: 叶海宇 | C56: 4.00 | F56: 何丽鸿 | G56: 2
A57: 2022010407 | B57: 叶海宇 | C57: 12.00 | F57: 张帅 | G57: 6.666666667
A58: 2022010407 | B58: 叶海宇 | C58: 2.00 | F58: 张席地 | G58: 4
A59: 2022010407 | B59: 叶海宇 | C59: 2.00 | F59: 张鑫 | G59: 2
A60: 2022010468 | B60: 吴忆 | C60: 1.33 | F60: 郑少杰 | G60: 8
A61: 2022010468 | B61: 吴忆 | C61: 2.50 | F61: 张志彬 | G61: 9.166666667
A62: 2022010468 | B62: 吴忆 | C62: 2.00 | F62: 吴芷璇 | G62: 44.99333333
A63: 2022010477 | B63: 张帅 | C63: 2.00 | F63: 张涵婷 | G63: 4
A64: 2022010477 | B64: 张帅 | C64: 2.67 | F64: 陈俊逸 | G64: 4
A65: 2022010477 | B65: 张帅 | C65: 2.00 | F65: 代肖彤 | G65: 6
A66: 2022010506 | B66: 张席地 | C66: 2.00 | F66: 喻治坤 | G66: 13.67
A67: 2022010506 | B67: 张席地 | C67: 2.00 | F67: 总计 | G67: 677.6633333
A68: 2022010837 | B68: 陈伟玄 | C68: 4.00
A69: 2022010837 | B69: 陈伟玄 | C69: 5.00
A70: 2022010406 | B70: 彭莎莎 | C70: 8.00
A71: 2022010406 | B71: 彭莎莎 | C71: 4.00
A72: 2022010406 | B72: 彭莎莎 | C72: 3.00
A73: 2022010406 | B73: 彭莎莎 | C73: 5.00
A74: 2022011451 | B74: 喻治坤 | C74: 5.00
A75: 2022011451 | B75: 喻治坤 | C75: 8.67
A76: 2022010478 | B76: 李煌 | C76: 4.00
A77: 2022010478 | B77: 李煌 | C77: 6.00
A78: 2022010478 | B78: 李煌 | C78: 4.00
A79: 2022010478 | B79: 李煌 | C79: 4.00
A80: 2022010489 | B80: 谢林洲 | C80: 5.00
A81: 2022010471 | B81: 张支铭 | C81: 2.00
A82: 2022010471 | B82: 张支铭 | C82: 4.00
A83: 2022010471 | B83: 张支铭 | C83: 4.00
A84: 2022010471 | B84: 张支铭 | C84: 4.00
A85: 2022010471 | B85: 张支铭 | C85: 2.50
A86: 2022010471 | B86: 张支铭 | C86: 1.50
A87: 2022010461 | B87: 吴芷璇 | C87: 2.67
A88: 2022010461 | B88: 吴芷璇 | C88: 5.33
A89: 2022010461 | B89: 吴芷璇 | C89: 5.33
A90: 2022010461 | B90: 吴芷璇 | C90: 5.33
A91: 2022010461 | B91: 吴芷璇 | C91: 3.33
A92: 2022010461 | B92: 吴芷璇 | C92: 2.00
A93: 2022010461 | B93: 吴芷璇 | C93: 2.00
A94: 2022010461 | B94: 吴芷璇 | C94: 8.00
A95: 2022010461 | B95: 吴芷璇 | C95: 2.00
A96: 2022010461 | B96: 吴芷璇 | C96: 4.00
A97: 2022010461 | B97: 吴芷璇 | C97: 5.00
A98: 2022010519 | B98: 李佳俊 | C98: 6.00
A99: 2022010519 | B99: 李佳俊 | C99: 2.00
A100: 2022010519 | B100: 李佳俊 | C100: 2.00
A101: 2022010390 | B101: 申溱 | C101: 5.00
A102: 2022010390 | B102: 申溱 | C102: 2.00
A103: 2022010374 | B103: 袁佳怡 | C103: 8.00
A104: 2022010374 | B104: 袁佳怡 | C104: 3.00
A105: 2022010374 | B105: 袁佳怡 | C105: 1.00
A106: 2022010389 | B106: 牛浩镔 | C106: 4.00
A107: 2022010389 | B107: 牛浩镔 | C107: 4.00
A108: 2022010386 | B108: 李陶然 | C108: 5.00
A109: 2022010386 | B109: 李陶然 | C109: 2.00
A110: 2022010383 | B110: 刘子瑞 | C110: 5.00
A111: 2022010383 | B111: 刘子瑞 | C111: 4.00
A112: 2022010384 | B112: 吴立新 | C112: 4.00
A113: 2022010384 | B113: 吴立新 | C113: 2.00
A114: 2022010364 | B114: 张姝瑶 | C114: 4.00
A115: 2022010371 | B115: 何丽鸿 | C115: 2.00
A116: 2022010397 | B116: 李安然 | C116: 4.00
A117: 2022010100 | B117: 智玉轩 | C117: 4.00
A118: 2022010100 | B118: 智玉轩 | C118: 6.00
A119: 2022010412 | B119: 代肖彤 | C119: 4.00
A120: 2022010412 | B120: 代肖彤 | C120: 2.00
A121: 2022010373 | B121: 王晴宇 | C121: 3.00
A122: 2022010373 | B122: 王晴宇 | C122: 3.00
A123: 2022010373 | B123: 王晴宇 | C123: 2.00
A124: 2022010373 | B124: 王晴宇 | C124: 5.33
A125: 2022010373 | B125: 王晴宇 | C125: 3.00
A126: 2022010373 | B126: 王晴宇 | C126: 3.00
A127: 2022010373 | B127: 王晴宇 | C127: 3.50
A128: 2022010373 | B128: 王晴宇 | C128: 5.00
A129: 2022010373 | B129: 王晴宇 | C129: 2.00
A130: 2022010373 | B130: 王晴宇 | C130: 2.00
A131: 2022010516 | B131: 郭智硕 | C131: 4.00
A132: 2022010516 | B132: 郭智硕 | C132: 6.00
A133: 2022010452 | B133: 康胜 | C133: 4.00
A134: 2022010452 | B134: 康胜 | C134: 6.00
A135: 2022010452 | B135: 康胜 | C135: 3.50
A136: 2022010452 | B136: 康胜 | C136: 6.00
A137: 2022010452 | B137: 康胜 | C137: 5.00
A138: 2022010452 | B138: 康胜 | C138: 4.00
A139: 2022010452 | B139: 康胜 | C139: 3.00
A140: 2022010452 | B140: 康胜 | C140: 3.00
A141: 2022010452 | B141: 康胜 | C141: 4.00
A142: 2022010452 | B142: 康胜 | C142: 2.00
A143: 2022010452 | B143: 康胜 | C143: 4.00
A144: 2022010452 | B144: 康胜 | C144: 1.50
A145: 2022010439 | B145: 张心怡 | C145: 4.00
A146: 2022010449 | B146: 郑少杰 | C146: 6.00
A147: 2022010449 | B147: 郑少杰 | C147: 2.00
A148: 2022010512 | B148: 陈俊逸 | C148: 4.00
A149: 2022010441 | B149: 白兆 | C149: 4.00
A150: 2022010441 | B150: 白兆 | C150: 2.50
A151: 2022010446 | B151: 金立民 | C151: 5.00
A152: 2022010446 | B152: 金立民 | C152: 6.00
A153: 2022010430 | B153: 马瑜含 | C153: 4.00
A154: 2022010430 | B154: 马瑜含 | C154: 2.00
A155: 2022010430 | B155: 马瑜含 | C155: 5.00
A156: 2022010430 | B156: 马瑜含 | C156: 2.00
A157: 2022010584 | B157: 肖涵芮 | C157: 2.00
A158: 2022010584 | B158: 肖涵芮 | C158: 4.00
A159: 2022010584 | B159: 肖涵芮 | C159: 2.00
A160: 2022010584 | B160: 肖涵芮 | C160: 3.50
A161: 2022010584 | B161: 肖涵芮 | C161: 5.00
A162: 2022010584 | B162: 肖涵芮 | C162: 4.00
A163: 2022010584 | B163: 肖涵芮 | C163: 3.00
A164: 2022010584 | B164: 肖涵芮 | C164: 3.00
A165: 2022010408 | B165: 许文轲 | C165: 8.00
A166: 2022010408 | B166: 许文轲 | C166: 6.00
A167: 2022010408 | B167: 许文轲 | C167: 6.00
A168: 2022010408 | B168: 许文轲 | C168: 5.00
A169: 2022010408 | B169: 许文轲 | C169: 4.00
A170: 2022010408 | B170: 许文轲 | C170: 3.00
A171: 2022010408 | B171: 许文轲 | C171: 3.00
A172: 2022010429 | B172: 程实 | C172: 2.00
A173: 2022010440 | B173: 黄颖聪 | C173: 2.00
A174: 2022010499 | B174: 曹炜曼 | C174: 2.00
A175: 2022010499 | B175: 曹炜曼 | C175: 1.00
A176: 2022010499 | B176: 曹炜曼 | C176: 3.00
A177: 2022010422 | B177: 江锦欣 | C177: 3.00
A178: 2022010422 | B178: 江锦欣 | C178: 3.00
A179: 2022010422 | B179: 江锦欣 | C179: 6.00
A180: 2022010422 | B180: 江锦欣 | C180: 4.00
A181: 2022010422 | B181: 江锦欣 | C181: 5.00
A182: 2022010436 | B182: 孙涵 | C182: 2.00
A183: 2022010436 | B183: 孙涵 | C183: 2.00
A184: 2022010445 | B184: 赵国平 | C184: 2.00
A185: 2022010438 | B185: 张涵婷 | C185: 4.00
A186: 2022010382 | B186: 张铸 | C186: 2.00

Sheet 文体加分 (2)
A1: 文体加分汇总
A2: 序号 | B2: 班级 | C2: 学号 | D2: 姓名 | E2: 文艺活动加分 | I2: 合计 | J2: 体育活动加分 | N2: 合计 | O2: 总计
E3: 项目 | F3: 加分 | G3: 项目 | H3: 加分 | J3: 项目 | K3: 加分 | L3: 项目 | M3: 加分
A4: 1 | B4: 化工22-1班 | C4: 2022010364 | D4: 张姝瑶 | I4: =F4+H4 -> 0 | N4: =K4+M4 -> 0 | O4: =I4+N4 -> 0
A5: 2 | B5: 化工22-1班 | C5: 2022010367 | D5: 周芹 | I5: 0 | N5: 0 | O5: 0
A6: 3 | B6: 化工22-1班 | C6: 2022010369 | D6: 李越 | I6: 0 | N6: 0 | O6: 0
A7: 4 | B7: 化工22-1班 | C7: 2022010370 | D7: 马海霞 | I7: 0 | N7: 0 | O7: 0
A8: 5 | B8: 化工22-1班 | C8: 2022010371 | D8: 何丽鸿 | I8: 0 | J8: 第一届石油杯毽绳比赛女子4*30秒双摇跳（接力第二名） | K8: 8 | N8: 8 | O8: 8
A9: 6 | B9: 化工22-1班 | C9: 2022010372 | D9: 史佳悦 | E9: 2023年学生资助诚信教育主题活动校级三等奖 | F9: 4 | I9: 4 | N9: 0 | O9: 4
A10: 7 | B10: 化工22-1班 | C10: 2022010373 | D10: 王晴宇 | I10: 0 | N10: 0 | O10: 0
A11: 8 | B11: 化工22-1班 | C11: 2022010374 | D11: 袁佳怡 | I11: 0 | N11: 0 | O11: 0
A12: 9 | B12: 化工22-1班 | C12: 2022012311 | D12: 布威麦尔耶姆·麦麦提图尔荪 | I12: 0 | N12: 0 | O12: 0
A13: 10 | B13: 化工22-1班 | C13: 2022010397 | D13: 李安然 | I13: 0 | N13: 0 | O13: 0
A14: 11 | B14: 化工22-1班 | C14: 2022010100 | D14: 智玉轩 | I14: 0 | N14: 0 | O14: 0
A15: 12 | B15: 化工22-1班 | C15: 2022010377 | D15: 刘超 | I15: 0 | N15: 0 | O15: 0
A16: 13 | B16: 化工22-1班 | C16: 2022010379 | D16: 孙科 | I16: 0 | N16: 0 | O16: 0
A17: 14 | B17: 化工22-1班 | C17: 2022010382 | D17: 张铸 | I17: 0 | N17: 0 | O17: 0
A18: 15 | B18: 化工22-1班 | C18: 2022010383 | D18: 刘子瑞 | I18: 0 | N18: 0 | O18: 0
A19: 16 | B19: 化工22-1班 | C19: 2022010384 | D19: 吴立新 | E19: 第一届全国石油和化工科普作品征集省部级鼓励奖 | F19: 2 | I19: 2 | N19: 0 | O19: 2
A20: 17 | B20: 化工22-1班 | C20: 2022010385 | D20: 龚泽恩 | I20: 0 | N20: 0 | O20: 0
A21: 18 | B21: 化工22-1班 | C21: 2022010386 | D21: 李陶然 | I21: 0 | N21: 0 | O21: 0
A22: 19 | B22: 化工22-1班 | C22: 2022010389 | D22: 牛浩镔 | I22: 0 | N22: 0 | O22: 0
A23: 20 | B23: 化工22-1班 | C23: 2022010390 | D23: 申溱 | I23: 0 | N23: 0 | O23: 0
A24: 21 | B24: 化工22-1班 | C24: 2022010392 | D24: 吴照飞 | I24: 0 | N24: 0 | O24: 0
A25: 22 | B25: 化工22-1班 | C25: 2022010394 | D25: 张之翼 | E25: 第13届外语风采大赛书画类三等奖 | F25: 4 | I25: 4 | J25: 2023石油杯毽绳比赛男子60秒单脚踢毽第三名 | K25: 6 | N25: 6 | O25: 10
A26: 23 | B26: 化工22-1班 | C26: 2022012312 | D26: 徐峥 | I26: 0 | N26: 0 | O26: 0
A27: 24 | B27: 化工22-1班 | C27: 2022010409 | D27: 周家艺 | I27: 0 | N27: 0 | O27: 0
A28: 25 | B28: 化工22-1班 | C28: 2022010411 | D28: 姚锦栋 | I28: 0 | N28: 0 | O28: 0
A29: 26 | B29: 化工22-1班 | C29: 2022010412 | D29: 代肖彤 | I29: 0 | N29: 0 | O29: 0
A30: 27 | B30: 化工22-1班 | C30: 2022010413 | D30: 陈恒宇 | I30: 0 | N30: 0 | O30: 0
A31: 28 | B31: 化工22-1班 | C31: 2022010414 | D31: 潘恒懿 | I31: 0 | N31: 0 | O31: 0
A32: 29 | B32: 化工22-1班 | C32: 2022010418 | D32: 王明堃 | I32: 0 | N32: 0 | O32: 0
A33: 30 | B33: 化工22-1班 | C33: 2022010419 | D33: 史国柱 | I33: 0 | N33: 0 | O33: 0
A34: 31 | B34: 化工22-1班 | C34: 2022010516 | D34: 郭智硕 | I34: 0 | N34: 0 | O34: 0
A35: 32 | B35: 化工22-1班 | C35: 2022010518 | D35: 贾思远 | I35: 0 | J35: 2023中国石油大学（北京）学生游泳比赛4×50m蛙泳腿接力男子组第一名 | K35: 8 | L35: 2023中国石油大学（北京）学生游泳比赛4×50m蛙泳接力男子组第六名 | M35: 4 | N35: 12 | O35: 12
A36: 33 | B36: 化工22-1班 | C36: 2022010519 | D36: 李佳俊 | I36: =F36+H36 -> 0 | J36: 首高田径精英赛男子学生组跳远第二名 | K36: 20 | L36: 中国石油大学（北京）2024春季运动会男子4100m接力第一名 | M36: 8 | N36: =K36+M36 -> 28 | O36: =I36+N36 -> 28
A37: 34 | B37: 化工22-1班 | C37: 2022010622 | D37: 顾凌云 | I37: 0 | N37: 0 | O37: 0
A38: 35 | B38: 化工22-2班 | C38: 2022010429 | D38: 程实 | I38: 0 | N38: 0 | O38: 0
A39: 36 | B39: 化工22-2班 | C39: 2022010430 | D39: 马瑜含 | I39: 0 | J39: 校运动会毛毛虫集体项目第五名 | K39: 4 | L39: 首都高校大学生第五届滑冰比赛 | M39: 5 | N39: 9 | O39: 9
A40: 37 | B40: 化工22-2班 | C40: 2022010431 | D40: 贺婕 | I40: 0 | N40: 0 | O40: 0
A41: 38 | B41: 化工22-2班 | C41: 2022010432 | D41: 刘雨佳 | I41: 0 | N41: 0 | O41: 0
A42: 39 | B42: 化工22-2班 | C42: 2022010435 | D42: 秦婧瑶 | I42: 0 | N42: 0 | O42: 0
A43: 40 | B43: 化工22-2班 | C43: 2022010436 | D43: 孙涵 | I43: 0 | N43: 0 | O43: 0
A44: 41 | B44: 化工22-2班 | C44: 2022010437 | D44: 王晓弘 | I44: 0 | N44: 0 | O44: 0
A45: 42 | B45: 化工22-2班 | C45: 2022010438 | D45: 张涵婷 | I45: 0 | J45: 校运动会毛毛虫集体项目第5名 | K45: 4 | N45: 4 | O45: 4
A46: 43 | B46: 化工22-2班 | C46: 2022010439 | D46: 张心怡 | I46: 0 | N46: 0 | O46: 0
A47: 44 | B47: 化工22-2班 | C47: 2022010494 | D47: 唐樱菲 | I47: 0 | N47: 0 | O47: 0
A48: 45 | B48: 化工22-2班 | C48: 2022010499 | D48: 曹炜曼 | I48: 0 | N48: 0 | O48: 0
A49: 46 | B49: 化工22-2班 | C49: 2022010585 | D49: 崔跃兰 | I49: 0 | N49: 0 | O49: 0
A50: 47 | B50: 化工22-2班 | C50: 2022010584 | D50: 肖涵芮 | I50: 0 | J50: 首都高校第十五届体育舞蹈比赛六人维也纳华尔兹第一名 | K50: 20 | L50: 首都高校第十五届体育舞蹈比赛混合交谊舞队列舞第二名 | M50: 20 | N50: 40 | O50: 40
A51: 48 | B51: 化工22-2班 | C51: 2022010408 | D51: 许文轲 | I51: 0 | J51: 中国石油大学（北京）“石油杯”乒乓球男子双打第五名 | K51: 4 | N51: 4 | O51: 4
A52: 49 | B52: 化工22-2班 | C52: 2022010422 | D52: 江锦欣 | I52: 0 | N52: 0 | O52: 0
A53: 50 | B53: 化工22-2班 | C53: 2022010426 | D53: 赵群 | I53: 0 | N53: 0 | O53: 0
A54: 51 | B54: 化工22-2班 | C54: 2022010427 | D54: 周慧林 | I54: 0 | N54: 0 | O54: 0
A55: 52 | B55: 化工22-2班 | C55: 2022010440 | D55: 黄颖聪 | I55: 0 | N55: 0 | O55: 0
A56: 53 | B56: 化工22-2班 | C56: 2022010441 | D56: 白兆 | I56: 0 | J56: 首都高等学校第十届徒步运动大会北京市二等奖 | K56: 15 | L56: 校运动会毛毛虫集体项目第五 | M56: 4 | N56: 19 | O56: 19
A57: 54 | B57: 化工22-2班 | C57: 2022010442 | D57: 尹泽 | I57: 0 | N57: 0 | O57: 0
A58: 55 | B58: 化工22-2班 | C58: 2022010443 | D58: 杨志文 | I58: 0 | N58: 0 | O58: 0
A59: 56 | B59: 化工22-2班 | C59: 2022010445 | D59: 赵国平 | I59: 0 | N59: 0 | O59: 0
A60: 57 | B60: 化工22-2班 | C60: 2022010446 | D60: 金立民 | I60: 0 | N60: 0 | O60: 0
A61: 58 | B61: 化工22-2班 | C61: 2022010448 | D61: 王增智 | I61: 0 | J61: 校级蛙泳50m男子组第二名 | K61: 8 | L61: 校级蛙泳腿50m男子组第二名 | M61: 8 | N61: 16 | O61: 16
A62: 59 | B62: 化工22-2班 | C62: 2022010449 | D62: 郑少杰 | I62: 0 | N62: 0 | O62: 0
A63: 60 | B63: 化工22-2班 | C63: 2022010452 | D63: 康胜 | I63: 0 | N63: =K63+M63 -> 0 | O63: 0
A64: 61 | B64: 化工22-2班 | C64: 2022010453 | D64: 李成歆 | I64: 0 | N64: 0 | O64: 0
A65: 62 | B65: 化工22-2班 | C65: 2022010454 | D65: 孙琪桐 | I65: 0 | J65: 校运动会袋鼠跳第四 | K65: 6 | L65: 校运动会毛毛虫集体项目第五 | M65: 4 | N65: 10 | O65: 10
A66: 63 | B66: 化工22-2班 | C66: 2022010456 | D66: 吴金琪 | I66: 0 | N66: 0 | O66: 0
A67: 64 | B67: 化工22-2班 | C67: 2022010458 | D67: 赵帅 | I67: 0 | J67: 2023年中国石油大学（北京）纪念一二九运动全校拔河比赛第五名 | K67: 4 | N67: 4 | O67: 4
A68: 65 | B68: 化工22-2班 | C68: 2022010459 | D68: 朱行健 | I68: =F68+H68 -> 0 | J68: 校运动会4*100第一名 | K68: 8 | L68: 校运动会400m第四 | M68: 6 | N68: 14 | O68: =I68+N68 -> 14
A69: 66 | B69: 化工22-2班 | C69: 2022012316 | D69: 陈语 | I69: 0 | J69: 校运动会跳大绳第一名 | K69: 8 | N69: 8 | O69: 8
A70: 67 | B70: 化工22-2班 | C70: 2022010511 | D70: 罗小刚 | I70: 0 | J70: 校运动会毛毛虫第五 | K70: 4 | N70: 4 | O70: 4
A71: 68 | B71: 化工22-2班 | C71: 2022010512 | D71: 陈俊逸 | I71: 0 | J71: 校运动会毛毛虫集体项目第五 | K71: 4 | N71: 4 | O71: 4
A72: 69 | B72: 化工22-3班 | C72: 2022010406 | D72: 彭莎莎 | I72: 0 | J72: 第一届石油杯毽绳比赛女子4x30秒双摇跳（接力）团体第二名 | K72: 8 | N72: 8 | O72: 8
A73: 70 | B73: 化工22-3班 | C73: 2022010407 | D73: 叶海宇 | I73: 0 | J73: 首都高等学校第八届健身气功比赛 马王堆导引术甲组第四名 | K73: 15 | N73: 15 | O73: 15
A74: 71 | B74: 化工22-3班 | C74: 2022010460 | D74: 努尔斯巴·买提库尔班 | I74: 0 | N74: 0 | O74: 0
A75: 72 | B75: 化工22-3班 | C75: 2022010461 | D75: 吴芷璇 | I75: 0 | J75: 2024年中国石油大学（北京）春季学生运动会女子400米第2名 | K75: 8 | L75: 2024年中国石油大学（北京）春季学生运动会4x400接力女子第2名 | M75: 8 | N75: 16 | O75: 16
A76: 73 | B76: 化工22-3班 | C76: 2022010463 | D76: 孙千翔 | I76: 0 | N76: 0 | O76: 0
A77: 74 | B77: 化工22-3班 | C77: 2022010465 | D77: 陈飞月 | E77: 第二届“学史爱校 悟思传薪” 党史校情应知应会知识竞赛（初赛）校级三等奖 | F77: 4 | I77: 4 | J77: 春季学生运动会双人单摇跳绳比赛女子组第六名 | K77: 4 | N77: 4 | O77: 8
A78: 75 | B78: 化工22-3班 | C78: 2022010467 | D78: 石彩君 | E78: 第18届企业奖学金颁奖典礼演员 | F78: 0 | I78: 0 | N78: 0 | O78: 0
A79: 76 | B79: 化工22-3班 | C79: 2022010468 | D79: 吴忆 | I79: 0 | N79: 0 | O79: 0
A80: 77 | B80: 化工22-3班 | C80: 2022010469 | D80: 许馨月 | I80: 0 | N80: 0 | O80: 0
A81: 78 | B81: 化工22-3班 | C81: 2022010471 | D81: 张支铭 | I81: 0 | N81: 0 | O81: 0
A82: 79 | B82: 化工22-3班 | C82: 2022010500 | D82: 马倩 | I82: 0 | N82: 0 | O82: 0
A83: 80 | B83: 化工22-3班 | C83: 2022010501 | D83: 屈芷晴 | I83: 0 | J83: 石油杯羽毛球第四 | K83: 6 | L83: 石油杯毽绳第二 | M83: 8 | N83: 14 | O83: 14
A84: 81 | B84: 化工22-3班 | C84: 2022010421 | D84: 季磊 | I84: 0 | N84: 0 | O84: 0
A85: 82 | B85: 化工22-3班 | C85: 2022010423 | D85: 汪礼俊 | I85: 0 | N85: 0 | O85: 0
A86: 83 | B86: 化工22-3班 | C86: 2022010424 | D86: 席振昌 | I86: 0 | N86: 0 | O86: 0
A87: 84 | B87: 化工22-3班 | C87: 2022010425 | D87: 闫杨奇昊 | I87: 0 | N87: 0 | O87: 0
A88: 85 | B88: 化工22-3班 | C88: 2022010473 | D88: 刘源兴 | I88: 0 | N88: 0 | O88: 0
A89: 86 | B89: 化工22-3班 | C89: 2022010476 | D89: 何岩松 | I89: 0 | N89: 0 | O89: 0
A90: 87 | B90: 化工22-3班 | C90: 2022010477 | D90: 张帅 | I90: 0 | N90: 0 | O90: 0
A91: 88 | B91: 化工22-3班 | C91: 2022010478 | D91: 李煌 | I91: 0 | N91: 0 | O91: 0
A92: 89 | B92: 化工22-3班 | C92: 2022010479 | D92: 杨广军 | I92: 0 | N92: 0 | O92: 0
A93: 90 | B93: 化工22-3班 | C93: 2022010480 | D93: 杨明涛 | I93: 0 | N93: 0 | O93: 0
A94: 91 | B94: 化工22-3班 | C94: 2022010482 | D94: 傅世坤 | I94: 0 | N94: 0 | O94: 0
A95: 92 | B95: 化工22-3班 | C95: 2022010483 | D95: 李浩永 | I95: 0 | N95: =K95+M95 -> 0 | O95: 0
A96: 93 | B96: 化工22-3班 | C96: 2022010487 | D96: 涂景豪 | I96: 0 | N96: 0 | O96: 0
A97: 94 | B97: 化工22-3班 | C97: 2022010489 | D97: 谢林洲 | I97: 0 | J97: 新生杯排球赛第五名 | K97: 4 | L97: 石油杯排球赛第七名 | M97: 2 | N97: 6 | O97: 6
A98: 95 | B98: 化工22-3班 | C98: 2022010490 | D98: 严臻睿 | I98: 0 | N98: 0 | O98: 0
A99: 96 | B99: 化工22-3班 | C99: 2022010504 | D99: 李宇翔 | I99: 0 | N99: 0 | O99: 0
A100: 97 | B100: 化工22-3班 | C100: 2022010506 | D100: 张席地 | I100: =F100+H100 -> 0 | J100: 石油杯排球赛第七名 | K100: 2 | L100: 北京市高运会触式橄榄球第七名 | M100: 5 | N100: 7 | O100: =I100+N100 -> 7
A101: 98 | B101: 化工22-3班 | C101: 2022010507 | D101: 马凯园 | I101: 0 | N101: 0 | O101: 0
A102: 99 | B102: 化工22-3班 | C102: 2022011451 | D102: 喻治坤 | I102: 0 | N102: 0 | O102: 0
A103: 100 | B103: 化工22-3班 | C103: 2022010837 | D103: 陈伟玄 | I103: 0 | N103: 0 | O103: 0
A104: 101 | B104: 化工22-3班 | C104: 2022010547 | D104: 黄一翀 | I104: 0 | N104: 0 | O104: 0
A105: 102 | B105: 能化22-1班 | C105: 2022010398 | D105: 杨慧 | I105: 0 | N105: 0 | O105: 0
A106: 103 | B106: 能化22-1班 | C106: 2022010399 | D106: 邱绮慧 | I106: 0 | N106: 0 | O106: 0
A107: 104 | B107: 能化22-1班 | C107: 2022010400 | D107: 王一伊 | I107: 0 | J107: 首都高等学校第39届田径精英赛女200米项目第三名 | K107: 15 | L107: 首都高等学校第14届秋季学生田径运动会女4X100米接力项目第四名 | M107: 15 | N107: 30 | O107: 30
A108: 105 | B108: 能化22-1班 | C108: 2022010401 | D108: 贾文青 | I108: 0 | N108: 0 | O108: 0
A109: 106 | B109: 能化22-1班 | C109: 2022010402 | D109: 季睿 | I109: 0 | N109: 0 | O109: 0
A110: 107 | B110: 能化22-1班 | C110: 2022010403 | D110: 成思宇 | I110: 0 | N110: 0 | O110: 0
A111: 108 | B111: 能化22-1班 | C111: 2022010404 | D111: 付晨汐 | I111: 0 | N111: 0 | O111: 0
A112: 109 | B112: 能化22-1班 | C112: 2022012313 | D112: 巴合加娜提·加冷 | I112: 0 | N112: 0 | O112: 0
A113: 110 | B113: 能化22-1班 | C113: 2022010428 | D113: 马芬 | I113: 0 | N113: 0 | O113: 0
A114: 111 | B114: 能化22-1班 | C114: 2022010433 | D114: 陈禾婕 | I114: 0 | N114: 0 | O114: 0
A115: 112 | B115: 能化22-1班 | C115: 2022010470 | D115: 张润霞 | I115: 0 | N115: 0 | O115: 0
A116: 113 | B116: 能化22-1班 | C116: 2022010376 | D116: 刘珣 | I116: 0 | N116: 0 | O116: 0
A117: 114 | B117: 能化22-1班 | C117: 2022010380 | D117: 张茂霖 | I117: 0 | N117: 0 | O117: 0
A118: 115 | B118: 能化22-1班 | C118: 2022010381 | D118: 耿智盖灵 | I118: 0 | N118: 0 | O118: 0
A119: 116 | B119: 能化22-1班 | C119: 2022010387 | D119: 陈方旭 | E119: 第一届全国石油和化工科普文章征集活动鼓励奖 | F119: 2 | I119: 2 | J119: 2023网球校赛双打第五名 | K119: 4 | N119: 4 | O119: 6
A120: 117 | B120: 能化22-1班 | C120: 2022010388 | D120: 缪祥麟 | I120: 0 | N120: 0 | O120: 0
A121: 118 | B121: 能化22-1班 | C121: 2022010391 | D121: 王禹程 | I121: 0 | N121: 0 | O121: 0
A122: 119 | B122: 能化22-1班 | C122: 2022010410 | D122: 王子路 | I122: 0 | N122: 0 | O122: 0
A123: 120 | B123: 能化22-1班 | C123: 2022010417 | D123: 段少坤 | I123: 0 | N123: 0 | O123: 0
A124: 121 | B124: 能化22-1班 | C124: 2022010420 | D124: 曹坤阳 | I124: 0 | N124: 0 | O124: 0
A125: 122 | B125: 能化22-1班 | C125: 2022010444 | D125: 汪洋 | I125: 0 | N125: 0 | O125: 0
A126: 123 | B126: 能化22-1班 | C126: 2022010447 | D126: 王冰宇 | I126: 0 | N126: 0 | O126: 0
A127: 124 | B127: 能化22-1班 | C127: 2022010451 | D127: 蒋子强 | I127: 0 | N127: =K127+M127 -> 0 | O127: 0
A128: 125 | B128: 能化22-1班 | C128: 2022010455 | D128: 王德民 | I128: 0 | J128: 2023年中国石油大学（北京）校园铁人两项赛男女混合小轮车接力第四名 | K128: 6 | N128: 6 | O128: 6
A129: 126 | B129: 能化22-1班 | C129: 2022010457 | D129: 杨乐辰 | I129: 0 | N129: 0 | O129: 0
A130: 127 | B130: 能化22-1班 | C130: 2022010474 | D130: 杨志远 | I130: 0 | N130: 0 | O130: 0
A131: 128 | B131: 能化22-1班 | C131: 2022010475 | D131: 蔡进鹏 | I131: 0 | N131: 0 | O131: 0
A132: 129 | B132: 能化22-1班 | C132: 2022012318 | D132: 阿尔帕提·阿卜杜合力力 | I132: =F132+H132 -> 0 | N132: 0 | O132: =I132+N132 -> 0
A133: 130 | B133: 能化22-1班 | C133: 2022010513 | D133: 陈心 | I133: 0 | N133: 0 | O133: 0
A134: 131 | B134: 能化22-1班 | C134: 2022010517 | D134: 郝信淳 | I134: 0 | N134: 0 | O134: 0
A135: 132 | B135: 能化22-1班 | C135: 2022010520 | D135: 孙祖麟 | I135: 0 | N135: 0 | O135: 0
A136: 133 | B136: 能化22-1班 | C136: 2022010523 | D136: 章俊阳 | I136: 0 | N136: 0 | O136: 0
A137: 134 | B137: 能化22-2班 | C137: 2022010365 | D137: 杨秋瑶 | I137: 0 | J137: 2024春季校级运动会跳大绳第一名 | K137: 8 | L137: 2023年校园铁人两项3×男女混合小轮车两项接力比赛第三名 | M137: 6 | N137: 14 | O137: 14
A138: 135 | B138: 能化22-2班 | C138: 2022010368 | D138: 张露 | I138: 0 | N138: 0 | O138: 0
A139: 136 | B139: 能化22-2班 | C139: 2022010396 | D139: 邵兰贺 | I139: 0 | N139: 0 | O139: 0
A140: 137 | B140: 能化22-2班 | C140: 2022010462 | D140: 胡咪 | I140: 0 | N140: 0 | O140: 0
A141: 138 | B141: 能化22-2班 | C141: 2022010464 | D141: 邓姣 | I141: 0 | N141: 0 | O141: 0
A142: 139 | B142: 能化22-2班 | C142: 2022010492 | D142: 钮缨雪 | I142: 0 | J142: 2024第三届北京啦啦操冠军赛俱乐部青年丙组第一名 | K142: 20 | N142: 20 | O142: 20
A143: 140 | B143: 能化22-2班 | C143: 2022010493 | D143: 付锦依 | I143: 0 | N143: 0 | O143: 0
A144: 141 | B144: 能化22-2班 | C144: 2022010495 | D144: 何欣怡 | I144: 0 | N144: 0 | O144: 0
A145: 142 | B145: 能化22-2班 | C145: 2022010496 | D145: 张鑫 | I145: 0 | N145: 0 | O145: 0
A146: 143 | B146: 能化22-2班 | C146: 2022010497 | D146: 达娃卓玛 | I146: 0 | N146: 0 | O146: 0
A147: 144 | B147: 能化22-2班 | C147: 2022010395 | D147: 赵志帆 | I147: 0 | N147: 0 | O147: 0
A148: 145 | B148: 能化22-2班 | C148: 2022012314 | D148: 努尔兰·吐尔军 | I148: 0 | N148: 0 | O148: 0
A149: 146 | B149: 能化22-2班 | C149: 2022010450 | D149: 阿坚全 | I149: 0 | N149: 0 | O149: 0
A150: 147 | B150: 能化22-2班 | C150: 2022010472 | D150: 王奕喆 | I150: 0 | N150: 0 | O150: 0
A151: 148 | B151: 能化22-2班 | C151: 2022010481 | D151: 施孔君 | I151: 0 | N151: 0 | O151: 0
A152: 149 | B152: 能化22-2班 | C152: 2022010484 | D152: 李芃钰 | I152: 0 | N152: 0 | O152: 0
A153: 150 | B153: 能化22-2班 | C153: 2022010485 | D153: 刘帅杰 | I153: 0 | N153: 0 | O153: 0
A154: 151 | B154: 能化22-2班 | C154: 2022010486 | D154: 邵科元 | I154: 0 | J154: 2024春季校级运动会跳大绳第一名 | K154: 8 | N154: 8 | O154: 8
A155: 152 | B155: 能化22-2班 | C155: 2022010491 | D155: 张志彬 | I155: 0 | N155: 0 | O155: 0
A156: 153 | B156: 能化22-2班 | C156: 2022012317 | D156: 萨比尔·库尔班江 | I156: 0 | N156: 0 | O156: 0
A157: 154 | B157: 能化22-2班 | C157: 2022010503 | D157: 袁祺瑞 | I157: 0 | N157: 0 | O157: 0
A158: 155 | B158: 能化22-2班 | C158: 2022010505 | D158: 叶斯波力·叶尔生 | E158: 第十三届外语风采大赛校级三等奖 | F158: 4 | I158: 4 | J158: 2024春季校级运动会摸石头过河第一名 | K158: 8 | L158: 2024校级运动会男子4*100第一名 | M158: 8 | N158: 16 | O158: 20
A159: 156 | B159: 能化22-2班 | C159: 2022010508 | D159: 郝政凯 | I159: 0 | N159: =K159+M159 -> 0 | O159: 0
A160: 157 | B160: 能化22-2班 | C160: 2022010509 | D160: 李京运 | I160: 0 | N160: 0 | O160: 0
A161: 158 | B161: 能化22-2班 | C161: 2022010510 | D161: 李君成 | I161: 0 | N161: 0 | O161: 0
A162: 159 | B162: 能化22-2班 | C162: 2022010515 | D162: 郭家栋 | I162: 0 | N162: 0 | O162: 0
A163: 160 | B163: 能化22-2班 | C163: 2022010521 | D163: 吴振宇 | I163: 0 | N163: 0 | O163: 0
A164: 161 | B164: 能化22-2班 | C164: 2022010522 | D164: 熊俊程 | I164: =F164+H164 -> 0 | N164: 0 | O164: =I164+N164 -> 0
A165: 162 | B165: 能化22-2班 | C165: 2022012319 | D165: 李文杰 | I165: 0 | N165: 0 | O165: 0
A166: 163 | B166: 能化22-2班 | C166: 2022012320 | D166: 阿布杜拉·居乃都拉 | I166: 0 | N166: 0 | O166: 0
A167: 164 | B167: 能化22-2班 | C167: 2022012012 | D167: 欧子俊 | I167: 0 | J167: 2024春季校级运动会摸石头过河第一名 | K167: 8 | N167: 8 | O167: 8

Sheet 体测成绩
A1: 年级 | B1: 院系 | C1: 行政班级 | D1: 学籍号 | E1: 姓名 | F1: 性别 | G1: 备注 | H1: 身高 | I1: 体重 | J1: 肺活量 | K1: 50米跑 | L1: 立定跳远 | M1: 坐位体前屈 | N1: 800米/1000米 | O1: 仰卧起坐/引体向上 | P1: 总分 | Q1: 等级
A2: 2022 | B2: 化学工程与环境学院 | C2: 化工22-1班 | D2: 2022010100 | E2: 智玉轩 | F2: 女 | H2: 154 | I2: 61.7 | J2: 3293 | K2: 8 | L2: 176 | M2: 13.4 | N2: 3'43'' | O2: 44 | P2: 80.2 | Q2: 良好
A3: 2022 | B3: 化学工程与环境学院 | C3: 化工22-1班 | D3: 2022010364 | E3: 张姝瑶 | F3: 女 | H3: 161 | I3: 45.6 | J3: 3340 | K3: 8.9 | L3: 158 | M3: 14.5 | N3: 3'52'' | O3: 36 | P3: 79.1 | Q3: 及格
A4: 2022 | B4: 化学工程与环境学院 | C4: 化工22-1班 | D4: 2022010367 | E4: 周芹 | F4: 女 | H4: 152 | I4: 45.7 | J4: 3164 | K4: 7.9 | L4: 182 | M4: 14.4 | N4: 3'36'' | O4: 37 | P4: 84 | Q4: 良好
A5: 2022 | B5: 化学工程与环境学院 | C5: 化工22-1班 | D5: 2022010369 | E5: 李越 | F5: 女 | H5: 159 | I5: 54.2 | J5: 2879 | K5: 7.7 | L5: 187 | M5: 23.1 | N5: 4'00'' | O5: 37 | P5: 82.8 | Q5: 良好
A6: 2022 | B6: 化学工程与环境学院 | C6: 化工22-1班 | D6: 2022010370 | E6: 马海霞 | F6: 女 | G6: 免测 | H6: 暂无 | I6: 暂无 | J6: 暂无 | K6: 暂无 | L6: 暂无 | M6: 暂无 | N6: 暂无 | O6: 暂无 | P6: 60 | Q6: 免测
A7: 2022 | B7: 化学工程与环境学院 | C7: 化工22-1班 | D7: 2022010371 | E7: 何丽鸿 | F7: 女 | H7: 158.5 | I7: 54.1 | J7: 3610 | K7: 8.2 | L7: 184 | M7: 12.1 | N7: 4'11'' | O7: 43 | P7: 82 | Q7: 良好
A8: 2022 | B8: 化学工程与环境学院 | C8: 化工22-1班 | D8: 2022010372 | E8: 史佳悦 | F8: 女 | H8: 164 | I8: 50.1 | J8: 3030 | K8: 8.6 | L8: 172 | M8: 3.4 | N8: 4'34'' | O8: 33 | P8: 70.2 | Q8: 及格
A9: 2022 | B9: 化学工程与环境学院 | C9: 化工22-1班 | D9: 2022010373 | E9: 王晴宇 | F9: 女 | H9: 162.5 | I9: 58 | J9: 3337 | K9: 8.6 | L9: 165 | M9: 21 | N9: 3'46'' | O9: 20 | P9: 77.6 | Q9: 及格
A10: 2022 | B10: 化学工程与环境学院 | C10: 化工22-1班 | D10: 2022010374 | E10: 袁佳怡 | F10: 女 | H10: 165.5 | I10: 61.9 | J10: 3382 | K10: 8.4 | L10: 181 | M10: 19.3 | N10: 3'53'' | O10: 33 | P10: 82.7 | Q10: 良好
A11: 2022 | B11: 化学工程与环境学院 | C11: 化工22-1班 | D11: 2022010377 | E11: 刘超 | F11: 男 | H11: 165 | I11: 66.9 | J11: 6265 | K11: 8 | L11: 168 | M11: 4.1 | N11: 4'46'' | O11: 0 | P11: 57 | Q11: 不及格
A12: 2022 | B12: 化学工程与环境学院 | C12: 化工22-1班 | D12: 2022010379 | E12: 孙科 | F12: 男 | H12: 171.5 | I12: 79.3 | J12: 5271 | K12: 7.7 | L12: 199 | M12: 7.2 | N12: 3'54'' | O12: 1 | P12: 67 | Q12: 及格
A13: 2022 | B13: 化学工程与环境学院 | C13: 化工22-1班 | D13: 2022010382 | E13: 张铸 | F13: 男 | H13: 171.5 | I13: 56 | J13: 4559 | K13: 7.1 | L13: 247 | M13: -2.5 | N13: 3'45'' | O13: 8 | P13: 71.2 | Q13: 及格
A14: 2022 | B14: 化学工程与环境学院 | C14: 化工22-1班 | D14: 2022010383 | E14: 刘子瑞 | F14: 男 | H14: 179 | I14: 74.6 | J14: 5774 | K14: 7.7 | L14: 203 | M14: 4.8 | N14: 4'31'' | O14: 0 | P14: 67.8 | Q14: 及格
A15: 2022 | B15: 化学工程与环境学院 | C15: 化工22-1班 | D15: 2022010384 | E15: 吴立新 | F15: 男 | H15: 181 | I15: 82.1 | J15: 4864 | K15: 7.1 | L15: 222 | M15: 17 | N15: 4'23'' | O15: 0 | P15: 68.3 | Q15: 及格
A16: 2022 | B16: 化学工程与环境学院 | C16: 化工22-1班 | D16: 2022010385 | E16: 龚泽恩 | F16: 男 | H16: 182 | I16: 73.5 | J16: 5944 | K16: 6.4 | L16: 261 | M16: 17.5 | N16: 4'02'' | O16: 4 | P16: 80.7 | Q16: 良好
A17: 2022 | B17: 化学工程与环境学院 | C17: 化工22-1班 | D17: 2022010386 | E17: 李陶然 | F17: 男 | G17: 免测 | H17: 暂无 | I17: 暂无 | J17: 暂无 | K17: 暂无 | L17: 暂无 | M17: 暂无 | N17: 暂无 | O17: 暂无 | P17: 60 | Q17: 免测
A18: 2022 | B18: 化学工程与环境学院 | C18: 化工22-1班 | D18: 2022010389 | E18: 牛浩镔 | F18: 男 | G18: 免测 | H18: 暂无 | I18: 暂无 | J18: 暂无 | K18: 暂无 | L18: 暂无 | M18: 暂无 | N18: 暂无 | O18: 暂无 | P18: 60 | Q18: 免测
A19: 2022 | B19: 化学工程与环境学院 | C19: 化工22-1班 | D19: 2022010390 | E19: 申溱 | F19: 男 | H19: 173 | I19: 61.2 | J19: 5281 | K19: 6.8 | L19: 217 | M19: 0.5 | N19: 4'14'' | O19: 0 | P19: 70.6 | Q19: 及格
A20: 2022 | B20: 化学工程与环境学院 | C20: 化工22-1班 | D20: 2022010392 | E20: 吴照飞 | F20: 男 | H20: 170 | I20: 53.5 | J20: 3832 | K20: 6.3 | L20: 254 | M20: 4.7 | N20: 3'48'' | O20: 12 | P20: 81.8 | Q20: 良好
A21: 2022 | B21: 化学工程与环境学院 | C21: 化工22-1班 | D21: 2022010394 | E21: 张之翼 | F21: 男 | H21: 170 | I21: 52.7 | J21: 5062 | K21: 6.6 | L21: 236 | M21: 5.3 | N21: 3'29'' | O21: 5 | P21: 81.6 | Q21: 良好
A22: 2022 | B22: 化学工程与环境学院 | C22: 化工22-1班 | D22: 2022010397 | E22: 李安然 | F22: 女 | H22: 147 | I22: 35.6 | J22: 3051 | K22: 9.1 | L22: 158 | M22: 10.6 | N22: 4'12'' | O22: 37 | P22: 72 | Q22: 及格
A23: 2022 | B23: 化学工程与环境学院 | C23: 化工22-1班 | D23: 2022010409 | E23: 周家艺 | F23: 男 | H23: 166 | I23: 57.7 | J23: 3620 | K23: 7.2 | L23: 220 | M23: 5.7 | N23: 4'33'' | O23: 0 | P23: 63.6 | Q23: 及格
A24: 2022 | B24: 化学工程与环境学院 | C24: 化工22-1班 | D24: 2022010411 | E24: 姚锦栋 | F24: 男 | H24: 178.5 | I24: 56.6 | J24: 5268 | K24: 6.8 | L24: 230 | M24: -2.6 | N24: 4'07'' | O24: 17 | P24: 76 | Q24: 及格
A25: 2022 | B25: 化学工程与环境学院 | C25: 化工22-1班 | D25: 2022010412 | E25: 代肖彤 | F25: 男 | H25: 181.5 | I25: 72.5 | J25: 5087 | K25: 6.7 | L25: 255 | M25: 13.7 | N25: 3'55'' | O25: 16 | P25: 88.7 | Q25: 良好
A26: 2022 | B26: 化学工程与环境学院 | C26: 化工22-1班 | D26: 2022010413 | E26: 陈恒宇 | F26: 男 | H26: 175 | I26: 80.8 | J26: 5430 | K26: 6.9 | L26: 225 | M26: 4.2 | N26: 4'38'' | O26: 0 | P26: 67.8 | Q26: 及格
A27: 2022 | B27: 化学工程与环境学院 | C27: 化工22-1班 | D27: 2022010414 | E27: 潘恒懿 | F27: 男 | H27: 暂无 | I27: 暂无 | J27: 暂无 | K27: 暂无 | L27: 暂无 | M27: 暂无 | N27: 暂无 | O27: 暂无 | P27: 0 | Q27: 不及格
A28: 2022 | B28: 化学工程与环境学院 | C28: 化工22-1班 | D28: 2022010418 | E28: 王明堃 | F28: 男 | H28: 178 | I28: 67.7 | J28: 3901 | K28: 6.9 | L28: 236 | M28: -5.6 | N28: 3'49'' | O28: 6 | P28: 68.4 | Q28: 及格
A29: 2022 | B29: 化学工程与环境学院 | C29: 化工22-1班 | D29: 2022010419 | E29: 史国柱 | F29: 男 | H29: 176.5 | I29: 66.5 | J29: 6039 | K29: 7.4 | L29: 222 | M29: 4.4 | N29: 4'10'' | O29: 0 | P29: 71.4 | Q29: 及格
A30: 2022 | B30: 化学工程与环境学院 | C30: 化工22-1班 | D30: 2022010516 | E30: 郭智硕 | F30: 男 | H30: 181 | I30: 64.2 | J30: 5056 | K30: 6.9 | L30: 213 | M30: 4.2 | N30: 4'20'' | O30: 0 | P30: 73 | Q30: 及格
A31: 2022 | B31: 化学工程与环境学院 | C31: 化工22-1班 | D31: 2022010518 | E31: 贾思远 | F31: 男 | H31: 182 | I31: 73.4 | J31: 4474 | K31: 6.6 | L31: 234 | M31: -1.6 | N31: 3'39'' | O31: 0 | P31: 70.2 | Q31: 及格
A32: 2022 | B32: 化学工程与环境学院 | C32: 化工22-1班 | D32: 2022010519 | E32: 李佳俊 | F32: 男 | H32: 178 | I32: 72 | J32: 5742 | K32: 6 | L32: 289 | M32: 26 | N32: 3'05'' | O32: 19 | P32: 103 | Q32: 优秀
A33: 2022 | B33: 化学工程与环境学院 | C33: 化工22-1班 | D33: 2022010622 | E33: 顾凌云 | F33: 男 | H33: 165.5 | I33: 60.9 | J33: 4360 | K33: 7 | L33: 207 | M33: 6.8 | N33: 4'10'' | O33: 4 | P33: 69 | Q33: 及格
A34: 2022 | B34: 化学工程与环境学院 | C34: 化工22-1班 | D34: 2022012311 | E34: 布威麦尔耶姆·麦麦提图尔荪 | F34: 女 | H34: 161 | I34: 63.3 | J34: 3913 | K34: 8.6 | L34: 179 | M34: 8.5 | N34: 4'02'' | O34: 28 | P34: 76.8 | Q34: 及格
A35: 2022 | B35: 化学工程与环境学院 | C35: 化工22-1班 | D35: 2022012312 | E35: 徐峥 | F35: 男 | H35: 176.5 | I35: 82.6 | J35: 5267 | K35: 7.1 | L35: 212 | M35: 10.9 | N35: 4'36'' | O35: 4 | P35: 66.2 | Q35: 及格
A36: 2022 | B36: 化学工程与环境学院 | C36: 化工22-2班 | D36: 2022010408 | E36: 许文轲 | F36: 男 | H36: 174 | I36: 60 | J36: 5294 | K36: 7 | L36: 196 | M36: 11.5 | N36: 3'57'' | O36: 9 | P36: 76.8 | Q36: 及格
A37: 2022 | B37: 化学工程与环境学院 | C37: 化工22-2班 | D37: 2022010422 | E37: 江锦欣 | F37: 男 | H37: 171 | I37: 56.7 | J37: 4427 | K37: 7.5 | L37: 225 | M37: 9.1 | N37: 3'53'' | O37: 0 | P37: 70.4 | Q37: 及格
A38: 2022 | B38: 化学工程与环境学院 | C38: 化工22-2班 | D38: 2022010426 | E38: 赵群 | F38: 男 | H38: 181 | I38: 82.8 | J38: 4811 | K38: 7.9 | L38: 207 | M38: -3.9 | N38: 4'18'' | O38: 0 | P38: 57.7 | Q38: 不及格
A39: 2022 | B39: 化学工程与环境学院 | C39: 化工22-2班 | D39: 2022010427 | E39: 周慧林 | F39: 男 | H39: 173.5 | I39: 100 | J39: 5287 | K39: 7 | L39: 194 | M39: 4.8 | N39: 4'27'' | O39: 0 | P39: 62.4 | Q39: 及格
A40: 2022 | B40: 化学工程与环境学院 | C40: 化工22-2班 | D40: 2022010429 | E40: 程实 | F40: 女 | H40: 163 | I40: 55.2 | J40: 2685 | K40: 8.3 | L40: 172 | M40: 14.6 | N40: 3'42'' | O40: 29 | P40: 78.6 | Q40: 及格
A41: 2022 | B41: 化学工程与环境学院 | C41: 化工22-2班 | D41: 2022010430 | E41: 马瑜含 | F41: 女 | H41: 164 | I41: 58 | J41: 3684 | K41: 8 | L41: 152 | M41: 20 | N41: 3'20'' | O41: 28 | P41: 86.2 | Q41: 良好
A42: 2022 | B42: 化学工程与环境学院 | C42: 化工22-2班 | D42: 2022010431 | E42: 贺婕 | F42: 女 | G42: 免测 | H42: 暂无 | I42: 暂无 | J42: 暂无 | K42: 暂无 | L42: 暂无 | M42: 暂无 | N42: 暂无 | O42: 暂无 | P42: 60 | Q42: 不及格
A43: 2022 | B43: 化学工程与环境学院 | C43: 化工22-2班 | D43: 2022010432 | E43: 刘雨佳 | F43: 女 | H43: 153 | I43: 52.2 | J43: 2867 | K43: 9.2 | L43: 157 | M43: 10.6 | N43: 4'36'' | O43: 24 | P43: 68.4 | Q43: 及格
A44: 2022 | B44: 化学工程与环境学院 | C44: 化工22-2班 | D44: 2022010435 | E44: 秦婧瑶 | F44: 女 | H44: 154 | I44: 49.9 | J44: 2903 | K44: 9.2 | L44: 150 | M44: 15.4 | N44: 4'06'' | O44: 23 | P44: 71.1 | Q44: 及格
A45: 2022 | B45: 化学工程与环境学院 | C45: 化工22-2班 | D45: 2022010436 | E45: 孙涵 | F45: 女 | G45: 缓测 | H45: 暂无 | I45: 暂无 | J45: 暂无 | K45: 暂无 | L45: 暂无 | M45: 暂无 | N45: 暂无 | O45: 暂无 | P45: 0 | Q45: 不及格
A46: 2022 | B46: 化学工程与环境学院 | C46: 化工22-2班 | D46: 2022010437 | E46: 王晓弘 | F46: 女 | H46: 161 | I46: 52.8 | J46: 3235 | K46: 9.3 | L46: 142 | M46: 19.2 | N46: 4'02'' | O46: 24 | P46: 73.2 | Q46: 及格
A47: 2022 | B47: 化学工程与环境学院 | C47: 化工22-2班 | D47: 2022010438 | E47: 张涵婷 | F47: 女 | H47: 170 | I47: 59.8 | J47: 2966 | K47: 9.2 | L47: 165 | M47: 9.9 | N47: 3'52'' | O47: 29 | P47: 75.5 | Q47: 及格
A48: 2022 | B48: 化学工程与环境学院 | C48: 化工22-2班 | D48: 2022010439 | E48: 张心怡 | F48: 女 | H48: 158 | I48: 51.4 | J48: 3579 | K48: 9 | L48: 136 | M48: 8 | N48: 3'45'' | O48: 50 | P48: 77.7 | Q48: 及格
A49: 2022 | B49: 化学工程与环境学院 | C49: 化工22-2班 | D49: 2022010440 | E49: 黄颖聪 | F49: 男 | H49: 168.5 | I49: 77.2 | J49: 1823 | K49: 7.4 | L49: 199 | M49: -2.4 | N49: 4'39'' | O49: 4 | P49: 41.2 | Q49: 不及格
A50: 2022 | B50: 化学工程与环境学院 | C50: 化工22-2班 | D50: 2022010441 | E50: 白兆 | F50: 男 | H50: 179 | I50: 78.5 | J50: 5507 | K50: 7.2 | L50: 189 | M50: 5.2 | N50: 3'30'' | O50: 10 | P50: 73.8 | Q50: 及格
A51: 2022 | B51: 化学工程与环境学院 | C51: 化工22-2班 | D51: 2022010442 | E51: 尹泽 | F51: 男 | H51: 169.5 | I51: 70.5 | J51: 5314 | K51: 7.8 | L51: 182 | M51: 10 | N51: 4'40'' | O51: 5 | P51: 59.2 | Q51: 不及格
A52: 2022 | B52: 化学工程与环境学院 | C52: 化工22-2班 | D52: 2022010443 | E52: 杨志文 | F52: 男 | H52: 174 | I52: 105 | J52: 5182 | K52: 8.3 | L52: 159 | M52: 14.3 | N52: 5'36'' | O52: 0 | P52: 49 | Q52: 不及格
A53: 2022 | B53: 化学工程与环境学院 | C53: 化工22-2班 | D53: 2022010445 | E53: 赵国平 | F53: 男 | H53: 176.5 | I53: 71.8 | J53: 4773 | K53: 7.5 | L53: 195 | M53: 8 | N53: 4'21'' | O53: 2 | P53: 65.4 | Q53: 及格
A54: 2022 | B54: 化学工程与环境学院 | C54: 化工22-2班 | D54: 2022010446 | E54: 金立民 | F54: 男 | H54: 170 | I54: 62.9 | J54: 4429 | K54: 7.5 | L54: 210 | M54: 9.9 | N54: 4'06'' | O54: 暂无 | P54: 69 | Q54: 及格
A55: 2022 | B55: 化学工程与环境学院 | C55: 化工22-2班 | D55: 2022010448 | E55: 王增智 | F55: 男 | H55: 175 | I55: 68.6 | J55: 5602 | K55: 6.7 | L55: 260 | M55: 4.5 | N55: 3'35'' | O55: 14 | P55: 88.1 | Q55: 良好
A56: 2022 | B56: 化学工程与环境学院 | C56: 化工22-2班 | D56: 2022010449 | E56: 郑少杰 | F56: 男 | H56: 166 | I56: 58.8 | J56: 4096 | K56: 6.7 | L56: 220 | M56: 0.8 | N56: 3'27'' | O56: 13 | P56: 81.2 | Q56: 良好
A57: 2022 | B57: 化学工程与环境学院 | C57: 化工22-2班 | D57: 2022010452 | E57: 康胜 | F57: 男 | H57: 178 | I57: 56 | J57: 4749 | K57: 6.4 | L57: 238 | M57: 28.5 | N57: 3'25'' | O57: 22 | P57: 93.2 | Q57: 优秀
A58: 2022 | B58: 化学工程与环境学院 | C58: 化工22-2班 | D58: 2022010453 | E58: 李成歆 | F58: 男 | H58: 182 | I58: 102 | J58: 4082 | K58: 8 | L58: 174 | M58: 4.9 | N58: 5'18'' | O58: 0 | P58: 46.4 | Q58: 不及格
A59: 2022 | B59: 化学工程与环境学院 | C59: 化工22-2班 | D59: 2022010454 | E59: 孙琪桐 | F59: 男 | H59: 185 | I59: 78.2 | J59: 7164 | K59: 6.6 | L59: 266 | M59: 11.2 | N59: 4'13'' | O59: 5 | P59: 80.2 | Q59: 良好
A60: 2022 | B60: 化学工程与环境学院 | C60: 化工22-2班 | D60: 2022010456 | E60: 吴金琪 | F60: 男 | H60: 186 | I60: 103 | J60: 6413 | K60: 8.1 | L60: 195 | M60: 3 | N60: 5'15'' | O60: 0 | P60: 52 | Q60: 不及格
A61: 2022 | B61: 化学工程与环境学院 | C61: 化工22-2班 | D61: 2022010458 | E61: 赵帅 | F61: 男 | H61: 167 | I61: 91 | J61: 4690 | K61: 8.9 | L61: 167 | M61: 12 | N61: 3'49'' | O61: 0 | P61: 56.4 | Q61: 不及格
A62: 2022 | B62: 化学工程与环境学院 | C62: 化工22-2班 | D62: 2022010459 | E62: 朱行健 | F62: 男 | H62: 176 | I62: 66.3 | J62: 5257 | K62: 6.6 | L62: 233 | M62: 15.1 | N62: 3'29'' | O62: 19 | P62: 91.8 | Q62: 优秀
A63: 2022 | B63: 化学工程与环境学院 | C63: 化工22-2班 | D63: 2022010494 | E63: 唐樱菲 | F63: 女 | H63: 167 | I63: 58.7 | J63: 3988 | K63: 8.6 | L63: 185 | M63: 18.1 | N63: 4'09'' | O63: 39 | P63: 82.2 | Q63: 良好
A64: 2022 | B64: 化学工程与环境学院 | C64: 化工22-2班 | D64: 2022010499 | E64: 曹炜曼 | F64: 女 | H64: 160 | I64: 46.8 | J64: 2744 | K64: 8.4 | L64: 194 | M64: 17.2 | N64: 3'47'' | O64: 36 | P64: 80.4 | Q64: 良好
A65: 2022 | B65: 化学工程与环境学院 | C65: 化工22-2班 | D65: 2022010511 | E65: 罗小刚 | F65: 男 | H65: 186 | I65: 70 | J65: 5468 | K65: 7.4 | L65: 214 | M65: 20.8 | N65: 3'55'' | O65: 0 | P65: 74.7 | Q65: 及格
A66: 2022 | B66: 化学工程与环境学院 | C66: 化工22-2班 | D66: 2022010512 | E66: 陈俊逸 | F66: 男 | H66: 181.5 | I66: 76.8 | J66: 5272 | K66: 7.3 | L66: 232 | M66: 20.7 | N66: 4'17'' | O66: 0 | P66: 74.5 | Q66: 及格
A67: 2022 | B67: 化学工程与环境学院 | C67: 化工22-2班 | D67: 2022010584 | E67: 肖涵芮 | F67: 女 | H67: 164 | I67: 53.9 | J67: 3679 | K67: 9 | L67: 156 | M67: 21.3 | N67: 3'56'' | O67: 27 | P67: 79.9 | Q67: 及格
A68: 2022 | B68: 化学工程与环境学院 | C68: 化工22-2班 | D68: 2022010585 | E68: 崔跃兰 | F68: 女 | H68: 158.5 | I68: 44.4 | J68: 3481 | K68: 8.4 | L68: 167 | M68: 12.8 | N68: 4'05'' | O68: 36 | P68: 80.6 | Q68: 良好
A69: 2022 | B69: 化学工程与环境学院 | C69: 化工22-2班 | D69: 2022012316 | E69: 陈语 | F69: 男 | H69: 171 | I69: 58.7 | J69: 4891 | K69: 6.8 | L69: 210 | M69: 8.8 | N69: 3'20'' | O69: 21 | P69: 91.1 | Q69: 优秀
A70: 2022 | B70: 化学工程与环境学院 | C70: 化工22-2班 | D70: 2022015762 | E70: 刘雅妮 | F70: 女 | H70: 暂无 | I70: 暂无 | J70: 暂无 | K70: 8.3 | L70: 暂无 | M70: 暂无 | N70: 4'10'' | O70: 暂无 | P70: 29.6 | Q70: 不及格
A71: 2022 | B71: 化学工程与环境学院 | C71: 化工22-2班 | D71: 2022015839 | E71: 来建航 | F71: 男 | H71: 暂无 | I71: 暂无 | J71: 暂无 | K71: 6.6 | L71: 暂无 | M71: 暂无 | N71: 3'36'' | O71: 14 | P71: 43.6 | Q71: 不及格
A72: 2022 | B72: 化学工程与环境学院 | C72: 化工22-3班 | D72: 2022010406 | E72: 彭莎莎 | F72: 女 | H72: 155 | I72: 52.3 | J72: 3353 | K72: 9.1 | L72: 159 | M72: 10.8 | N72: 4'10'' | O72: 37 | P72: 77.3 | Q72: 及格
A73: 2022 | B73: 化学工程与环境学院 | C73: 化工22-3班 | D73: 2022010407 | E73: 叶海宇 | F73: 女 | H73: 158 | I73: 64.8 | J73: 3917 | K73: 8.5 | L73: 187 | M73: 9.8 | N73: 3'43'' | O73: 32 | P73: 79.6 | Q73: 及格
A74: 2022 | B74: 化学工程与环境学院 | C74: 化工22-3班 | D74: 2022010421 | E74: 季磊 | F74: 男 | H74: 181 | I74: 85.6 | J74: 5666 | K74: 7.1 | L74: 230 | M74: 3.6 | N74: 3'54'' | O74: 0 | P74: 69.8 | Q74: 及格
A75: 2022 | B75: 化学工程与环境学院 | C75: 化工22-3班 | D75: 2022010423 | E75: 汪礼俊 | F75: 男 | H75: 176.5 | I75: 77.2 | J75: 5488 | K75: 7.4 | L75: 219 | M75: 7.7 | N75: 3'55'' | O75: 3 | P75: 69.8 | Q75: 及格
A76: 2022 | B76: 化学工程与环境学院 | C76: 化工22-3班 | D76: 2022010424 | E76: 席振昌 | F76: 男 | H76: 182 | I76: 97.6 | J76: 5057 | K76: 7.5 | L76: 200 | M76: 3.2 | N76: 4'10'' | O76: 0 | P76: 61.8 | Q76: 及格
A77: 2022 | B77: 化学工程与环境学院 | C77: 化工22-3班 | D77: 2022010425 | E77: 闫杨奇昊 | F77: 男 | H77: 175 | I77: 78.9 | J77: 4737 | K77: 7.7 | L77: 216 | M77: 12.2 | N77: 5'07'' | O77: 0 | P77: 61.2 | Q77: 及格
A78: 2022 | B78: 化学工程与环境学院 | C78: 化工22-3班 | D78: 2022010460 | E78: 努尔斯巴·买提库尔班 | F78: 女 | H78: 154 | I78: 41.2 | J78: 3002 | K78: 10 | L78: 130 | M78: 7.1 | N78: 4'18'' | O78: 22 | P78: 63.6 | Q78: 及格
A79: 2022 | B79: 化学工程与环境学院 | C79: 化工22-3班 | D79: 2022010461 | E79: 吴芷璇 | F79: 女 | H79: 170.5 | I79: 62.4 | J79: 3665 | K79: 7.8 | L79: 175 | M79: 12.3 | N79: 3'10'' | O79: 32 | P79: 89 | Q79: 良好
A80: 2022 | B80: 化学工程与环境学院 | C80: 化工22-3班 | D80: 2022010463 | E80: 孙千翔 | F80: 女 | H80: 169 | I80: 57.5 | J80: 3762 | K80: 8.4 | L80: 183 | M80: 18.4 | N80: 3'53'' | O80: 32 | P80: 83.2 | Q80: 良好
A81: 2022 | B81: 化学工程与环境学院 | C81: 化工22-3班 | D81: 2022010465 | E81: 陈飞月 | F81: 女 | H81: 160 | I81: 52.8 | J81: 3429 | K81: 8.3 | L81: 180 | M81: 6.7 | N81: 3'31'' | O81: 41 | P81: 84.2 | Q81: 良好
A82: 2022 | B82: 化学工程与环境学院 | C82: 化工22-3班 | D82: 2022010467 | E82: 石彩君 | F82: 女 | H82: 167.5 | I82: 66.5 | J82: 2349 | K82: 9.4 | L82: 141 | M82: -1.4 | N82: 4'00'' | O82: 33 | P82: 63.5 | Q82: 及格
A83: 2022 | B83: 化学工程与环境学院 | C83: 化工22-3班 | D83: 2022010468 | E83: 吴忆 | F83: 女 | G83: 免测 | H83: 暂无 | I83: 暂无 | J83: 暂无 | K83: 暂无 | L83: 暂无 | M83: 暂无 | N83: 暂无 | O83: 暂无 | P83: 60 | Q83: 免测
A84: 2022 | B84: 化学工程与环境学院 | C84: 化工22-3班 | D84: 2022010469 | E84: 许馨月 | F84: 女 | H84: 169.5 | I84: 78.8 | J84: 3210 | K84: 9.3 | L84: 165 | M84: 21.7 | N84: 4'01'' | O84: 39 | P84: 75.7 | Q84: 及格
A85: 2022 | B85: 化学工程与环境学院 | C85: 化工22-3班 | D85: 2022010471 | E85: 张支铭 | F85: 女 | H85: 176 | I85: 59.2 | J85: 3367 | K85: 9.2 | L85: 187 | M85: 22.7 | N85: 4'21'' | O85: 39 | P85: 80.3 | Q85: 良好
A86: 2022 | B86: 化学工程与环境学院 | C86: 化工22-3班 | D86: 2022010473 | E86: 刘源兴 | F86: 男 | H86: 179.5 | I86: 65 | J86: 5656 | K86: 7.4 | L86: 207 | M86: 5.5 | N86: 4'28'' | O86: 0 | P86: 68.4 | Q86: 及格
A87: 2022 | B87: 化学工程与环境学院 | C87: 化工22-3班 | D87: 2022010476 | E87: 何岩松 | F87: 男 | H87: 186 | I87: 99.1 | J87: 5820 | K87: 7.3 | L87: 204 | M87: 3.6 | N87: 4'26'' | O87: 3 | P87: 62 | Q87: 及格
A88: 2022 | B88: 化学工程与环境学院 | C88: 化工22-3班 | D88: 2022010477 | E88: 张帅 | F88: 男 | H88: 173.5 | I88: 79.9 | J88: 6993 | K88: 7.1 | L88: 218 | M88: 13.6 | N88: 3'41'' | O88: 6 | P88: 74.8 | Q88: 及格
A89: 2022 | B89: 化学工程与环境学院 | C89: 化工22-3班 | D89: 2022010478 | E89: 李煌 | F89: 男 | H89: 168 | I89: 53 | J89: 4889 | K89: 7.1 | L89: 234 | M89: 16.2 | N89: 3'27'' | O89: 7 | P89: 80.3 | Q89: 良好
A90: 2022 | B90: 化学工程与环境学院 | C90: 化工22-3班 | D90: 2022010479 | E90: 杨广军 | F90: 男 | H90: 168 | I90: 55.6 | J90: 4169 | K90: 7.1 | L90: 229 | M90: 20 | N90: 3'30'' | O90: 7 | P90: 77.9 | Q90: 及格
A91: 2022 | B91: 化学工程与环境学院 | C91: 化工22-3班 | D91: 2022010480 | E91: 杨明涛 | F91: 男 | H91: 174 | I91: 86.6 | J91: 5941 | K91: 7.4 | L91: 228 | M91: 5.4 | N91: 4'43'' | O91: 7 | P91: 65.4 | Q91: 及格
A92: 2022 | B92: 化学工程与环境学院 | C92: 化工22-3班 | D92: 2022010482 | E92: 傅世坤 | F92: 男 | H92: 182 | I92: 76.3 | J92: 6232 | K92: 7.6 | L92: 206 | M92: 15.6 | N92: 4'15'' | O92: 0 | P92: 70.6 | Q92: 及格
A93: 2022 | B93: 化学工程与环境学院 | C93: 化工22-3班 | D93: 2022010483 | E93: 李浩永 | F93: 男 | H93: 174 | I93: 57 | J93: 4490 | K93: 7.6 | L93: 189 | M93: 5.9 | N93: 4'01'' | O93: 0 | P93: 64.4 | Q93: 及格
A94: 2022 | B94: 化学工程与环境学院 | C94: 化工22-3班 | D94: 2022010487 | E94: 涂景豪 | F94: 男 | H94: 178.5 | I94: 81.4 | J94: 5799 | K94: 7 | L94: 194 | M94: 7.3 | N94: 4'41'' | O94: 4 | P94: 63.4 | Q94: 及格
A95: 2022 | B95: 化学工程与环境学院 | C95: 化工22-3班 | D95: 2022010489 | E95: 谢林洲 | F95: 男 | H95: 108 | I95: 85 | J95: 4570 | K95: 6.7 | L95: 230 | M95: 21.3 | N95: 3.4 | O95: 10 | P95: 82.8 | Q95: 不及格
A96: 2022 | B96: 化学工程与环境学院 | C96: 化工22-3班 | D96: 2022010490 | E96: 严臻睿 | F96: 男 | H96: 184 | I96: 92.1 | J96: 5255 | K96: 6.9 | L96: 212 | M96: 4.2 | N96: 3'53'' | O96: 0 | P96: 72 | Q96: 及格
A97: 2022 | B97: 化学工程与环境学院 | C97: 化工22-3班 | D97: 2022010500 | E97: 马倩 | F97: 女 | H97: 162.5 | I97: 60.3 | J97: 3704 | K97: 8.4 | L97: 186 | M97: 11.1 | N97: 4'28'' | O97: 24 | P97: 77.6 | Q97: 及格
A98: 2022 | B98: 化学工程与环境学院 | C98: 化工22-3班 | D98: 2022010501 | E98: 屈芷晴 | F98: 女 | H98: 160 | I98: 50 | J98: 3900 | K98: 7.2 | L98: 200 | M98: 25 | N98: 3'09'' | O98: 50 | P98: 98 | Q98: 优秀
A99: 2022 | B99: 化学工程与环境学院 | C99: 化工22-3班 | D99: 2022010504 | E99: 李宇翔 | F99: 男 | H99: 172 | I99: 64.9 | J99: 4439 | K99: 7.3 | L99: 246 | M99: 4.2 | N99: 5'10'' | O99: 0 | P99: 64.4 | Q99: 及格
A100: 2022 | B100: 化学工程与环境学院 | C100: 化工22-3班 | D100: 2022010506 | E100: 张席地 | F100: 男 | H100: 暂无 | I100: 暂无 | J100: 暂无 | K100: 7 | L100: 暂无 | M100: 暂无 | N100: 3'55'' | O100: 20 | P100: 42.8 | Q100: 不及格
A101: 2022 | B101: 化学工程与环境学院 | C101: 化工22-3班 | D101: 2022010507 | E101: 马凯园 | F101: 男 | H101: 184 | I101: 62 | J101: 3103 | K101: 7.5 | L101: 237 | M101: 7.3 | N101: 4'36'' | O101: 9 | P101: 68 | Q101: 及格
A102: 2022 | B102: 化学工程与环境学院 | C102: 化工22-3班 | D102: 2022010547 | E102: 黄一翀 | F102: 男 | H102: 166 | I102: 61 | J102: 3871 | K102: 7 | L102: 215 | M102: 16.4 | N102: 3'56'' | O102: 11 | P102: 78 | Q102: 及格
A103: 2022 | B103: 化学工程与环境学院 | C103: 化工22-3班 | D103: 2022010837 | E103: 陈伟玄 | F103: 男 | H103: 164 | I103: 49 | J103: 4102 | K103: 6.9 | L103: 225 | M103: 16.9 | N103: 3'55'' | O103: 11 | P103: 80.2 | Q103: 良好
A104: 2022 | B104: 化学工程与环境学院 | C104: 化工22-3班 | D104: 2022011451 | E104: 喻治坤 | F104: 男 | H104: 暂无 | I104: 暂无 | J104: 暂无 | K104: 6.9 | L104: 暂无 | M104: 暂无 | N104: 4'03'' | O104: 7 | P104: 35 | Q104: 不及格
A105: 2022 | B105: 化学工程与环境学院 | C105: 化工22-3班 | D105: 2022015771 | E105: 华镜博 | F105: 男 | H105: 暂无 | I105: 暂无 | J105: 暂无 | K105: 7.4 | L105: 暂无 | M105: 暂无 | N105: 3'37'' | O105: 6 | P105: 33.2 | Q105: 不及格
A106: 2022 | B106: 化学工程与环境学院 | C106: 化工22-3班 | D106: 2022015845 | E106: 蒲阳明 | F106: 男 | H106: 暂无 | I106: 暂无 | J106: 暂无 | K106: 6.7 | L106: 暂无 | M106: 暂无 | N106: 3'30'' | O106: 10 | P106: 43 | Q106: 不及格
A107: 2022 | B107: 化学工程与环境学院 | C107: 化工类22-1班 | D107: 2022010375 | E107: 张珂凡 | F107: 女 | H107: 暂无 | I107: 暂无 | J107: 暂无 | K107: 暂无 | L107: 暂无 | M107: 暂无 | N107: 暂无 | O107: 暂无 | P107: 0 | Q107: 不及格
A108: 2022 | B108: 化学工程与环境学院 | C108: 化工类22-2班 | D108: 2022010415 | E108: 赵一德 | F108: 男 | H108: 暂无 | I108: 暂无 | J108: 暂无 | K108: 暂无 | L108: 暂无 | M108: 暂无 | N108: 暂无 | O108: 暂无 | P108: 0 | Q108: 不及格
A109: 2022 | B109: 化学工程与环境学院 | C109: 化工类22-2班 | D109: 2022010416 | E109: 朱赞裕 | F109: 男 | H109: 暂无 | I109: 暂无 | J109: 暂无 | K109: 暂无 | L109: 暂无 | M109: 暂无 | N109: 暂无 | O109: 暂无 | P109: 0 | Q109: 不及格
A110: 2022 | B110: 化学工程与环境学院 | C110: 化工类22-3班 | D110: 2022012315 | E110: 艾力扎提·卡米力 | F110: 男 | G110: 免测 | H110: 暂无 | I110: 暂无 | J110: 暂无 | K110: 暂无 | L110: 暂无 | M110: 暂无 | N110: 暂无 | O110: 暂无 | P110: 60 | Q110: 免测
A111: 2022 | B111: 化学工程与环境学院 | C111: 环工22-1班 | D111: 2022010529 | E111: 王文紫瑶 | F111: 女 | H111: 170.5 | I111: 54.6 | J111: 4039 | K111: 8.3 | L111: 184 | M111: 26.5 | N111: 3'36'' | O111: 30 | P111: 87.4 | Q111: 良好
A112: 2022 | B112: 化学工程与环境学院 | C112: 环工22-1班 | D112: 2022010530 | E112: 任馨雅 | F112: 女 | H112: 156.5 | I112: 80.5 | J112: 2729 | K112: 10.6 | L112: 128 | M112: 10.9 | N112: 4'37'' | O112: 29 | P112: 51.9 | Q112: 不及格
A113: 2022 | B113: 化学工程与环境学院 | C113: 环工22-1班 | D113: 2022010531 | E113: 任姿蓉 | F113: 女 | H113: 168 | I113: 50.7 | J113: 3650 | K113: 8.8 | L113: 174 | M113: 22.6 | N113: 3'47'' | O113: 32 | P113: 83.4 | Q113: 良好
A114: 2022 | B114: 化学工程与环境学院 | C114: 环工22-1班 | D114: 2022010532 | E114: 冯晴阳 | F114: 女 | H114: 154 | I114: 43.8 | J114: 2249 | K114: 9.2 | L114: 168 | M114: 10.6 | N114: 3'58'' | O114: 29 | P114: 73.2 | Q114: 及格
A115: 2022 | B115: 化学工程与环境学院 | C115: 环工22-1班 | D115: 2022010533 | E115: 郝小雪 | F115: 女 | H115: 154 | I115: 37.3 | J115: 2792 | K115: 9 | L115: 178 | M115: 6.7 | N115: 3'44'' | O115: 31 | P115: 73.7 | Q115: 及格
A116: 2022 | B116: 化学工程与环境学院 | C116: 环工22-1班 | D116: 2022010534 | E116: 李慧 | F116: 女 | H116: 158 | I116: 52.9 | J116: 3358 | K116: 8.3 | L116: 159 | M116: 17.8 | N116: 3'30'' | O116: 42 | P116: 85.1 | Q116: 良好
A117: 2022 | B117: 化学工程与环境学院 | C117: 环工22-1班 | D117: 2022010536 | E117: 叶雨桐 | F117: 女 | H117: 162 | I117: 53.1 | J117: 4024 | K117: 8.9 | L117: 190 | M117: 18 | N117: 3'44'' | O117: 50 | P117: 85.6 | Q117: 良好
A118: 2022 | B118: 化学工程与环境学院 | C118: 环工22-1班 | D118: 2022010537 | E118: 赵一泽 | F118: 男 | H118: 184 | I118: 96 | J118: 6056 | K118: 7.6 | L118: 182 | M118: 3.5 | N118: 4'41'' | O118: 0 | P118: 53.8 | Q118: 不及格
A119: 2022 | B119: 化学工程与环境学院 | C119: 环工22-1班 | D119: 2022010543 | E119: 罗东云 | F119: 男 | H119: 167 | I119: 50.5 | J119: 3986 | K119: 7.1 | L119: 218 | M119: 24.1 | N119: 4'33'' | O119: 5 | P119: 69 | Q119: 及格
A120: 2022 | B120: 化学工程与环境学院 | C120: 环工22-1班 | D120: 2022010545 | E120: 常梦超 | F120: 男 | H120: 181 | I120: 57.8 | J120: 3834 | K120: 6.8 | L120: 218 | M120: 7.6 | N120: 3'21'' | O120: 5 | P120: 74.6 | Q120: 及格
A121: 2022 | B121: 化学工程与环境学院 | C121: 环工22-1班 | D121: 2022010546 | E121: 侯佳 | F121: 男 | H121: 172 | I121: 94.7 | J121: 4710 | K121: 7.9 | L121: 209 | M121: 4 | N121: 暂无 | O121: 2 | P121: 48.2 | Q121: 不及格
A122: 2022 | B122: 化学工程与环境学院 | C122: 环工22-1班 | D122: 2022010549 | E122: 陆佳逸 | F122: 男 | H122: 180 | I122: 62.6 | J122: 3985 | K122: 6.7 | L122: 212 | M122: 8.4 | N122: 4'37'' | O122: 0 | P122: 68.9 | Q122: 及格
A123: 2022 | B123: 化学工程与环境学院 | C123: 环工22-1班 | D123: 2022010552 | E123: 高焮 | F123: 女 | H123: 161 | I123: 40.5 | J123: 2438 | K123: 8.3 | L123: 154 | M123: 6.5 | N123: 3'36'' | O123: 34 | P123: 74.2 | Q123: 及格
A124: 2022 | B124: 化学工程与环境学院 | C124: 环工22-1班 | D124: 2022010565 | E124: 李震洋 | F124: 男 | H124: 170 | I124: 85.8 | J124: 5212 | K124: 7.6 | L124: 235 | M124: 17 | N124: 4'28'' | O124: 0 | P124: 65.8 | Q124: 及格
A125: 2022 | B125: 化学工程与环境学院 | C125: 环工22-1班 | D125: 2022010566 | E125: 葛安华 | F125: 男 | H125: 174 | I125: 66.6 | J125: 5593 | K125: 6.7 | L125: 259 | M125: 15.4 | N125: 3'20'' | O125: 23 | P125: 99.1 | Q125: 优秀
A126: 2022 | B126: 化学工程与环境学院 | C126: 环工22-1班 | D126: 2022010569 | E126: 余越 | F126: 男 | H126: 167 | I126: 52 | J126: 2956 | K126: 7.8 | L126: 184 | M126: 22.7 | N126: 4'13'' | O126: 暂无 | P126: 60.1 | Q126: 及格
A127: 2022 | B127: 化学工程与环境学院 | C127: 环工22-1班 | D127: 2022010570 | E127: 孔哲昊 | F127: 男 | H127: 181.5 | I127: 72 | J127: 4733 | K127: 7.5 | L127: 204 | M127: 17.1 | N127: 4'09'' | O127: 0 | P127: 69.4 | Q127: 及格
A128: 2022 | B128: 化学工程与环境学院 | C128: 环工22-1班 | D128: 2022010609 | E128: 姚爽 | F128: 女 | H128: 159 | I128: 57 | J128: 4061 | K128: 7.2 | L128: 201 | M128: 18 | N128: 3'18'' | O128: 48 | P128: 95.3 | Q128: 优秀
A129: 2022 | B129: 化学工程与环境学院 | C129: 环工22-1班 | D129: 2022010610 | E129: 薛心悦 | F129: 女 | H129: 153 | I129: 50.2 | J129: 3886 | K129: 8.3 | L129: 188 | M129: 25.2 | N129: 3'32'' | O129: 33 | P129: 87.6 | Q129: 良好
A130: 2022 | B130: 化学工程与环境学院 | C130: 环工22-1班 | D130: 2022010611 | E130: 王思雨 | F130: 女 | H130: 158 | I130: 46.6 | J130: 3212 | K130: 8.3 | L130: 206 | M130: 11 | N130: 3'36'' | O130: 30 | P130: 83.3 | Q130: 良好
A131: 2022 | B131: 化学工程与环境学院 | C131: 环工22-1班 | D131: 2022010612 | E131: 高成捷 | F131: 女 | H131: 163 | I131: 53.3 | J131: 3487 | K131: 9.2 | L131: 188 | M131: 19.7 | N131: 4'08'' | O131: 30 | P131: 80.9 | Q131: 良好
A132: 2022 | B132: 化学工程与环境学院 | C132: 环工22-1班 | D132: 2022010616 | E132: 戴剑苓 | F132: 女 | H132: 168 | I132: 56.2 | J132: 3899 | K132: 8.2 | L132: 166 | M132: 9.1 | N132: 3'47'' | O132: 24 | P132: 80 | Q132: 良好
A133: 2022 | B133: 化学工程与环境学院 | C133: 环工22-1班 | D133: 2022010619 | E133: 刘欣俞 | F133: 女 | H133: 174 | I133: 96 | J133: 4096 | K133: 9.7 | L133: 105 | M133: 20.5 | N133: 4'22'' | O133: 24 | P133: 63 | Q133: 及格
A134: 2022 | B134: 化学工程与环境学院 | C134: 环工22-1班 | D134: 2022010623 | E134: 张举 | F134: 男 | H134: 180 | I134: 60 | J134: 6407 | K134: 7.4 | L134: 236 | M134: 6.3 | N134: 4'14'' | O134: 0 | P134: 72 | Q134: 及格
A135: 2022 | B135: 化学工程与环境学院 | C135: 环工22-1班 | D135: 2022010625 | E135: 杨津飞 | F135: 男 | H135: 168 | I135: 55.3 | J135: 3826 | K135: 7.4 | L135: 223 | M135: -5.8 | N135: 4'04'' | O135: 13 | P135: 68.8 | Q135: 及格
A136: 2022 | B136: 化学工程与环境学院 | C136: 环工22-1班 | D136: 2022010626 | E136: 杨超 | F136: 男 | H136: 180 | I136: 83.7 | J136: 6041 | K136: 6.8 | L136: 258 | M136: 3.4 | N136: 3'52'' | O136: 暂无 | P136: 74.7 | Q136: 及格
A137: 2022 | B137: 化学工程与环境学院 | C137: 环工22-1班 | D137: 2022010628 | E137: 贺弘炜 | F137: 男 | H137: 169.5 | I137: 67.2 | J137: 4794 | K137: 6.6 | L137: 244 | M137: 12.9 | N137: 4'00'' | O137: 3 | P137: 77.2 | Q137: 及格
A138: 2022 | B138: 化学工程与环境学院 | C138: 环工22-1班 | D138: 2022010629 | E138: 黄雨森 | F138: 男 | H138: 170.5 | I138: 64.7 | J138: 5341 | K138: 7.1 | L138: 210 | M138: 0.7 | N138: 4'07'' | O138: 0 | P138: 69 | Q138: 及格
A139: 2022 | B139: 化学工程与环境学院 | C139: 环工22-1班 | D139: 2022010630 | E139: 李博阳 | F139: 男 | H139: 181.5 | I139: 76.8 | J139: 5716 | K139: 8.3 | L139: 256 | M139: 20.7 | N139: 4'26'' | O139: 3 | P139: 73 | Q139: 及格
A140: 2022 | B140: 化学工程与环境学院 | C140: 环工22-1班 | D140: 2022010633 | E140: 孟星宇 | F140: 男 | H140: 176 | I140: 57.3 | J140: 3916 | K140: 7.4 | L140: 236 | M140: 25.5 | N140: 4'51'' | O140: 5 | P140: 69.4 | Q140: 及格
A141: 2022 | B141: 化学工程与环境学院 | C141: 环工22-1班 | D141: 2022012321 | E141: 新尼巴依尔 | F141: 女 | H141: 155 | I141: 52.6 | J141: 2982 | K141: 9 | L141: 153 | M141: 12.4 | N141: 3'46'' | O141: 28 | P141: 75.7 | Q141: 及格
A142: 2022 | B142: 化学工程与环境学院 | C142: 环工22-1班 | D142: 2022012328 | E142: 马智玮 | F142: 男 | H142: 175.5 | I142: 62.6 | J142: 5302 | K142: 6.7 | L142: 241 | M142: 9.2 | N142: 3'38'' | O142: 18 | P142: 89.7 | Q142: 良好
A143: 2022 | B143: 化学工程与环境学院 | C143: 环工22-1班 | D143: 2022012329 | E143: 阿布都扎衣尔·阿布都克里木 | F143: 男 | H143: 180 | I143: 77.7 | J143: 5439 | K143: 6.6 | L143: 206 | M143: -2 | N143: 3'51'' | O143: 7 | P143: 70.2 | Q143: 及格
A144: 2022 | B144: 化学工程与环境学院 | C144: 环工22-1班 | D144: 2022016263 | E144: 俞仙琳 | F144: 女 | H144: 暂无 | I144: 暂无 | J144: 暂无 | K144: 暂无 | L144: 暂无 | M144: 暂无 | N144: 暂无 | O144: 暂无 | P144: 0 | Q144: 不及格
A145: 2022 | B145: 化学工程与环境学院 | C145: 环工22-2班 | D145: 2022010524 | E145: 陈炳文 | F145: 女 | H145: 159 | I145: 57.5 | J145: 3868 | K145: 8.3 | L145: 180 | M145: 11.1 | N145: 3'59'' | O145: 36 | P145: 82.2 | Q145: 良好
A146: 2022 | B146: 化学工程与环境学院 | C146: 环工22-2班 | D146: 2022010525 | E146: 王馨 | F146: 女 | H146: 154.5 | I146: 47.5 | J146: 3266 | K146: 9.1 | L146: 163 | M146: 21 | N146: 3'59'' | O146: 42 | P146: 79.9 | Q146: 及格
A147: 2022 | B147: 化学工程与环境学院 | C147: 环工22-2班 | D147: 2022010526 | E147: 石乃舜 | F147: 女 | H147: 162 | I147: 66.2 | J147: 3729 | K147: 8.9 | L147: 159 | M147: 18.6 | N147: 3'59'' | O147: 36 | P147: 77.8 | Q147: 及格
A148: 2022 | B148: 化学工程与环境学院 | C148: 环工22-2班 | D148: 2022010527 | E148: 徐娅琳 | F148: 女 | H148: 169 | I148: 56.2 | J148: 3681 | K148: 8.9 | L148: 173 | M148: 22.9 | N148: 4'26'' | O148: 25 | P148: 78.6 | Q148: 及格
A149: 2022 | B149: 化学工程与环境学院 | C149: 环工22-2班 | D149: 2022010555 | E149: 胡余娜 | F149: 女 | H149: 163 | I149: 58.5 | J149: 4785 | K149: 10.2 | L149: 129 | M149: 13.3 | N149: 4'24'' | O149: 23 | P149: 66.8 | Q149: 及格
A150: 2022 | B150: 化学工程与环境学院 | C150: 环工22-2班 | D150: 2022010562 | E150: 田依弘 | F150: 女 | H150: 166 | I150: 61.3 | J150: 3456 | K150: 9 | L150: 164 | M150: 15.5 | N150: 3'50'' | O150: 50 | P150: 82.3 | Q150: 良好
A151: 2022 | B151: 化学工程与环境学院 | C151: 环工22-2班 | D151: 2022010564 | E151: 赵晨洁 | F151: 女 | H151: 163 | I151: 66.2 | J151: 4460 | K151: 9.3 | L151: 161 | M151: 20.1 | N151: 4'00'' | O151: 43 | P151: 77.6 | Q151: 及格
A152: 2022 | B152: 化学工程与环境学院 | C152: 环工22-2班 | D152: 2022010571 | E152: 杨森云 | F152: 男 | H152: 170 | I152: 57.2 | J152: 4622 | K152: 6.9 | L152: 227 | M152: 9.9 | N152: 3'20'' | O152: 16 | P152: 86.9 | Q152: 良好
A153: 2022 | B153: 化学工程与环境学院 | C153: 环工22-2班 | D153: 2022010572 | E153: 康皓年 | F153: 男 | H153: 170 | I153: 62.8 | J153: 5437 | K153: 7.9 | L153: 208 | M153: 9.4 | N153: 4'05'' | O153: 3 | P153: 71.2 | Q153: 及格
A154: 2022 | B154: 化学工程与环境学院 | C154: 环工22-2班 | D154: 2022010573 | E154: 金国昊 | F154: 男 | H154: 173.5 | I154: 106 | J154: 4649 | K154: 7.6 | L154: 194 | M154: 6.9 | N154: 4'00'' | O154: 5 | P154: 61.4 | Q154: 及格
A155: 2022 | B155: 化学工程与环境学院 | C155: 环工22-2班 | D155: 2022010575 | E155: 曹天竹 | F155: 男 | H155: 160 | I155: 74.9 | J155: 3989 | K155: 8.4 | L155: 191 | M155: 17.7 | N155: 4'57'' | O155: 2 | P155: 51.3 | Q155: 不及格
A156: 2022 | B156: 化学工程与环境学院 | C156: 环工22-2班 | D156: 2022010576 | E156: 高嘉华 | F156: 男 | H156: 173.5 | I156: 70.5 | J156: 5086 | K156: 6.7 | L156: 226 | M156: 13.3 | N156: 3'54'' | O156: 17 | P156: 87.8 | Q156: 良好
A157: 2022 | B157: 化学工程与环境学院 | C157: 环工22-2班 | D157: 2022010578 | E157: 刘昶 | F157: 男 | H157: 172 | I157: 66.3 | J157: 4722 | K157: 7 | L157: 253 | M157: 16.2 | N157: 3'55'' | O157: 14 | P157: 82.8 | Q157: 良好
A158: 2022 | B158: 化学工程与环境学院 | C158: 环工22-2班 | D158: 2022010579 | E158: 张庭毓 | F158: 男 | H158: 170 | I158: 67.4 | J158: 5045 | K158: 7 | L158: 暂无 | M158: 6.7 | N158: 4'14'' | O158: 17 | P158: 75.6 | Q158: 及格
A159: 2022 | B159: 化学工程与环境学院 | C159: 环工22-2班 | D159: 2022010581 | E159: 许文雅 | F159: 女 | H159: 159 | I159: 45.2 | J159: 3894 | K159: 8.1 | L159: 186 | M159: 22.7 | N159: 3'32'' | O159: 42 | P159: 87.6 | Q159: 良好
A160: 2022 | B160: 化学工程与环境学院 | C160: 环工22-2班 | D160: 2022010583 | E160: 李陈希 | F160: 女 | H160: 176 | I160: 47.7 | J160: 2959 | K160: 10.2 | L160: 146 | M160: 1.6 | N160: 4'45'' | O160: 24 | P160: 53.7 | Q160: 不及格
A161: 2022 | B161: 化学工程与环境学院 | C161: 环工22-2班 | D161: 2022010586 | E161: 林雯俊 | F161: 女 | H161: 166 | I161: 54.9 | J161: 4091 | K161: 8.6 | L161: 169 | M161: 15.3 | N161: 3'47'' | O161: 36 | P161: 82.4 | Q161: 良好
A162: 2022 | B162: 化学工程与环境学院 | C162: 环工22-2班 | D162: 2022010587 | E162: 陆霄雅 | F162: 女 | H162: 160 | I162: 44.5 | J162: 2479 | K162: 8.3 | L162: 168 | M162: 2.7 | N162: 3'36'' | O162: 38 | P162: 73.4 | Q162: 及格
A163: 2022 | B163: 化学工程与环境学院 | C163: 环工22-2班 | D163: 2022010589 | E163: 孟婧涵 | F163: 女 | H163: 164 | I163: 58.4 | J163: 3359 | K163: 8.1 | L163: 193 | M163: 20.7 | N163: 3'30'' | O163: 39 | P163: 87.5 | Q163: 良好
A164: 2022 | B164: 化学工程与环境学院 | C164: 环工22-2班 | D164: 2022010592 | E164: 辛丽倩 | F164: 女 | H164: 159 | I164: 45.4 | J164: 3371 | K164: 9.1 | L164: 174 | M164: 10.7 | N164: 3'20'' | O164: 41 | P164: 84.1 | Q164: 良好
A165: 2022 | B165: 化学工程与环境学院 | C165: 环工22-2班 | D165: 2022010593 | E165: 高于翀 | F165: 男 | H165: 181 | I165: 57.1 | J165: 3818 | K165: 7.2 | L165: 221 | M165: 4.5 | N165: 4'01'' | O165: 3 | P165: 65.1 | Q165: 及格
A166: 2022 | B166: 化学工程与环境学院 | C166: 环工22-2班 | D166: 2022010594 | E166: 龙宇舟 | F166: 男 | H166: 170.5 | I166: 72 | J166: 5467 | K166: 6.8 | L166: 217 | M166: 0.4 | N166: 4'07'' | O166: 6 | P166: 70.4 | Q166: 及格
A167: 2022 | B167: 化学工程与环境学院 | C167: 环工22-2班 | D167: 2022010595 | E167: 闫步石 | F167: 男 | H167: 168 | I167: 50.7 | J167: 3076 | K167: 7.4 | L167: 212 | M167: 22.3 | N167: 4'19'' | O167: 5 | P167: 66.7 | Q167: 及格
A168: 2022 | B168: 化学工程与环境学院 | C168: 环工22-2班 | D168: 2022010597 | E168: 王哲 | F168: 男 | H168: 180.5 | I168: 55 | J168: 3844 | K168: 7.4 | L168: 244 | M168: 1 | N168: 4'04'' | O168: 0 | P168: 62.8 | Q168: 及格
A169: 2022 | B169: 化学工程与环境学院 | C169: 环工22-2班 | D169: 2022010598 | E169: 余勇利 | F169: 男 | H169: 180.5 | I169: 72.8 | J169: 5576 | K169: 6.7 | L169: 246 | M169: 25.8 | N169: 3'34'' | O169: 15 | P169: 92.8 | Q169: 优秀
A170: 2022 | B170: 化学工程与环境学院 | C170: 环工22-2班 | D170: 2022010601 | E170: 全震 | F170: 男 | H170: 185 | I170: 93.8 | J170: 6403 | K170: 7.2 | L170: 238 | M170: 9.9 | N170: 3'53'' | O170: 7 | P170: 74.6 | Q170: 及格
A171: 2022 | B171: 化学工程与环境学院 | C171: 环工22-2班 | D171: 2022010602 | E171: 李子涵 | F171: 男 | H171: 183.5 | I171: 67.8 | J171: 5936 | K171: 6.5 | L171: 240 | M171: 1.6 | N171: 3'10'' | O171: 18 | P171: 91.1 | Q171: 优秀
A172: 2022 | B172: 化学工程与环境学院 | C172: 环工22-2班 | D172: 2022010604 | E172: 丁腾岳 | F172: 男 | H172: 166.5 | I172: 66.6 | J172: 4223 | K172: 6.8 | L172: 194 | M172: 3.9 | N172: 4'15'' | O172: 5 | P172: 65.9 | Q172: 及格
A173: 2022 | B173: 化学工程与环境学院 | C173: 环工22-2班 | D173: 2022010605 | E173: 董文浩 | F173: 男 | H173: 186 | I173: 117 | J173: 6614 | K173: 8.1 | L173: 181 | M173: 13.9 | N173: 4'52'' | O173: 0 | P173: 55.4 | Q173: 不及格
A174: 2022 | B174: 化学工程与环境学院 | C174: 环工22-2班 | D174: 2022010606 | E174: 林嘉隆 | F174: 男 | H174: 173.5 | I174: 61.5 | J174: 4406 | K174: 6.8 | L174: 215 | M174: 8.4 | N174: 4'00'' | O174: 11 | P174: 79.6 | Q174: 及格
A175: 2022 | B175: 化学工程与环境学院 | C175: 环工22-2班 | D175: 2022010607 | E175: 唐嘉岚 | F175: 男 | H175: 165 | I175: 75.7 | J175: 5049 | K175: 8.4 | L175: 199 | M175: 7.1 | N175: 6'12'' | O175: 4 | P175: 52.6 | Q175: 不及格
A176: 2022 | B176: 化学工程与环境学院 | C176: 环工22-2班 | D176: 2022010613 | E176: 罗玉娟 | F176: 女 | H176: 162.5 | I176: 49.5 | J176: 3926 | K176: 9 | L176: 176 | M176: 8.2 | N176: 3'38'' | O176: 31 | P176: 80.6 | Q176: 良好
A177: 2022 | B177: 化学工程与环境学院 | C177: 环工22-2班 | D177: 2022012326 | E177: 周倍生 | F177: 男 | H177: 181 | I177: 83.8 | J177: 6706 | K177: 7.8 | L177: 220 | M177: 11.4 | N177: 4'01'' | O177: 0 | P177: 69.4 | Q177: 及格
A178: 2022 | B178: 化学工程与环境学院 | C178: 环工22-2班 | D178: 2022012327 | E178: 贾益航 | F178: 男 | H178: 179.5 | I178: 76.3 | J178: 5391 | K178: 6.5 | L178: 240 | M178: 10.6 | N178: 3'10'' | O178: 14 | P178: 93 | Q178: 优秀
A179: 2022 | B179: 化学工程与环境学院 | C179: 环工22-2班 | D179: 2022016257 | E179: 潘新艺 | F179: 女 | H179: 暂无 | I179: 暂无 | J179: 暂无 | K179: 9.4 | L179: 暂无 | M179: 暂无 | N179: 4'01'' | O179: 暂无 | P179: 28 | Q179: 不及格
A180: 2022 | B180: 化学工程与环境学院 | C180: 环境类22-1班 | D180: 2022010544 | E180: 卢松呈 | F180: 男 | H180: 暂无 | I180: 暂无 | J180: 暂无 | K180: 暂无 | L180: 暂无 | M180: 暂无 | N180: 暂无 | O180: 暂无 | P180: 0 | Q180: 不及格
A181: 2022 | B181: 化学工程与环境学院 | C181: 环境类22-2班 | D181: 2022012325 | E181: 艾合麦提江·艾山 | F181: 男 | H181: 暂无 | I181: 暂无 | J181: 暂无 | K181: 暂无 | L181: 暂无 | M181: 暂无 | N181: 暂无 | O181: 暂无 | P181: 0 | Q181: 不及格
A182: 2022 | B182: 化学工程与环境学院 | C182: 环境类22-4班 | D182: 2022010631 | E182: 韩依廷 | F182: 男 | H182: 暂无 | I182: 暂无 | J182: 暂无 | K182: 暂无 | L182: 暂无 | M182: 暂无 | N182: 暂无 | O182: 暂无 | P182: 0 | Q182: 不及格
A183: 2022 | B183: 化学工程与环境学院 | C183: 环科22-1班 | D183: 2022010528 | E183: 郭晶轩 | F183: 女 | H183: 162.5 | I183: 92.3 | J183: 3728 | K183: 11.9 | L183: 129 | M183: 9.3 | N183: 5'20'' | O183: 19 | P183: 35.4 | Q183: 不及格
A184: 2022 | B184: 化学工程与环境学院 | C184: 环科22-1班 | D184: 2022010538 | E184: 李雨桐 | F184: 男 | H184: 177 | I184: 81.4 | J184: 6304 | K184: 7.1 | L184: 247 | M184: 12.1 | N184: 4'03'' | O184: 0 | P184: 72 | Q184: 及格
A185: 2022 | B185: 化学工程与环境学院 | C185: 环科22-1班 | D185: 2022010540 | E185: 齐明睿 | F185: 男 | H185: 189 | I185: 82.3 | J185: 6049 | K185: 7.6 | L185: 213 | M185: -6.4 | N185: 4'12'' | O185: 暂无 | P185: 64.6 | Q185: 及格
A186: 2022 | B186: 化学工程与环境学院 | C186: 环科22-1班 | D186: 2022010541 | E186: 陈其勇 | F186: 男 | H186: 178.5 | I186: 84.4 | J186: 5723 | K186: 7.8 | L186: 246 | M186: -0.1 | N186: 4'45'' | O186: 0 | P186: 61.2 | Q186: 及格
A187: 2022 | B187: 化学工程与环境学院 | C187: 环科22-1班 | D187: 2022010542 | E187: 张博瑞 | F187: 男 | H187: 181 | I187: 92.2 | J187: 6287 | K187: 7.8 | L187: 233 | M187: 3 | N187: 5'18'' | O187: 0 | P187: 56.6 | Q187: 不及格
A188: 2022 | B188: 化学工程与环境学院 | C188: 环科22-1班 | D188: 2022010548 | E188: 李思睿 | F188: 男 | H188: 177 | I188: 74.1 | J188: 4336 | K188: 7.2 | L188: 102 | M188: 7.1 | N188: 4'29'' | O188: 0 | P188: 61 | Q188: 及格
A189: 2022 | B189: 化学工程与环境学院 | C189: 环科22-1班 | D189: 2022010551 | E189: 赵天浩 | F189: 男 | H189: 174 | I189: 104 | J189: 4864 | K189: 7.9 | L189: 211 | M189: 16 | N189: 6'00'' | O189: 0 | P189: 52.5 | Q189: 不及格
A190: 2022 | B190: 化学工程与环境学院 | C190: 环科22-1班 | D190: 2022010553 | E190: 盛蓉 | F190: 女 | H190: 暂无 | I190: 暂无 | J190: 暂无 | K190: 暂无 | L190: 暂无 | M190: 暂无 | N190: 暂无 | O190: 暂无 | P190: 0 | Q190: 不及格
A191: 2022 | B191: 化学工程与环境学院 | C191: 环科22-1班 | D191: 2022010554 | E191: 扎西卓玛 | F191: 女 | H191: 165 | I191: 56 | J191: 3580 | K191: 9.9 | L191: 138 | M191: 7 | N191: 4'54'' | O191: 28 | P191: 66 | Q191: 及格
A192: 2022 | B192: 化学工程与环境学院 | C192: 环科22-1班 | D192: 2022010563 | E192: 吴泽奇 | F192: 女 | H192: 155 | I192: 42.9 | J192: 2089 | K192: 7.9 | L192: 182 | M192: 13.1 | N192: 3'44'' | O192: 47 | P192: 80 | Q192: 良好
A193: 2022 | B193: 化学工程与环境学院 | C193: 环科22-1班 | D193: 2022010567 | E193: 贾宇恒 | F193: 男 | H193: 暂无 | I193: 暂无 | J193: 暂无 | K193: 7.8 | L193: 暂无 | M193: 暂无 | N193: 4'29'' | O193: 0 | P193: 26.4 | Q193: 不及格
A194: 2022 | B194: 化学工程与环境学院 | C194: 环科22-1班 | D194: 2022010574 | E194: 艾显燚 | F194: 男 | H194: 暂无 | I194: 暂无 | J194: 暂无 | K194: 7.3 | L194: 暂无 | M194: 暂无 | N194: 暂无 | O194: 4 | P194: 15.6 | Q194: 不及格
A195: 2022 | B195: 化学工程与环境学院 | C195: 环科22-1班 | D195: 2022010577 | E195: 李伊文 | F195: 男 | H195: 176.5 | I195: 52.5 | J195: 5037 | K195: 7 | L195: 231 | M195: -0.1 | N195: 4'17'' | O195: 4 | P195: 65.5 | Q195: 及格
A196: 2022 | B196: 化学工程与环境学院 | C196: 环科22-1班 | D196: 2022010580 | E196: 赵显颖 | F196: 女 | H196: 154.5 | I196: 46.6 | J196: 2878 | K196: 8.9 | L196: 171 | M196: 7.6 | N196: 3'29'' | O196: 22 | P196: 76.6 | Q196: 及格
A197: 2022 | B197: 化学工程与环境学院 | C197: 环科22-1班 | D197: 2022010588 | E197: 马雪儿 | F197: 女 | H197: 170.5 | I197: 52.9 | J197: 3710 | K197: 8.1 | L197: 187 | M197: 18.4 | N197: 4'07'' | O197: 48 | P197: 83.8 | Q197: 良好
A198: 2022 | B198: 化学工程与环境学院 | C198: 环科22-1班 | D198: 2022010590 | E198: 苗堉昕 | F198: 女 | H198: 176 | I198: 71.5 | J198: 3714 | K198: 8.5 | L198: 146 | M198: 24.6 | N198: 3'33'' | O198: 37 | P198: 84.1 | Q198: 良好
A199: 2022 | B199: 化学工程与环境学院 | C199: 环科22-1班 | D199: 2022010596 | E199: 方浩天 | F199: 男 | H199: 173.5 | I199: 69.1 | J199: 4582 | K199: 7.2 | L199: 204 | M199: -5.6 | N199: 3'43'' | O199: 14 | P199: 71.6 | Q199: 及格
A200: 2022 | B200: 化学工程与环境学院 | C200: 环科22-1班 | D200: 2022010599 | E200: 张雨辰 | F200: 男 | H200: 181.5 | I200: 96 | J200: 6397 | K200: 6.7 | L200: 241 | M200: 10.7 | N200: 3'22'' | O200: 6 | P200: 79.6 | Q200: 及格
... 81 more rows
